Workbook

Sheet Notes
A1: SPMMS: Student Peak Model Migration Schedule fitting
A4: Author
A5: Tom Wilson
A7: Affiliation
A8: Queensland Centre for Population Research
A9: The University of Queensland
A10: Brisbane, Qld 4072
A11: Australia
A13: Date
A14: November 2009; minor revisions March 2011
A16: Disclaimer
A17: Please be aware that there is:
A18: • no guarantee this workbook will provide optimum, or even adaquate, fits to any particular migration age pattern;
A19: • no guarantee this workbook is free of errors;
A20: • no support or manual.
A22: Details of the model
A23: can be found in the paper "Model migration schedules incorporating student migration peaks",
A24: available at: http://www.demographic-research.org/Volumes/Vol23/8/default.htm
A26: Type of migration data
A27: This workbook has been set up to use one year interval transition-type migration data. With this type of data migration
A28: is said to have occurred if an individual's address at one year prior to a census (or survey) is different from that at the
A29: time of the census. The Lexis diagram age-time plan is period-cohort. For details on different types of migration data see:
A30: Rees P and Willekens F (1986) "Data and accounts" in Rogers A and Willekens F (eds) Migration and Settlement: A
A31: Comparative Study. Dordrecht: D Reidel; pp 19-58.
A32: The type of migration measure calculated is the migration probability conditional upon survival within the country. For
A33: a discussion of this measure see: Rees P, Bell M, Duke-Williams O and Blake M (2000) "Problems and solutions in the
A34: measurement of migration intensities: Britain and Australia compared" Population Studies 54.2: 207-222.
A36: Excel options
A37: For this workbook to operate
A38: (1) Microsoft Excel 2007 is required;
A39: (2) macros need to be enabled;
A40: (3) Excel Solver must be added. (Type "Solver" into the help box for advice on how to load it.)
A42: User inputs
A43: Cells with a bright green background usually require the user to input data (though some are optional).
A44: Other user input is required via scrolling arrows or tick boxes. It is recommended that changes to cells without
A45: green backgrounds are avoided.
A47: The seven steps in fitting the model schedule
A48: This workbook fits the student peak model schedule in seven steps:
A49: Step 1: Enter migration data
A50: Step 2: Estimate the constant parameter
A51: Step 3: Estimate the childhood curve parameters
A52: Step 4: Estimate the labour force curve parameters
A53: Step 5: Estimate the retirement curve parameters
A54: Step 6: Estimate the elderly curve parameters
A55: Step 7: Estimate the student curve parameters

Sheet Step 1
A1: Step 1: Enter migration data
A4: Place the migration probabilities into the green cells. Either type them in or copy them from elsewhere and
A5: paste them in using Paste > Paste Values. As is standard practice in fitting model migration schedules, the
A6: migration probabilities are scaled to sum over all ages shown to unity.
A8: Age 1 year before census | B8: Age at census | C8: Migration probability | E8: Mean age | F8: Scaled migration probability | H8: Male interstate out-migration from Melbourne, 2005-06
A9: 0 | B9: 1 | C9: 0.01381783409 | E9: 1 | F9: =C9/SUM(C$9:C$98) -> 0.01847034265
A10: =A9+1 -> 1 | B10: =B9+1 -> 2 | C10: 0.01259043503 | E10: =E9+1 -> 2 | F10: =C10/SUM(C$9:C$98) -> 0.01682967443
A11: =A10+1 -> 2 | B11: =B10+1 -> 3 | C11: 0.01170087285 | E11: =E10+1 -> 3 | F11: 0.01564059384
A12: 3 | B12: 4 | C12: 0.01132872504 | E12: 4 | F12: 0.01514314268
A13: 4 | B13: 5 | C13: 0.009592996181 | E13: 5 | F13: 0.01282298842
A14: 5 | B14: 6 | C14: 0.008842105263 | E14: 6 | F14: 0.01181927014
A15: 6 | B15: 7 | C15: 0.007946524564 | E15: 7 | F15: 0.01062214458
A16: 7 | B16: 8 | C16: 0.008067881486 | E16: 8 | F16: 0.01078436277
A17: 8 | B17: 9 | C17: 0.007999264435 | E17: 9 | F17: 0.01069264214
A18: 9 | B18: 10 | C18: 0.006916585973 | E18: 10 | F18: 0.009245422404
A19: 10 | B19: 11 | C19: 0.006209223847 | E19: 11 | F19: 0.008299889207
A20: 11 | B20: 12 | C20: 0.005659536542 | E20: 12 | F20: 0.007565120443
A21: 12 | B21: 13 | C21: 0.005530824228 | E21: 13 | F21: 0.007393070284
A22: 13 | B22: 14 | C22: 0.005138375552 | E22: 14 | F22: 0.006868482895
A23: 14 | B23: 15 | C23: 0.004391412349 | E23: 15 | F23: 0.005870014813
A24: 15 | B24: 16 | C24: 0.004559135977 | E24: 16 | F24: 0.006094211519
A25: 16 | B25: 17 | C25: 0.004362295377 | E25: 17 | F25: 0.005831094064
A26: 17 | B26: 18 | C26: 0.008012747553 | E26: 18 | F26: 0.01071066506
A27: 18 | B27: 19 | C27: 0.01330023054 | E27: 19 | F27: 0.01777846034
A28: 19 | B28: 20 | C28: 0.01261153054 | E28: 20 | F28: 0.01685787287
A29: 20 | B29: 21 | C29: 0.01379693307 | E29: 21 | F29: 0.01844240418
A30: 21 | B30: 22 | C30: 0.01814827527 | E30: 22 | F30: 0.0242588571
A31: 22 | B31: 23 | C31: 0.02103044899 | E31: 23 | F31: 0.02811146786
A32: 23 | B32: 24 | C32: 0.02102854182 | E32: 24 | F32: 0.02810891853
A33: 24 | B33: 25 | C33: 0.0245484222 | E33: 25 | F33: 0.0328139538
A34: 25 | B34: 26 | C34: 0.02227908413 | E34: 26 | F34: 0.02978052241
A35: 26 | B35: 27 | C35: 0.02309209936 | E35: 27 | F35: 0.03086728245
A36: 27 | B36: 28 | C36: 0.02003585836 | E36: 28 | F36: 0.02678199541
A37: 28 | B37: 29 | C37: 0.01924450795 | E37: 29 | F37: 0.0257241948
A38: 29 | B38: 30 | C38: 0.02064896755 | E38: 30 | F38: 0.02760154041
A39: 30 | B39: 31 | C39: 0.01896322931 | E39: 31 | F39: 0.02534820876
A40: 31 | B40: 32 | C40: 0.0180091683 | E40: 32 | F40: 0.02407291238
A41: 32 | B41: 33 | C41: 0.01656638588 | E41: 33 | F41: 0.02214434054
A42: 33 | B42: 34 | C42: 0.01660067012 | E42: 34 | F42: 0.02219016839
A43: 34 | B43: 35 | C43: 0.017171868 | E43: 35 | F43: 0.02295369041
A44: 35 | B44: 36 | C44: 0.01383858793 | E44: 36 | F44: 0.01849808437
A45: 36 | B45: 37 | C45: 0.01511031697 | E45: 37 | F45: 0.02019800861
A46: 37 | B46: 38 | C46: 0.01116961864 | E46: 38 | F46: 0.01493046465
A47: 38 | B47: 39 | C47: 0.01270590183 | E47: 39 | F47: 0.01698401927
A48: 39 | B48: 40 | C48: 0.01048835088 | E48: 40 | F48: 0.01401981189
A49: 40 | B49: 41 | C49: 0.01024311983 | E49: 41 | F49: 0.01369201076
A50: 41 | B50: 42 | C50: 0.009194467046 | E50: 42 | F50: 0.01229027326
A51: 42 | B51: 43 | C51: 0.008223422851 | E51: 43 | F51: 0.0109922754
A52: 43 | B52: 44 | C52: 0.007876547179 | E52: 44 | F52: 0.01052860559
A53: 44 | B53: 45 | C53: 0.00764068564 | E53: 45 | F53: 0.01021332873
A54: 45 | B54: 46 | C54: 0.008086702793 | E54: 46 | F54: 0.01080952127
A55: 46 | B55: 47 | C55: 0.00640220939 | E55: 47 | F55: 0.008557853594
A56: 47 | B56: 48 | C56: 0.006390328152 | E56: 48 | F56: 0.008541971905
A57: 48 | B57: 49 | C57: 0.006800894855 | E57: 49 | F57: 0.009090777719
A58: 49 | B58: 50 | C58: 0.006428036807 | E58: 50 | F58: 0.008592377184
A59: 50 | B59: 51 | C59: 0.004931429645 | E59: 51 | F59: 0.006591857645
A60: 51 | B60: 52 | C60: 0.005898410841 | E60: 52 | F60: 0.007884424476
A61: 52 | B61: 53 | C61: 0.005457091805 | E61: 53 | F61: 0.007294511921
A62: 53 | B62: 54 | C62: 0.005068245684 | E62: 54 | F62: 0.006774740079
A63: 54 | B63: 55 | C63: 0.006157447458 | E63: 55 | F63: 0.008230679543
A64: 55 | B64: 56 | C64: 0.006651769475 | E64: 56 | F64: 0.00889144135
A65: 56 | B65: 57 | C65: 0.005686390215 | E65: 57 | F65: 0.007601015833
A66: 57 | B66: 58 | C66: 0.004885993485 | E66: 58 | F66: 0.006531122986
A67: 58 | B67: 59 | C67: 0.005955630552 | E67: 59 | F67: 0.007960910246
A68: 59 | B68: 60 | C68: 0.004933630917 | E68: 60 | F68: 0.006594800093
A69: 60 | B69: 61 | C69: 0.006401004079 | E69: 61 | F69: 0.008556242451
A70: 61 | B70: 62 | C70: 0.004477218857 | E70: 62 | F70: 0.005984712644
A71: 62 | B71: 63 | C71: 0.004356815832 | E71: 63 | F71: 0.005823769539
A72: 63 | B72: 64 | C72: 0.004939910049 | E72: 64 | F72: 0.006603193428
A73: 64 | B73: 65 | C73: 0.004493142046 | E73: 65 | F73: 0.006005997222
A74: 65 | B74: 66 | C74: 0.005111561866 | E74: 66 | F74: =C74/SUM(C$9:C$98) -> 0.006832640956
A75: =A74+1 -> 66 | B75: =B74+1 -> 67 | C75: 0.004957264957 | E75: =E74+1 -> 67 | F75: 0.006626391789
A76: 67 | B76: 68 | C76: 0.002821002821 | E76: 68 | F76: 0.003770843417
A77: =A76+1 -> 68 | B77: 69 | C77: 0.00247124798 | E77: 69 | F77: 0.003303325012
A78: =A77+1 -> 69 | B78: 70 | C78: 0.002755092 | E78: 70 | F78: 0.003682740214
A79: 70 | B79: 71 | C79: 0.003567306683 | E79: 71 | F79: 0.004768430156
A80: 71 | B80: 72 | C80: 0.002443169747 | E80: 72 | F80: 0.003265792749
A81: 72 | B81: 73 | C81: 0.002832219327 | E81: 73 | F81: 0.003785836556
A82: 73 | B82: 74 | C82: 0.002344116268 | E82: 74 | F82: 0.003133387649
A83: 74 | B83: 75 | C83: 0.002512562814 | E83: 75 | F83: 0.003358550681
A84: 75 | B84: 76 | C84: 0.002480217314 | E84: 76 | F84: 0.003315314349
A85: 76 | B85: 77 | C85: 0.00153787005 | E85: 77 | F85: 0.002055675773
A86: 77 | B86: 78 | C86: 0.003699788584 | E86: 78 | F86: 0.004945519132
A87: 78 | B87: 79 | C87: 0.001761338617 | E87: 79 | F87: 0.002354386915
A88: 79 | B88: 80 | C88: 0.002323420074 | E88: 80 | F88: 0.003105722981
A89: 80 | B89: 81 | C89: 0.001557902025 | E89: 81 | F89: 0.002082452578
A90: 81 | B90: 82 | C90: 0.001534330648 | E90: 82 | F90: 0.002050944643
A91: 82 | B91: 83 | C91: 0.003994673768 | E91: 83 | F91: 0.005339693094
A92: 83 | B92: 84 | C92: 0.001928175464 | E92: 84 | F92: 0.002577398257
A93: =A92+1 -> 84 | B93: 85 | C93: 0.002023121387 | E93: 85 | F93: 0.002704312774
A94: =A93+1 -> 85 | B94: 86 | C94: 0.003678929766 | E94: 86 | F94: 0.004917637084
A95: 86 | B95: 87 | C95: 0.001917545542 | E95: 87 | F95: 0.002563189206
A96: 87 | B96: 88 | C96: 0.003701418877 | E96: 88 | F96: 0.004947698351
A97: 88 | B97: 89 | C97: 0.003518648839 | E97: 89 | F97: 0.004703389061
A98: =A97+1 -> 89 | B98: 90 | C98: 0 | E98: 90 | F98: 0
A99: 90 | B99: 91 | C99: 0.003285870756
A100: 91 | B100: 92 | C100: 0.004255319149
A101: 92 | B101: 93 | C101: 0.007181328546
A102: 93 | B102: 94 | C102: 0
A103: 94 | B103: 95 | C103: 0
A104: 95 | B104: 96 | C104: 0
A105: 96 | B105: 97 | C105: 0
A106: 97 | B106: 98 | C106: 0.03409090909
A107: 98 | B107: 99 | C107: 0.04347826087
A108: 99 | B108: 100 | C108: 0
A109: 100 | B109: 101 | C109: 0.125
A110: 101 | B110: 102 | C110: 0
A111: 102 | B111: 103 | C111: 0
A112: 103 | B112: 104 | C112: 0
A113: 104 | B113: 105 | C113: 0
A114: 105 | B114: 106 | C114: 0
A115: 106 | B115: 107 | C115: 0
A116: 107 | B116: 108 | C116: 0
A117: 108 | B117: 109 | C117: 0
A118: =A117+1 -> 109 | B118: 110 | C118: 0
A119: =A118+1 -> 110 | B119: 111 | C119: 0

Sheet Step 2
A1: Step 2: Estimate the constant parameter
A4: Set the initial constant parameter as the mean of the lowest | H4: 5 | I4: non-zero migration probabilities. | AB4: Age 1 year before census | AC4: Age at census | AD4: Mean age | AE4: Probability scaled to unity | AF4: Exclude <0 | AH4: Lowest value | AI4: 2nd lowest | AJ4: 3rd lowest | AK4: 4th lowest | AL4: 5th lowest | AM4: 6th lowest | AN4: 7th lowest | AO4: 8th lowest | AP4: 9th lowest | AQ4: 10th lowest | AR4: 11th lowest | AS4: 12th lowest | AT4: 13th lowest | AU4: 14th lowest | AV4: 15th lowest | AX4: Constant
AB5: 0 | AC5: 1 | AD5: ='Step 1'!E9 -> 1 | AE5: ='Step 1'!F9 -> 0.01847034265 | AF5: =IF(AE5>0,AE5," ") -> 0.01847034265 | AH5: =AF5 -> 0.01847034265 | AI5: =IF(AH5=AH$97," ",AH5) -> 0.01847034265 | AJ5: =IF(AI5=AI$97," ",AI5) -> 0.01847034265 | AK5: 0.01847034265 | AL5: 0.01847034265 | AM5: 0.01847034265 | AN5: 0.01847034265 | AO5: 0.01847034265 | AP5: 0.01847034265 | AQ5: 0.01847034265 | AR5: 0.01847034265 | AS5: 0.01847034265 | AT5: 0.01847034265 | AU5: 0.01847034265 | AV5: 0.01847034265 | AX5: =$AI$104 -> 0.002221329823
A6: Initial constant parameter = | D6: =AI104 -> 0.002221329823 | AB6: =AB5+1 -> 1 | AC6: =AC5+1 -> 2 | AD6: ='Step 1'!E10 -> 2 | AE6: ='Step 1'!F10 -> 0.01682967443 | AF6: =IF(AE6>0,AE6," ") -> 0.01682967443 | AH6: =AF6 -> 0.01682967443 | AI6: =IF(AH6=AH$97," ",AH6) -> 0.01682967443 | AJ6: 0.01682967443 | AK6: 0.01682967443 | AL6: 0.01682967443 | AM6: 0.01682967443 | AN6: 0.01682967443 | AO6: 0.01682967443 | AP6: 0.01682967443 | AQ6: 0.01682967443 | AR6: 0.01682967443 | AS6: 0.01682967443 | AT6: 0.01682967443 | AU6: 0.01682967443 | AV6: 0.01682967443 | AX6: =$AI$104 -> 0.002221329823
AB7: =AB6+1 -> 2 | AC7: 3 | AD7: ='Step 1'!E11 -> 3 | AE7: ='Step 1'!F11 -> 0.01564059384 | AF7: 0.01564059384 | AH7: 0.01564059384 | AI7: 0.01564059384 | AJ7: 0.01564059384 | AK7: 0.01564059384 | AL7: 0.01564059384 | AM7: 0.01564059384 | AN7: 0.01564059384 | AO7: 0.01564059384 | AP7: 0.01564059384 | AQ7: 0.01564059384 | AR7: 0.01564059384 | AS7: 0.01564059384 | AT7: 0.01564059384 | AU7: 0.01564059384 | AV7: 0.01564059384 | AX7: 0.002221329823
AB8: 3 | AC8: 4 | AD8: ='Step 1'!E12 -> 4 | AE8: ='Step 1'!F12 -> 0.01514314268 | AF8: 0.01514314268 | AH8: 0.01514314268 | AI8: 0.01514314268 | AJ8: 0.01514314268 | AK8: 0.01514314268 | AL8: 0.01514314268 | AM8: 0.01514314268 | AN8: 0.01514314268 | AO8: 0.01514314268 | AP8: 0.01514314268 | AQ8: 0.01514314268 | AR8: 0.01514314268 | AS8: 0.01514314268 | AT8: 0.01514314268 | AU8: 0.01514314268 | AV8: 0.01514314268 | AX8: 0.002221329823
AB9: 4 | AC9: 5 | AD9: ='Step 1'!E13 -> 5 | AE9: ='Step 1'!F13 -> 0.01282298842 | AF9: 0.01282298842 | AH9: 0.01282298842 | AI9: 0.01282298842 | AJ9: 0.01282298842 | AK9: 0.01282298842 | AL9: 0.01282298842 | AM9: 0.01282298842 | AN9: 0.01282298842 | AO9: 0.01282298842 | AP9: 0.01282298842 | AQ9: 0.01282298842 | AR9: 0.01282298842 | AS9: 0.01282298842 | AT9: 0.01282298842 | AU9: 0.01282298842 | AV9: 0.01282298842 | AX9: 0.002221329823
AB10: 5 | AC10: 6 | AD10: ='Step 1'!E14 -> 6 | AE10: ='Step 1'!F14 -> 0.01181927014 | AF10: 0.01181927014 | AH10: 0.01181927014 | AI10: 0.01181927014 | AJ10: 0.01181927014 | AK10: 0.01181927014 | AL10: 0.01181927014 | AM10: 0.01181927014 | AN10: 0.01181927014 | AO10: 0.01181927014 | AP10: 0.01181927014 | AQ10: 0.01181927014 | AR10: 0.01181927014 | AS10: 0.01181927014 | AT10: 0.01181927014 | AU10: 0.01181927014 | AV10: 0.01181927014 | AX10: 0.002221329823
AB11: 6 | AC11: 7 | AD11: ='Step 1'!E15 -> 7 | AE11: ='Step 1'!F15 -> 0.01062214458 | AF11: 0.01062214458 | AH11: 0.01062214458 | AI11: 0.01062214458 | AJ11: 0.01062214458 | AK11: 0.01062214458 | AL11: 0.01062214458 | AM11: 0.01062214458 | AN11: 0.01062214458 | AO11: 0.01062214458 | AP11: 0.01062214458 | AQ11: 0.01062214458 | AR11: 0.01062214458 | AS11: 0.01062214458 | AT11: 0.01062214458 | AU11: 0.01062214458 | AV11: 0.01062214458 | AX11: 0.002221329823
AB12: 7 | AC12: 8 | AD12: ='Step 1'!E16 -> 8 | AE12: ='Step 1'!F16 -> 0.01078436277 | AF12: 0.01078436277 | AH12: 0.01078436277 | AI12: 0.01078436277 | AJ12: 0.01078436277 | AK12: 0.01078436277 | AL12: 0.01078436277 | AM12: 0.01078436277 | AN12: 0.01078436277 | AO12: 0.01078436277 | AP12: 0.01078436277 | AQ12: 0.01078436277 | AR12: 0.01078436277 | AS12: 0.01078436277 | AT12: 0.01078436277 | AU12: 0.01078436277 | AV12: 0.01078436277 | AX12: 0.002221329823
AB13: 8 | AC13: 9 | AD13: ='Step 1'!E17 -> 9 | AE13: ='Step 1'!F17 -> 0.01069264214 | AF13: 0.01069264214 | AH13: 0.01069264214 | AI13: 0.01069264214 | AJ13: 0.01069264214 | AK13: 0.01069264214 | AL13: 0.01069264214 | AM13: 0.01069264214 | AN13: 0.01069264214 | AO13: 0.01069264214 | AP13: 0.01069264214 | AQ13: 0.01069264214 | AR13: 0.01069264214 | AS13: 0.01069264214 | AT13: 0.01069264214 | AU13: 0.01069264214 | AV13: 0.01069264214 | AX13: 0.002221329823
AB14: 9 | AC14: 10 | AD14: ='Step 1'!E18 -> 10 | AE14: ='Step 1'!F18 -> 0.009245422404 | AF14: 0.009245422404 | AH14: 0.009245422404 | AI14: 0.009245422404 | AJ14: 0.009245422404 | AK14: 0.009245422404 | AL14: 0.009245422404 | AM14: 0.009245422404 | AN14: 0.009245422404 | AO14: 0.009245422404 | AP14: 0.009245422404 | AQ14: 0.009245422404 | AR14: 0.009245422404 | AS14: 0.009245422404 | AT14: 0.009245422404 | AU14: 0.009245422404 | AV14: 0.009245422404 | AX14: 0.002221329823
AB15: 10 | AC15: 11 | AD15: ='Step 1'!E19 -> 11 | AE15: ='Step 1'!F19 -> 0.008299889207 | AF15: 0.008299889207 | AH15: 0.008299889207 | AI15: 0.008299889207 | AJ15: 0.008299889207 | AK15: 0.008299889207 | AL15: 0.008299889207 | AM15: 0.008299889207 | AN15: 0.008299889207 | AO15: 0.008299889207 | AP15: 0.008299889207 | AQ15: 0.008299889207 | AR15: 0.008299889207 | AS15: 0.008299889207 | AT15: 0.008299889207 | AU15: 0.008299889207 | AV15: 0.008299889207 | AX15: 0.002221329823
AB16: 11 | AC16: 12 | AD16: ='Step 1'!E20 -> 12 | AE16: ='Step 1'!F20 -> 0.007565120443 | AF16: 0.007565120443 | AH16: 0.007565120443 | AI16: 0.007565120443 | AJ16: 0.007565120443 | AK16: 0.007565120443 | AL16: 0.007565120443 | AM16: 0.007565120443 | AN16: 0.007565120443 | AO16: 0.007565120443 | AP16: 0.007565120443 | AQ16: 0.007565120443 | AR16: 0.007565120443 | AS16: 0.007565120443 | AT16: 0.007565120443 | AU16: 0.007565120443 | AV16: 0.007565120443 | AX16: 0.002221329823
AB17: 12 | AC17: 13 | AD17: ='Step 1'!E21 -> 13 | AE17: ='Step 1'!F21 -> 0.007393070284 | AF17: 0.007393070284 | AH17: 0.007393070284 | AI17: 0.007393070284 | AJ17: 0.007393070284 | AK17: 0.007393070284 | AL17: 0.007393070284 | AM17: 0.007393070284 | AN17: 0.007393070284 | AO17: 0.007393070284 | AP17: 0.007393070284 | AQ17: 0.007393070284 | AR17: 0.007393070284 | AS17: 0.007393070284 | AT17: 0.007393070284 | AU17: 0.007393070284 | AV17: 0.007393070284 | AX17: 0.002221329823
AB18: 13 | AC18: 14 | AD18: ='Step 1'!E22 -> 14 | AE18: ='Step 1'!F22 -> 0.006868482895 | AF18: 0.006868482895 | AH18: 0.006868482895 | AI18: 0.006868482895 | AJ18: 0.006868482895 | AK18: 0.006868482895 | AL18: 0.006868482895 | AM18: 0.006868482895 | AN18: 0.006868482895 | AO18: 0.006868482895 | AP18: 0.006868482895 | AQ18: 0.006868482895 | AR18: 0.006868482895 | AS18: 0.006868482895 | AT18: 0.006868482895 | AU18: 0.006868482895 | AV18: 0.006868482895 | AX18: 0.002221329823
AB19: 14 | AC19: 15 | AD19: ='Step 1'!E23 -> 15 | AE19: ='Step 1'!F23 -> 0.005870014813 | AF19: 0.005870014813 | AH19: 0.005870014813 | AI19: 0.005870014813 | AJ19: 0.005870014813 | AK19: 0.005870014813 | AL19: 0.005870014813 | AM19: 0.005870014813 | AN19: 0.005870014813 | AO19: 0.005870014813 | AP19: 0.005870014813 | AQ19: 0.005870014813 | AR19: 0.005870014813 | AS19: 0.005870014813 | AT19: 0.005870014813 | AU19: 0.005870014813 | AV19: 0.005870014813 | AX19: 0.002221329823
AB20: 15 | AC20: 16 | AD20: ='Step 1'!E24 -> 16 | AE20: ='Step 1'!F24 -> 0.006094211519 | AF20: 0.006094211519 | AH20: 0.006094211519 | AI20: 0.006094211519 | AJ20: 0.006094211519 | AK20: 0.006094211519 | AL20: 0.006094211519 | AM20: 0.006094211519 | AN20: 0.006094211519 | AO20: 0.006094211519 | AP20: 0.006094211519 | AQ20: 0.006094211519 | AR20: 0.006094211519 | AS20: =IF(AR20=AR$97," ",AR20) -> 0.006094211519 | AT20: 0.006094211519 | AU20: 0.006094211519 | AV20: 0.006094211519 | AX20: 0.002221329823
AB21: 16 | AC21: 17 | AD21: ='Step 1'!E25 -> 17 | AE21: ='Step 1'!F25 -> 0.005831094064 | AF21: 0.005831094064 | AH21: 0.005831094064 | AI21: 0.005831094064 | AJ21: 0.005831094064 | AK21: 0.005831094064 | AL21: 0.005831094064 | AM21: 0.005831094064 | AN21: 0.005831094064 | AO21: 0.005831094064 | AP21: 0.005831094064 | AQ21: 0.005831094064 | AR21: 0.005831094064 | AS21: 0.005831094064 | AT21: 0.005831094064 | AU21: 0.005831094064 | AV21: 0.005831094064 | AX21: 0.002221329823
AB22: 17 | AC22: 18 | AD22: ='Step 1'!E26 -> 18 | AE22: ='Step 1'!F26 -> 0.01071066506 | AF22: 0.01071066506 | AH22: 0.01071066506 | AI22: 0.01071066506 | AJ22: 0.01071066506 | AK22: 0.01071066506 | AL22: 0.01071066506 | AM22: 0.01071066506 | AN22: 0.01071066506 | AO22: 0.01071066506 | AP22: 0.01071066506 | AQ22: 0.01071066506 | AR22: 0.01071066506 | AS22: 0.01071066506 | AT22: 0.01071066506 | AU22: 0.01071066506 | AV22: 0.01071066506 | AX22: 0.002221329823
AB23: 18 | AC23: 19 | AD23: ='Step 1'!E27 -> 19 | AE23: ='Step 1'!F27 -> 0.01777846034 | AF23: 0.01777846034 | AH23: 0.01777846034 | AI23: 0.01777846034 | AJ23: 0.01777846034 | AK23: 0.01777846034 | AL23: 0.01777846034 | AM23: 0.01777846034 | AN23: 0.01777846034 | AO23: 0.01777846034 | AP23: 0.01777846034 | AQ23: 0.01777846034 | AR23: 0.01777846034 | AS23: 0.01777846034 | AT23: 0.01777846034 | AU23: 0.01777846034 | AV23: 0.01777846034 | AX23: 0.002221329823
AB24: 19 | AC24: 20 | AD24: ='Step 1'!E28 -> 20 | AE24: ='Step 1'!F28 -> 0.01685787287 | AF24: 0.01685787287 | AH24: 0.01685787287 | AI24: 0.01685787287 | AJ24: 0.01685787287 | AK24: 0.01685787287 | AL24: 0.01685787287 | AM24: 0.01685787287 | AN24: 0.01685787287 | AO24: 0.01685787287 | AP24: 0.01685787287 | AQ24: 0.01685787287 | AR24: 0.01685787287 | AS24: 0.01685787287 | AT24: 0.01685787287 | AU24: 0.01685787287 | AV24: 0.01685787287 | AX24: 0.002221329823
AB25: 20 | AC25: 21 | AD25: ='Step 1'!E29 -> 21 | AE25: ='Step 1'!F29 -> 0.01844240418 | AF25: 0.01844240418 | AH25: 0.01844240418 | AI25: 0.01844240418 | AJ25: 0.01844240418 | AK25: 0.01844240418 | AL25: 0.01844240418 | AM25: 0.01844240418 | AN25: 0.01844240418 | AO25: 0.01844240418 | AP25: 0.01844240418 | AQ25: 0.01844240418 | AR25: 0.01844240418 | AS25: 0.01844240418 | AT25: 0.01844240418 | AU25: 0.01844240418 | AV25: 0.01844240418 | AX25: 0.002221329823
AB26: 21 | AC26: 22 | AD26: ='Step 1'!E30 -> 22 | AE26: ='Step 1'!F30 -> 0.0242588571 | AF26: 0.0242588571 | AH26: 0.0242588571 | AI26: 0.0242588571 | AJ26: 0.0242588571 | AK26: 0.0242588571 | AL26: 0.0242588571 | AM26: 0.0242588571 | AN26: 0.0242588571 | AO26: 0.0242588571 | AP26: 0.0242588571 | AQ26: 0.0242588571 | AR26: 0.0242588571 | AS26: 0.0242588571 | AT26: 0.0242588571 | AU26: 0.0242588571 | AV26: 0.0242588571 | AX26: 0.002221329823
AB27: 22 | AC27: 23 | AD27: ='Step 1'!E31 -> 23 | AE27: ='Step 1'!F31 -> 0.02811146786 | AF27: 0.02811146786 | AH27: 0.02811146786 | AI27: 0.02811146786 | AJ27: 0.02811146786 | AK27: 0.02811146786 | AL27: 0.02811146786 | AM27: 0.02811146786 | AN27: 0.02811146786 | AO27: 0.02811146786 | AP27: 0.02811146786 | AQ27: 0.02811146786 | AR27: 0.02811146786 | AS27: 0.02811146786 | AT27: 0.02811146786 | AU27: 0.02811146786 | AV27: 0.02811146786 | AX27: 0.002221329823
AB28: 23 | AC28: 24 | AD28: ='Step 1'!E32 -> 24 | AE28: ='Step 1'!F32 -> 0.02810891853 | AF28: 0.02810891853 | AH28: 0.02810891853 | AI28: 0.02810891853 | AJ28: 0.02810891853 | AK28: 0.02810891853 | AL28: 0.02810891853 | AM28: 0.02810891853 | AN28: 0.02810891853 | AO28: 0.02810891853 | AP28: 0.02810891853 | AQ28: 0.02810891853 | AR28: 0.02810891853 | AS28: 0.02810891853 | AT28: 0.02810891853 | AU28: 0.02810891853 | AV28: 0.02810891853 | AX28: 0.002221329823
AB29: 24 | AC29: 25 | AD29: ='Step 1'!E33 -> 25 | AE29: ='Step 1'!F33 -> 0.0328139538 | AF29: 0.0328139538 | AH29: 0.0328139538 | AI29: 0.0328139538 | AJ29: 0.0328139538 | AK29: 0.0328139538 | AL29: 0.0328139538 | AM29: 0.0328139538 | AN29: 0.0328139538 | AO29: 0.0328139538 | AP29: 0.0328139538 | AQ29: 0.0328139538 | AR29: 0.0328139538 | AS29: 0.0328139538 | AT29: 0.0328139538 | AU29: 0.0328139538 | AV29: 0.0328139538 | AX29: 0.002221329823
AB30: 25 | AC30: 26 | AD30: ='Step 1'!E34 -> 26 | AE30: ='Step 1'!F34 -> 0.02978052241 | AF30: 0.02978052241 | AH30: 0.02978052241 | AI30: 0.02978052241 | AJ30: 0.02978052241 | AK30: 0.02978052241 | AL30: 0.02978052241 | AM30: 0.02978052241 | AN30: 0.02978052241 | AO30: 0.02978052241 | AP30: 0.02978052241 | AQ30: 0.02978052241 | AR30: 0.02978052241 | AS30: 0.02978052241 | AT30: 0.02978052241 | AU30: 0.02978052241 | AV30: 0.02978052241 | AX30: 0.002221329823
AB31: 26 | AC31: 27 | AD31: ='Step 1'!E35 -> 27 | AE31: ='Step 1'!F35 -> 0.03086728245 | AF31: 0.03086728245 | AH31: 0.03086728245 | AI31: 0.03086728245 | AJ31: 0.03086728245 | AK31: 0.03086728245 | AL31: 0.03086728245 | AM31: 0.03086728245 | AN31: 0.03086728245 | AO31: 0.03086728245 | AP31: 0.03086728245 | AQ31: 0.03086728245 | AR31: 0.03086728245 | AS31: 0.03086728245 | AT31: 0.03086728245 | AU31: 0.03086728245 | AV31: 0.03086728245 | AX31: 0.002221329823
AB32: 27 | AC32: 28 | AD32: ='Step 1'!E36 -> 28 | AE32: ='Step 1'!F36 -> 0.02678199541 | AF32: 0.02678199541 | AH32: 0.02678199541 | AI32: 0.02678199541 | AJ32: 0.02678199541 | AK32: 0.02678199541 | AL32: 0.02678199541 | AM32: 0.02678199541 | AN32: 0.02678199541 | AO32: 0.02678199541 | AP32: 0.02678199541 | AQ32: 0.02678199541 | AR32: 0.02678199541 | AS32: 0.02678199541 | AT32: 0.02678199541 | AU32: 0.02678199541 | AV32: 0.02678199541 | AX32: 0.002221329823
AB33: 28 | AC33: 29 | AD33: ='Step 1'!E37 -> 29 | AE33: ='Step 1'!F37 -> 0.0257241948 | AF33: 0.0257241948 | AH33: 0.0257241948 | AI33: 0.0257241948 | AJ33: 0.0257241948 | AK33: 0.0257241948 | AL33: 0.0257241948 | AM33: 0.0257241948 | AN33: 0.0257241948 | AO33: 0.0257241948 | AP33: 0.0257241948 | AQ33: 0.0257241948 | AR33: 0.0257241948 | AS33: 0.0257241948 | AT33: 0.0257241948 | AU33: 0.0257241948 | AV33: 0.0257241948 | AX33: 0.002221329823
AB34: 29 | AC34: 30 | AD34: ='Step 1'!E38 -> 30 | AE34: ='Step 1'!F38 -> 0.02760154041 | AF34: 0.02760154041 | AH34: 0.02760154041 | AI34: 0.02760154041 | AJ34: 0.02760154041 | AK34: 0.02760154041 | AL34: 0.02760154041 | AM34: 0.02760154041 | AN34: 0.02760154041 | AO34: 0.02760154041 | AP34: 0.02760154041 | AQ34: 0.02760154041 | AR34: 0.02760154041 | AS34: 0.02760154041 | AT34: 0.02760154041 | AU34: 0.02760154041 | AV34: 0.02760154041 | AX34: 0.002221329823
AB35: 30 | AC35: 31 | AD35: ='Step 1'!E39 -> 31 | AE35: ='Step 1'!F39 -> 0.02534820876 | AF35: 0.02534820876 | AH35: 0.02534820876 | AI35: 0.02534820876 | AJ35: 0.02534820876 | AK35: 0.02534820876 | AL35: 0.02534820876 | AM35: 0.02534820876 | AN35: 0.02534820876 | AO35: 0.02534820876 | AP35: 0.02534820876 | AQ35: 0.02534820876 | AR35: 0.02534820876 | AS35: 0.02534820876 | AT35: 0.02534820876 | AU35: 0.02534820876 | AV35: 0.02534820876 | AX35: 0.002221329823
AB36: 31 | AC36: 32 | AD36: ='Step 1'!E40 -> 32 | AE36: ='Step 1'!F40 -> 0.02407291238 | AF36: 0.02407291238 | AH36: 0.02407291238 | AI36: 0.02407291238 | AJ36: =IF(AI36=AI$97," ",AI36) -> 0.02407291238 | AK36: 0.02407291238 | AL36: 0.02407291238 | AM36: 0.02407291238 | AN36: 0.02407291238 | AO36: 0.02407291238 | AP36: 0.02407291238 | AQ36: 0.02407291238 | AR36: 0.02407291238 | AS36: 0.02407291238 | AT36: 0.02407291238 | AU36: 0.02407291238 | AV36: 0.02407291238 | AX36: 0.002221329823
AB37: 32 | AC37: 33 | AD37: ='Step 1'!E41 -> 33 | AE37: ='Step 1'!F41 -> 0.02214434054 | AF37: 0.02214434054 | AH37: 0.02214434054 | AI37: 0.02214434054 | AJ37: 0.02214434054 | AK37: 0.02214434054 | AL37: 0.02214434054 | AM37: 0.02214434054 | AN37: 0.02214434054 | AO37: 0.02214434054 | AP37: 0.02214434054 | AQ37: 0.02214434054 | AR37: 0.02214434054 | AS37: 0.02214434054 | AT37: 0.02214434054 | AU37: 0.02214434054 | AV37: 0.02214434054 | AX37: 0.002221329823
AB38: 33 | AC38: 34 | AD38: ='Step 1'!E42 -> 34 | AE38: ='Step 1'!F42 -> 0.02219016839 | AF38: 0.02219016839 | AH38: 0.02219016839 | AI38: 0.02219016839 | AJ38: 0.02219016839 | AK38: 0.02219016839 | AL38: 0.02219016839 | AM38: 0.02219016839 | AN38: 0.02219016839 | AO38: 0.02219016839 | AP38: 0.02219016839 | AQ38: 0.02219016839 | AR38: 0.02219016839 | AS38: 0.02219016839 | AT38: 0.02219016839 | AU38: 0.02219016839 | AV38: 0.02219016839 | AX38: 0.002221329823
AB39: 34 | AC39: 35 | AD39: ='Step 1'!E43 -> 35 | AE39: ='Step 1'!F43 -> 0.02295369041 | AF39: 0.02295369041 | AH39: 0.02295369041 | AI39: 0.02295369041 | AJ39: 0.02295369041 | AK39: 0.02295369041 | AL39: 0.02295369041 | AM39: 0.02295369041 | AN39: 0.02295369041 | AO39: 0.02295369041 | AP39: 0.02295369041 | AQ39: 0.02295369041 | AR39: 0.02295369041 | AS39: 0.02295369041 | AT39: 0.02295369041 | AU39: 0.02295369041 | AV39: 0.02295369041 | AX39: 0.002221329823
AB40: 35 | AC40: 36 | AD40: ='Step 1'!E44 -> 36 | AE40: ='Step 1'!F44 -> 0.01849808437 | AF40: 0.01849808437 | AH40: 0.01849808437 | AI40: 0.01849808437 | AJ40: 0.01849808437 | AK40: 0.01849808437 | AL40: 0.01849808437 | AM40: 0.01849808437 | AN40: 0.01849808437 | AO40: 0.01849808437 | AP40: 0.01849808437 | AQ40: 0.01849808437 | AR40: 0.01849808437 | AS40: 0.01849808437 | AT40: 0.01849808437 | AU40: 0.01849808437 | AV40: 0.01849808437 | AX40: 0.002221329823
AB41: 36 | AC41: 37 | AD41: ='Step 1'!E45 -> 37 | AE41: ='Step 1'!F45 -> 0.02019800861 | AF41: 0.02019800861 | AH41: 0.02019800861 | AI41: 0.02019800861 | AJ41: 0.02019800861 | AK41: 0.02019800861 | AL41: 0.02019800861 | AM41: 0.02019800861 | AN41: 0.02019800861 | AO41: 0.02019800861 | AP41: 0.02019800861 | AQ41: 0.02019800861 | AR41: 0.02019800861 | AS41: 0.02019800861 | AT41: 0.02019800861 | AU41: 0.02019800861 | AV41: 0.02019800861 | AX41: 0.002221329823
AB42: 37 | AC42: 38 | AD42: ='Step 1'!E46 -> 38 | AE42: ='Step 1'!F46 -> 0.01493046465 | AF42: 0.01493046465 | AH42: 0.01493046465 | AI42: 0.01493046465 | AJ42: 0.01493046465 | AK42: 0.01493046465 | AL42: 0.01493046465 | AM42: 0.01493046465 | AN42: 0.01493046465 | AO42: 0.01493046465 | AP42: 0.01493046465 | AQ42: 0.01493046465 | AR42: 0.01493046465 | AS42: 0.01493046465 | AT42: 0.01493046465 | AU42: 0.01493046465 | AV42: 0.01493046465 | AX42: 0.002221329823
AB43: 38 | AC43: 39 | AD43: ='Step 1'!E47 -> 39 | AE43: ='Step 1'!F47 -> 0.01698401927 | AF43: 0.01698401927 | AH43: 0.01698401927 | AI43: 0.01698401927 | AJ43: 0.01698401927 | AK43: 0.01698401927 | AL43: 0.01698401927 | AM43: 0.01698401927 | AN43: 0.01698401927 | AO43: 0.01698401927 | AP43: 0.01698401927 | AQ43: 0.01698401927 | AR43: 0.01698401927 | AS43: 0.01698401927 | AT43: 0.01698401927 | AU43: 0.01698401927 | AV43: 0.01698401927 | AX43: 0.002221329823
AB44: 39 | AC44: 40 | AD44: ='Step 1'!E48 -> 40 | AE44: ='Step 1'!F48 -> 0.01401981189 | AF44: 0.01401981189 | AH44: 0.01401981189 | AI44: 0.01401981189 | AJ44: 0.01401981189 | AK44: 0.01401981189 | AL44: 0.01401981189 | AM44: 0.01401981189 | AN44: 0.01401981189 | AO44: 0.01401981189 | AP44: 0.01401981189 | AQ44: 0.01401981189 | AR44: 0.01401981189 | AS44: 0.01401981189 | AT44: 0.01401981189 | AU44: 0.01401981189 | AV44: 0.01401981189 | AX44: 0.002221329823
AB45: 40 | AC45: 41 | AD45: ='Step 1'!E49 -> 41 | AE45: ='Step 1'!F49 -> 0.01369201076 | AF45: 0.01369201076 | AH45: 0.01369201076 | AI45: 0.01369201076 | AJ45: 0.01369201076 | AK45: 0.01369201076 | AL45: 0.01369201076 | AM45: 0.01369201076 | AN45: 0.01369201076 | AO45: 0.01369201076 | AP45: 0.01369201076 | AQ45: 0.01369201076 | AR45: 0.01369201076 | AS45: 0.01369201076 | AT45: 0.01369201076 | AU45: 0.01369201076 | AV45: 0.01369201076 | AX45: 0.002221329823
AB46: 41 | AC46: 42 | AD46: ='Step 1'!E50 -> 42 | AE46: ='Step 1'!F50 -> 0.01229027326 | AF46: 0.01229027326 | AH46: 0.01229027326 | AI46: 0.01229027326 | AJ46: 0.01229027326 | AK46: 0.01229027326 | AL46: 0.01229027326 | AM46: 0.01229027326 | AN46: 0.01229027326 | AO46: 0.01229027326 | AP46: 0.01229027326 | AQ46: 0.01229027326 | AR46: 0.01229027326 | AS46: 0.01229027326 | AT46: 0.01229027326 | AU46: 0.01229027326 | AV46: 0.01229027326 | AX46: 0.002221329823
AB47: 42 | AC47: 43 | AD47: ='Step 1'!E51 -> 43 | AE47: ='Step 1'!F51 -> 0.0109922754 | AF47: 0.0109922754 | AH47: 0.0109922754 | AI47: 0.0109922754 | AJ47: 0.0109922754 | AK47: 0.0109922754 | AL47: 0.0109922754 | AM47: 0.0109922754 | AN47: 0.0109922754 | AO47: 0.0109922754 | AP47: 0.0109922754 | AQ47: 0.0109922754 | AR47: 0.0109922754 | AS47: 0.0109922754 | AT47: 0.0109922754 | AU47: 0.0109922754 | AV47: 0.0109922754 | AX47: 0.002221329823
AB48: 43 | AC48: 44 | AD48: ='Step 1'!E52 -> 44 | AE48: ='Step 1'!F52 -> 0.01052860559 | AF48: 0.01052860559 | AH48: 0.01052860559 | AI48: 0.01052860559 | AJ48: 0.01052860559 | AK48: 0.01052860559 | AL48: 0.01052860559 | AM48: 0.01052860559 | AN48: 0.01052860559 | AO48: 0.01052860559 | AP48: 0.01052860559 | AQ48: 0.01052860559 | AR48: 0.01052860559 | AS48: 0.01052860559 | AT48: 0.01052860559 | AU48: 0.01052860559 | AV48: 0.01052860559 | AX48: 0.002221329823
AB49: 44 | AC49: 45 | AD49: ='Step 1'!E53 -> 45 | AE49: ='Step 1'!F53 -> 0.01021332873 | AF49: 0.01021332873 | AH49: 0.01021332873 | AI49: 0.01021332873 | AJ49: 0.01021332873 | AK49: 0.01021332873 | AL49: 0.01021332873 | AM49: 0.01021332873 | AN49: 0.01021332873 | AO49: 0.01021332873 | AP49: 0.01021332873 | AQ49: 0.01021332873 | AR49: 0.01021332873 | AS49: 0.01021332873 | AT49: 0.01021332873 | AU49: 0.01021332873 | AV49: 0.01021332873 | AX49: 0.002221329823
AB50: 45 | AC50: 46 | AD50: ='Step 1'!E54 -> 46 | AE50: ='Step 1'!F54 -> 0.01080952127 | AF50: 0.01080952127 | AH50: 0.01080952127 | AI50: 0.01080952127 | AJ50: 0.01080952127 | AK50: 0.01080952127 | AL50: 0.01080952127 | AM50: 0.01080952127 | AN50: 0.01080952127 | AO50: 0.01080952127 | AP50: 0.01080952127 | AQ50: 0.01080952127 | AR50: 0.01080952127 | AS50: 0.01080952127 | AT50: 0.01080952127 | AU50: 0.01080952127 | AV50: 0.01080952127 | AX50: 0.002221329823
AB51: 46 | AC51: 47 | AD51: ='Step 1'!E55 -> 47 | AE51: ='Step 1'!F55 -> 0.008557853594 | AF51: 0.008557853594 | AH51: 0.008557853594 | AI51: 0.008557853594 | AJ51: 0.008557853594 | AK51: 0.008557853594 | AL51: 0.008557853594 | AM51: 0.008557853594 | AN51: 0.008557853594 | AO51: 0.008557853594 | AP51: 0.008557853594 | AQ51: 0.008557853594 | AR51: 0.008557853594 | AS51: 0.008557853594 | AT51: 0.008557853594 | AU51: 0.008557853594 | AV51: 0.008557853594 | AX51: 0.002221329823
AB52: 47 | AC52: 48 | AD52: ='Step 1'!E56 -> 48 | AE52: ='Step 1'!F56 -> 0.008541971905 | AF52: 0.008541971905 | AH52: 0.008541971905 | AI52: 0.008541971905 | AJ52: =IF(AI52=AI$97," ",AI52) -> 0.008541971905 | AK52: 0.008541971905 | AL52: 0.008541971905 | AM52: 0.008541971905 | AN52: 0.008541971905 | AO52: 0.008541971905 | AP52: 0.008541971905 | AQ52: 0.008541971905 | AR52: 0.008541971905 | AS52: 0.008541971905 | AT52: 0.008541971905 | AU52: 0.008541971905 | AV52: 0.008541971905 | AX52: 0.002221329823
AB53: 48 | AC53: 49 | AD53: ='Step 1'!E57 -> 49 | AE53: ='Step 1'!F57 -> 0.009090777719 | AF53: 0.009090777719 | AH53: 0.009090777719 | AI53: 0.009090777719 | AJ53: 0.009090777719 | AK53: 0.009090777719 | AL53: 0.009090777719 | AM53: 0.009090777719 | AN53: 0.009090777719 | AO53: 0.009090777719 | AP53: 0.009090777719 | AQ53: 0.009090777719 | AR53: 0.009090777719 | AS53: 0.009090777719 | AT53: 0.009090777719 | AU53: 0.009090777719 | AV53: 0.009090777719 | AX53: 0.002221329823
AB54: 49 | AC54: 50 | AD54: ='Step 1'!E58 -> 50 | AE54: ='Step 1'!F58 -> 0.008592377184 | AF54: 0.008592377184 | AH54: 0.008592377184 | AI54: 0.008592377184 | AJ54: 0.008592377184 | AK54: 0.008592377184 | AL54: 0.008592377184 | AM54: 0.008592377184 | AN54: 0.008592377184 | AO54: 0.008592377184 | AP54: 0.008592377184 | AQ54: 0.008592377184 | AR54: 0.008592377184 | AS54: 0.008592377184 | AT54: 0.008592377184 | AU54: 0.008592377184 | AV54: 0.008592377184 | AX54: 0.002221329823
AB55: 50 | AC55: 51 | AD55: ='Step 1'!E59 -> 51 | AE55: ='Step 1'!F59 -> 0.006591857645 | AF55: 0.006591857645 | AH55: 0.006591857645 | AI55: 0.006591857645 | AJ55: 0.006591857645 | AK55: 0.006591857645 | AL55: 0.006591857645 | AM55: 0.006591857645 | AN55: 0.006591857645 | AO55: 0.006591857645 | AP55: 0.006591857645 | AQ55: 0.006591857645 | AR55: 0.006591857645 | AS55: 0.006591857645 | AT55: 0.006591857645 | AU55: 0.006591857645 | AV55: 0.006591857645 | AX55: 0.002221329823
AB56: 51 | AC56: 52 | AD56: ='Step 1'!E60 -> 52 | AE56: ='Step 1'!F60 -> 0.007884424476 | AF56: 0.007884424476 | AH56: 0.007884424476 | AI56: 0.007884424476 | AJ56: 0.007884424476 | AK56: 0.007884424476 | AL56: 0.007884424476 | AM56: 0.007884424476 | AN56: 0.007884424476 | AO56: 0.007884424476 | AP56: 0.007884424476 | AQ56: 0.007884424476 | AR56: 0.007884424476 | AS56: 0.007884424476 | AT56: 0.007884424476 | AU56: 0.007884424476 | AV56: 0.007884424476 | AX56: 0.002221329823
AB57: 52 | AC57: 53 | AD57: ='Step 1'!E61 -> 53 | AE57: ='Step 1'!F61 -> 0.007294511921 | AF57: 0.007294511921 | AH57: 0.007294511921 | AI57: 0.007294511921 | AJ57: 0.007294511921 | AK57: 0.007294511921 | AL57: 0.007294511921 | AM57: 0.007294511921 | AN57: 0.007294511921 | AO57: 0.007294511921 | AP57: 0.007294511921 | AQ57: 0.007294511921 | AR57: 0.007294511921 | AS57: 0.007294511921 | AT57: 0.007294511921 | AU57: 0.007294511921 | AV57: 0.007294511921 | AX57: 0.002221329823
AB58: 53 | AC58: 54 | AD58: ='Step 1'!E62 -> 54 | AE58: ='Step 1'!F62 -> 0.006774740079 | AF58: 0.006774740079 | AH58: 0.006774740079 | AI58: 0.006774740079 | AJ58: 0.006774740079 | AK58: 0.006774740079 | AL58: 0.006774740079 | AM58: 0.006774740079 | AN58: 0.006774740079 | AO58: 0.006774740079 | AP58: 0.006774740079 | AQ58: 0.006774740079 | AR58: 0.006774740079 | AS58: 0.006774740079 | AT58: 0.006774740079 | AU58: 0.006774740079 | AV58: 0.006774740079 | AX58: 0.002221329823
AB59: 54 | AC59: 55 | AD59: ='Step 1'!E63 -> 55 | AE59: ='Step 1'!F63 -> 0.008230679543 | AF59: 0.008230679543 | AH59: 0.008230679543 | AI59: 0.008230679543 | AJ59: 0.008230679543 | AK59: 0.008230679543 | AL59: 0.008230679543 | AM59: 0.008230679543 | AN59: 0.008230679543 | AO59: 0.008230679543 | AP59: 0.008230679543 | AQ59: 0.008230679543 | AR59: 0.008230679543 | AS59: 0.008230679543 | AT59: 0.008230679543 | AU59: 0.008230679543 | AV59: 0.008230679543 | AX59: 0.002221329823
AB60: 55 | AC60: 56 | AD60: ='Step 1'!E64 -> 56 | AE60: ='Step 1'!F64 -> 0.00889144135 | AF60: 0.00889144135 | AH60: 0.00889144135 | AI60: 0.00889144135 | AJ60: 0.00889144135 | AK60: 0.00889144135 | AL60: 0.00889144135 | AM60: 0.00889144135 | AN60: 0.00889144135 | AO60: 0.00889144135 | AP60: 0.00889144135 | AQ60: 0.00889144135 | AR60: 0.00889144135 | AS60: 0.00889144135 | AT60: 0.00889144135 | AU60: 0.00889144135 | AV60: 0.00889144135 | AX60: 0.002221329823
AB61: 56 | AC61: 57 | AD61: ='Step 1'!E65 -> 57 | AE61: ='Step 1'!F65 -> 0.007601015833 | AF61: 0.007601015833 | AH61: 0.007601015833 | AI61: 0.007601015833 | AJ61: 0.007601015833 | AK61: 0.007601015833 | AL61: 0.007601015833 | AM61: 0.007601015833 | AN61: 0.007601015833 | AO61: 0.007601015833 | AP61: 0.007601015833 | AQ61: 0.007601015833 | AR61: 0.007601015833 | AS61: 0.007601015833 | AT61: 0.007601015833 | AU61: 0.007601015833 | AV61: 0.007601015833 | AX61: 0.002221329823
AB62: 57 | AC62: 58 | AD62: ='Step 1'!E66 -> 58 | AE62: ='Step 1'!F66 -> 0.006531122986 | AF62: 0.006531122986 | AH62: 0.006531122986 | AI62: 0.006531122986 | AJ62: 0.006531122986 | AK62: 0.006531122986 | AL62: 0.006531122986 | AM62: 0.006531122986 | AN62: 0.006531122986 | AO62: 0.006531122986 | AP62: 0.006531122986 | AQ62: 0.006531122986 | AR62: 0.006531122986 | AS62: 0.006531122986 | AT62: 0.006531122986 | AU62: 0.006531122986 | AV62: 0.006531122986 | AX62: 0.002221329823
AB63: 58 | AC63: 59 | AD63: ='Step 1'!E67 -> 59 | AE63: ='Step 1'!F67 -> 0.007960910246 | AF63: 0.007960910246 | AH63: 0.007960910246 | AI63: 0.007960910246 | AJ63: 0.007960910246 | AK63: 0.007960910246 | AL63: 0.007960910246 | AM63: 0.007960910246 | AN63: 0.007960910246 | AO63: 0.007960910246 | AP63: 0.007960910246 | AQ63: 0.007960910246 | AR63: 0.007960910246 | AS63: 0.007960910246 | AT63: 0.007960910246 | AU63: 0.007960910246 | AV63: 0.007960910246 | AX63: 0.002221329823
AB64: 59 | AC64: 60 | AD64: ='Step 1'!E68 -> 60 | AE64: ='Step 1'!F68 -> 0.006594800093 | AF64: 0.006594800093 | AH64: 0.006594800093 | AI64: 0.006594800093 | AJ64: 0.006594800093 | AK64: 0.006594800093 | AL64: 0.006594800093 | AM64: 0.006594800093 | AN64: 0.006594800093 | AO64: 0.006594800093 | AP64: 0.006594800093 | AQ64: 0.006594800093 | AR64: 0.006594800093 | AS64: 0.006594800093 | AT64: 0.006594800093 | AU64: 0.006594800093 | AV64: 0.006594800093 | AX64: 0.002221329823
AB65: 60 | AC65: 61 | AD65: ='Step 1'!E69 -> 61 | AE65: ='Step 1'!F69 -> 0.008556242451 | AF65: 0.008556242451 | AH65: 0.008556242451 | AI65: 0.008556242451 | AJ65: 0.008556242451 | AK65: 0.008556242451 | AL65: 0.008556242451 | AM65: 0.008556242451 | AN65: 0.008556242451 | AO65: 0.008556242451 | AP65: 0.008556242451 | AQ65: 0.008556242451 | AR65: 0.008556242451 | AS65: 0.008556242451 | AT65: 0.008556242451 | AU65: 0.008556242451 | AV65: 0.008556242451 | AX65: 0.002221329823
AB66: 61 | AC66: 62 | AD66: ='Step 1'!E70 -> 62 | AE66: ='Step 1'!F70 -> 0.005984712644 | AF66: 0.005984712644 | AH66: 0.005984712644 | AI66: 0.005984712644 | AJ66: 0.005984712644 | AK66: 0.005984712644 | AL66: 0.005984712644 | AM66: 0.005984712644 | AN66: 0.005984712644 | AO66: 0.005984712644 | AP66: 0.005984712644 | AQ66: 0.005984712644 | AR66: 0.005984712644 | AS66: 0.005984712644 | AT66: 0.005984712644 | AU66: 0.005984712644 | AV66: 0.005984712644 | AX66: 0.002221329823
AB67: 62 | AC67: 63 | AD67: ='Step 1'!E71 -> 63 | AE67: ='Step 1'!F71 -> 0.005823769539 | AF67: 0.005823769539 | AH67: 0.005823769539 | AI67: 0.005823769539 | AJ67: 0.005823769539 | AK67: 0.005823769539 | AL67: 0.005823769539 | AM67: 0.005823769539 | AN67: 0.005823769539 | AO67: 0.005823769539 | AP67: 0.005823769539 | AQ67: 0.005823769539 | AR67: 0.005823769539 | AS67: 0.005823769539 | AT67: 0.005823769539 | AU67: 0.005823769539 | AV67: 0.005823769539 | AX67: 0.002221329823
AB68: 63 | AC68: 64 | AD68: ='Step 1'!E72 -> 64 | AE68: ='Step 1'!F72 -> 0.006603193428 | AF68: 0.006603193428 | AH68: 0.006603193428 | AI68: 0.006603193428 | AJ68: =IF(AI68=AI$97," ",AI68) -> 0.006603193428 | AK68: 0.006603193428 | AL68: 0.006603193428 | AM68: 0.006603193428 | AN68: 0.006603193428 | AO68: 0.006603193428 | AP68: 0.006603193428 | AQ68: 0.006603193428 | AR68: 0.006603193428 | AS68: 0.006603193428 | AT68: 0.006603193428 | AU68: 0.006603193428 | AV68: 0.006603193428 | AX68: 0.002221329823
AB69: 64 | AC69: 65 | AD69: ='Step 1'!E73 -> 65 | AE69: ='Step 1'!F73 -> 0.006005997222 | AF69: 0.006005997222 | AH69: 0.006005997222 | AI69: 0.006005997222 | AJ69: 0.006005997222 | AK69: 0.006005997222 | AL69: 0.006005997222 | AM69: 0.006005997222 | AN69: 0.006005997222 | AO69: 0.006005997222 | AP69: 0.006005997222 | AQ69: 0.006005997222 | AR69: 0.006005997222 | AS69: 0.006005997222 | AT69: 0.006005997222 | AU69: 0.006005997222 | AV69: 0.006005997222 | AX69: 0.002221329823
AB70: 65 | AC70: 66 | AD70: ='Step 1'!E74 -> 66 | AE70: ='Step 1'!F74 -> 0.006832640956 | AF70: =IF(AE70>0,AE70," ") -> 0.006832640956 | AH70: =AF70 -> 0.006832640956 | AI70: =IF(AH70=AH$97," ",AH70) -> 0.006832640956 | AJ70: 0.006832640956 | AK70: 0.006832640956 | AL70: 0.006832640956 | AM70: 0.006832640956 | AN70: 0.006832640956 | AO70: 0.006832640956 | AP70: 0.006832640956 | AQ70: 0.006832640956 | AR70: 0.006832640956 | AS70: 0.006832640956 | AT70: 0.006832640956 | AU70: 0.006832640956 | AV70: 0.006832640956 | AX70: =$AI$104 -> 0.002221329823
AB71: =AB70+1 -> 66 | AC71: 67 | AD71: ='Step 1'!E75 -> 67 | AE71: ='Step 1'!F75 -> 0.006626391789 | AF71: 0.006626391789 | AH71: 0.006626391789 | AI71: 0.006626391789 | AJ71: 0.006626391789 | AK71: 0.006626391789 | AL71: 0.006626391789 | AM71: 0.006626391789 | AN71: 0.006626391789 | AO71: 0.006626391789 | AP71: 0.006626391789 | AQ71: 0.006626391789 | AR71: 0.006626391789 | AS71: 0.006626391789 | AT71: 0.006626391789 | AU71: 0.006626391789 | AV71: 0.006626391789 | AX71: 0.002221329823
AB72: 67 | AC72: 68 | AD72: ='Step 1'!E76 -> 68 | AE72: ='Step 1'!F76 -> 0.003770843417 | AF72: 0.003770843417 | AH72: 0.003770843417 | AI72: 0.003770843417 | AJ72: 0.003770843417 | AK72: 0.003770843417 | AL72: 0.003770843417 | AM72: 0.003770843417 | AN72: 0.003770843417 | AO72: 0.003770843417 | AP72: 0.003770843417 | AQ72: 0.003770843417 | AR72: 0.003770843417 | AS72: 0.003770843417 | AT72: 0.003770843417 | AU72: 0.003770843417 | AV72: 0.003770843417 | AX72: 0.002221329823
AB73: =AB72+1 -> 68 | AC73: 69 | AD73: ='Step 1'!E77 -> 69 | AE73: ='Step 1'!F77 -> 0.003303325012 | AF73: 0.003303325012 | AH73: 0.003303325012 | AI73: 0.003303325012 | AJ73: 0.003303325012 | AK73: 0.003303325012 | AL73: 0.003303325012 | AM73: 0.003303325012 | AN73: 0.003303325012 | AO73: 0.003303325012 | AP73: 0.003303325012 | AQ73: 0.003303325012 | AR73: 0.003303325012 | AX73: 0.002221329823
AB74: =AB73+1 -> 69 | AC74: 70 | AD74: ='Step 1'!E78 -> 70 | AE74: ='Step 1'!F78 -> 0.003682740214 | AF74: 0.003682740214 | AH74: 0.003682740214 | AI74: 0.003682740214 | AJ74: 0.003682740214 | AK74: 0.003682740214 | AL74: 0.003682740214 | AM74: 0.003682740214 | AN74: 0.003682740214 | AO74: 0.003682740214 | AP74: 0.003682740214 | AQ74: 0.003682740214 | AR74: 0.003682740214 | AS74: 0.003682740214 | AT74: 0.003682740214 | AU74: 0.003682740214 | AX74: 0.002221329823
AB75: 70 | AC75: 71 | AD75: ='Step 1'!E79 -> 71 | AE75: ='Step 1'!F79 -> 0.004768430156 | AF75: 0.004768430156 | AH75: 0.004768430156 | AI75: 0.004768430156 | AJ75: 0.004768430156 | AK75: 0.004768430156 | AL75: 0.004768430156 | AM75: 0.004768430156 | AN75: 0.004768430156 | AO75: 0.004768430156 | AP75: 0.004768430156 | AQ75: 0.004768430156 | AR75: 0.004768430156 | AS75: 0.004768430156 | AT75: 0.004768430156 | AU75: 0.004768430156 | AV75: 0.004768430156 | AX75: 0.002221329823
AB76: 71 | AC76: 72 | AD76: ='Step 1'!E80 -> 72 | AE76: ='Step 1'!F80 -> 0.003265792749 | AF76: 0.003265792749 | AH76: 0.003265792749 | AI76: 0.003265792749 | AJ76: 0.003265792749 | AK76: 0.003265792749 | AL76: 0.003265792749 | AM76: 0.003265792749 | AN76: 0.003265792749 | AO76: 0.003265792749 | AP76: 0.003265792749 | AQ76: 0.003265792749 | AX76: 0.002221329823
AB77: 72 | AC77: 73 | AD77: ='Step 1'!E81 -> 73 | AE77: ='Step 1'!F81 -> 0.003785836556 | AF77: 0.003785836556 | AH77: 0.003785836556 | AI77: 0.003785836556 | AJ77: 0.003785836556 | AK77: 0.003785836556 | AL77: 0.003785836556 | AM77: 0.003785836556 | AN77: 0.003785836556 | AO77: 0.003785836556 | AP77: 0.003785836556 | AQ77: 0.003785836556 | AR77: 0.003785836556 | AS77: 0.003785836556 | AT77: 0.003785836556 | AU77: 0.003785836556 | AV77: 0.003785836556 | AX77: 0.002221329823
AB78: 73 | AC78: 74 | AD78: ='Step 1'!E82 -> 74 | AE78: ='Step 1'!F82 -> 0.003133387649 | AF78: 0.003133387649 | AH78: 0.003133387649 | AI78: 0.003133387649 | AJ78: 0.003133387649 | AK78: 0.003133387649 | AL78: 0.003133387649 | AM78: 0.003133387649 | AN78: 0.003133387649 | AO78: 0.003133387649 | AP78: 0.003133387649 | AX78: 0.002221329823
AB79: 74 | AC79: 75 | AD79: ='Step 1'!E83 -> 75 | AE79: ='Step 1'!F83 -> 0.003358550681 | AF79: 0.003358550681 | AH79: 0.003358550681 | AI79: 0.003358550681 | AJ79: 0.003358550681 | AK79: 0.003358550681 | AL79: 0.003358550681 | AM79: 0.003358550681 | AN79: 0.003358550681 | AO79: 0.003358550681 | AP79: 0.003358550681 | AQ79: 0.003358550681 | AR79: 0.003358550681 | AS79: 0.003358550681 | AT79: 0.003358550681 | AX79: 0.002221329823
AB80: 75 | AC80: 76 | AD80: ='Step 1'!E84 -> 76 | AE80: ='Step 1'!F84 -> 0.003315314349 | AF80: 0.003315314349 | AH80: 0.003315314349 | AI80: 0.003315314349 | AJ80: 0.003315314349 | AK80: 0.003315314349 | AL80: 0.003315314349 | AM80: 0.003315314349 | AN80: 0.003315314349 | AO80: 0.003315314349 | AP80: 0.003315314349 | AQ80: 0.003315314349 | AR80: 0.003315314349 | AS80: 0.003315314349 | AX80: 0.002221329823
AB81: 76 | AC81: 77 | AD81: ='Step 1'!E85 -> 77 | AE81: ='Step 1'!F85 -> 0.002055675773 | AF81: 0.002055675773 | AH81: 0.002055675773 | AI81: 0.002055675773 | AX81: 0.002221329823
AB82: 77 | AC82: 78 | AD82: ='Step 1'!E86 -> 78 | AE82: ='Step 1'!F86 -> 0.004945519132 | AF82: 0.004945519132 | AH82: 0.004945519132 | AI82: 0.004945519132 | AJ82: 0.004945519132 | AK82: 0.004945519132 | AL82: 0.004945519132 | AM82: 0.004945519132 | AN82: 0.004945519132 | AO82: 0.004945519132 | AP82: 0.004945519132 | AQ82: 0.004945519132 | AR82: 0.004945519132 | AS82: 0.004945519132 | AT82: 0.004945519132 | AU82: 0.004945519132 | AV82: 0.004945519132 | AX82: 0.002221329823
AB83: 78 | AC83: 79 | AD83: ='Step 1'!E87 -> 79 | AE83: ='Step 1'!F87 -> 0.002354386915 | AF83: 0.002354386915 | AH83: 0.002354386915 | AI83: 0.002354386915 | AJ83: 0.002354386915 | AK83: 0.002354386915 | AX83: 0.002221329823
AB84: 79 | AC84: 80 | AD84: ='Step 1'!E88 -> 80 | AE84: ='Step 1'!F88 -> 0.003105722981 | AF84: 0.003105722981 | AH84: 0.003105722981 | AI84: 0.003105722981 | AJ84: 0.003105722981 | AK84: 0.003105722981 | AL84: 0.003105722981 | AM84: 0.003105722981 | AN84: 0.003105722981 | AO84: 0.003105722981 | AX84: 0.002221329823
AB85: 80 | AC85: 81 | AD85: ='Step 1'!E89 -> 81 | AE85: ='Step 1'!F89 -> 0.002082452578 | AF85: 0.002082452578 | AH85: 0.002082452578 | AI85: 0.002082452578 | AJ85: 0.002082452578 | AX85: 0.002221329823
AB86: 81 | AC86: 82 | AD86: ='Step 1'!E90 -> 82 | AE86: ='Step 1'!F90 -> 0.002050944643 | AF86: 0.002050944643 | AH86: 0.002050944643 | AX86: 0.002221329823
AB87: 82 | AC87: 83 | AD87: ='Step 1'!E91 -> 83 | AE87: ='Step 1'!F91 -> 0.005339693094 | AF87: 0.005339693094 | AH87: 0.005339693094 | AI87: 0.005339693094 | AJ87: 0.005339693094 | AK87: 0.005339693094 | AL87: =IF(AK87=AK$97," ",AK87) -> 0.005339693094 | AM87: 0.005339693094 | AN87: 0.005339693094 | AO87: 0.005339693094 | AP87: 0.005339693094 | AQ87: 0.005339693094 | AR87: 0.005339693094 | AS87: 0.005339693094 | AT87: 0.005339693094 | AU87: 0.005339693094 | AV87: 0.005339693094 | AX87: 0.002221329823
AB88: 83 | AC88: 84 | AD88: ='Step 1'!E92 -> 84 | AE88: ='Step 1'!F92 -> 0.002577398257 | AF88: 0.002577398257 | AH88: 0.002577398257 | AI88: 0.002577398257 | AJ88: 0.002577398257 | AK88: =IF(AJ88=AJ$97," ",AJ88) -> 0.002577398257 | AL88: 0.002577398257 | AM88: 0.002577398257 | AX88: 0.002221329823
AB89: =AB88+1 -> 84 | AC89: 85 | AD89: ='Step 1'!E93 -> 85 | AE89: ='Step 1'!F93 -> 0.002704312774 | AF89: 0.002704312774 | AH89: 0.002704312774 | AI89: 0.002704312774 | AJ89: 0.002704312774 | AK89: 0.002704312774 | AL89: 0.002704312774 | AM89: 0.002704312774 | AN89: 0.002704312774 | AX89: 0.002221329823
AB90: =AB89+1 -> 85 | AC90: 86 | AD90: ='Step 1'!E94 -> 86 | AE90: ='Step 1'!F94 -> 0.004917637084 | AF90: =IF(AE90>0,AE90," ") -> 0.004917637084 | AH90: 0.004917637084 | AI90: =IF(AH90=AH$97," ",AH90) -> 0.004917637084 | AJ90: =IF(AI90=AI$97," ",AI90) -> 0.004917637084 | AK90: =IF(AJ90=AJ$97," ",AJ90) -> 0.004917637084 | AL90: =IF(AK90=AK$97," ",AK90) -> 0.004917637084 | AM90: =IF(AL90=AL$97," ",AL90) -> 0.004917637084 | AN90: =IF(AM90=AM$97," ",AM90) -> 0.004917637084 | AO90: =IF(AN90=AN$97," ",AN90) -> 0.004917637084 | AP90: =IF(AO90=AO$97," ",AO90) -> 0.004917637084 | AQ90: =IF(AP90=AP$97," ",AP90) -> 0.004917637084 | AR90: =IF(AQ90=AQ$97," ",AQ90) -> 0.004917637084 | AS90: =IF(AR90=AR$97," ",AR90) -> 0.004917637084 | AT90: =IF(AS90=AS$97," ",AS90) -> 0.004917637084 | AU90: =IF(AT90=AT$97," ",AT90) -> 0.004917637084 | AV90: =IF(AU90=AU$97," ",AU90) -> 0.004917637084 | AX90: 0.002221329823
AB91: 86 | AC91: 87 | AD91: ='Step 1'!E95 -> 87 | AE91: ='Step 1'!F95 -> 0.002563189206 | AF91: 0.002563189206 | AH91: 0.002563189206 | AI91: 0.002563189206 | AJ91: 0.002563189206 | AK91: 0.002563189206 | AL91: 0.002563189206 | AX91: 0.002221329823
AB92: 87 | AC92: 88 | AD92: ='Step 1'!E96 -> 88 | AE92: ='Step 1'!F96 -> 0.004947698351 | AF92: 0.004947698351 | AH92: 0.004947698351 | AI92: 0.004947698351 | AJ92: 0.004947698351 | AK92: 0.004947698351 | AL92: 0.004947698351 | AM92: 0.004947698351 | AN92: 0.004947698351 | AO92: 0.004947698351 | AP92: 0.004947698351 | AQ92: 0.004947698351 | AR92: 0.004947698351 | AS92: 0.004947698351 | AT92: 0.004947698351 | AU92: 0.004947698351 | AV92: 0.004947698351 | AX92: 0.002221329823
AB93: 88 | AC93: 89 | AD93: ='Step 1'!E97 -> 89 | AE93: ='Step 1'!F97 -> 0.004703389061 | AF93: 0.004703389061 | AH93: 0.004703389061 | AI93: 0.004703389061 | AJ93: 0.004703389061 | AK93: 0.004703389061 | AL93: 0.004703389061 | AM93: 0.004703389061 | AN93: 0.004703389061 | AO93: 0.004703389061 | AP93: 0.004703389061 | AQ93: 0.004703389061 | AR93: 0.004703389061 | AS93: 0.004703389061 | AT93: 0.004703389061 | AU93: 0.004703389061 | AV93: 0.004703389061 | AX93: 0.002221329823
AB94: 89 | AC94: 90 | AD94: ='Step 1'!E98 -> 90 | AE94: ='Step 1'!F98 -> 0 | AF94: =IF(AE94>0,AE94," ") ->  | AX94: 0.002221329823
AH96: Lowest values
AH97: =MIN(AH5:AH94) -> 0.002050944643 | AI97: =MIN(AI5:AI94) -> 0.002055675773 | AJ97: 0.002082452578 | AK97: 0.002354386915 | AL97: 0.002563189206 | AM97: 0.002577398257 | AN97: 0.002704312774 | AO97: 0.003105722981 | AP97: 0.003133387649 | AQ97: 0.003265792749 | AR97: 0.003303325012 | AS97: 0.003315314349 | AT97: 0.003358550681 | AU97: 0.003682740214 | AV97: 0.003770843417
AH99: Means of lowest values
AH100: Lowest value | AI100: 2nd lowest | AJ100: 3rd lowest | AK100: 4th lowest | AL100: 5th lowest | AM100: 6th lowest | AN100: 7th lowest | AO100: 8th lowest | AP100: 9th lowest | AQ100: 10th lowest | AR100: 11th lowest | AS100: 12th lowest | AT100: 13th lowest | AU100: 14th lowest | AV100: 15th lowest
AH101: =AVERAGE($AH97:AH97) -> 0.002050944643 | AI101: =AVERAGE($AH97:AI97) -> 0.002053310208 | AJ101: =AVERAGE($AH97:AJ97) -> 0.002063024331 | AK101: =AVERAGE($AH97:AK97) -> 0.002135864977 | AL101: =AVERAGE($AH97:AL97) -> 0.002221329823 | AM101: =AVERAGE($AH97:AM97) -> 0.002280674562 | AN101: =AVERAGE($AH97:AN97) -> 0.002341194307 | AO101: =AVERAGE($AH97:AO97) -> 0.002436760391 | AP101: =AVERAGE($AH97:AP97) -> 0.00251416342 | AQ101: =AVERAGE($AH97:AQ97) -> 0.002589326353 | AR101: =AVERAGE($AH97:AR97) -> 0.002654235322 | AS101: =AVERAGE($AH97:AS97) -> 0.002709325241 | AT101: =AVERAGE($AH97:AT97) -> 0.002759265659 | AU101: =AVERAGE($AH97:AU97) -> 0.002825228127 | AV101: =AVERAGE($AH97:AV97) -> 0.002888269147
AH103: User wants to use mean of the lowest | AL103: =H4 -> 5 | AM103: values.
AH104: This is: | AI104: =OFFSET(AG101,0,AL103) -> 0.002221329823

Sheet Step 3
A1: Step 3: Estimate the childhood curve parameters | AC1: Childhood curve is fitted via linearisation. M1 = a1 exp(-alpha1 x) is linearised to Y (ln m1) = C (ln a1) + M (-alpha1) X (x)
AK2: Fitted over ages | AL2: =E4 -> 1 | AM2: to | AN2: =H4 -> 16
A4: Fit the childhood curve over ages | E4: 1 | F4: to | H4: 16 | AC4: Age 1 year before census | AD4: Age at census | AE4: Mean age | AF4: Probability scaled to unity | AG4: Constant | AH4: m1 (m - c) | AJ4: Select if ≥ lower age | AK4: Select if ≤ upper age | AL4: Select? | AM4: X (mean age) | AN4: m1 (m - c) | AO4: Y (ln m1) | AQ4: Childhood | AS4: Total so far
AC5: 0 | AD5: 1 | AE5: ='Step 1'!E9 -> 1 | AF5: ='Step 1'!F9 -> 0.01847034265 | AG5: ='Step 2'!AX5 -> 0.002221329823 | AH5: =AF5-AG5 -> 0.01624901282 | AJ5: =IF($AL$2<=AE5,1,0) -> 1 | AK5: =IF($AN$2>=AE5,1,0) -> 1 | AL5: =IF(AJ5+AK5=2,1,0) -> 1 | AM5: =IF(AL5=1,AE5," ") -> 1 | AN5: =IF(AL5=1,AH5," ") -> 0.01624901282 | AO5: =IF(AL5=1,LN(AH5)," ") -> -4.119723121 | AQ5: =$AO$29*EXP(-$AO$30*AE5) -> 0.01639886133 | AS5: =AQ5+AG5 -> 0.01862019116
AC6: =AC5+1 -> 1 | AD6: =AD5+1 -> 2 | AE6: ='Step 1'!E10 -> 2 | AF6: ='Step 1'!F10 -> 0.01682967443 | AG6: ='Step 2'!AX6 -> 0.002221329823 | AH6: =AF6-AG6 -> 0.0146083446 | AJ6: =IF($AL$2<=AE6,1,0) -> 1 | AK6: =IF($AN$2>=AE6,1,0) -> 1 | AL6: =IF(AJ6+AK6=2,1,0) -> 1 | AM6: =IF(AL6=1,AE6," ") -> 2 | AN6: =IF(AL6=1,AH6," ") -> 0.0146083446 | AO6: =IF(AL6=1,LN(AH6)," ") -> -4.226162365 | AQ6: =$AO$29*EXP(-$AO$30*AE6) -> 0.01485844133 | AS6: =AQ6+AG6 -> 0.01707977116
AC7: =AC6+1 -> 2 | AD7: 3 | AE7: ='Step 1'!E11 -> 3 | AF7: ='Step 1'!F11 -> 0.01564059384 | AG7: ='Step 2'!AX7 -> 0.002221329823 | AH7: =AF7-AG7 -> 0.01341926402 | AJ7: 1 | AK7: 1 | AL7: 1 | AM7: 3 | AN7: 0.01341926402 | AO7: -4.311063991 | AQ7: 0.01346272002 | AS7: 0.01568404985
AC8: 3 | AD8: 4 | AE8: ='Step 1'!E12 -> 4 | AF8: ='Step 1'!F12 -> 0.01514314268 | AG8: ='Step 2'!AX8 -> 0.002221329823 | AH8: 0.01292181286 | AJ8: 1 | AK8: 1 | AL8: 1 | AM8: 4 | AN8: 0.01292181286 | AO8: -4.348838476 | AQ8: 0.0121981052 | AS8: 0.01441943502
AC9: 4 | AD9: 5 | AE9: ='Step 1'!E13 -> 5 | AF9: ='Step 1'!F13 -> 0.01282298842 | AG9: ='Step 2'!AX9 -> 0.002221329823 | AH9: 0.01060165859 | AJ9: 1 | AK9: 1 | AL9: 1 | AM9: 5 | AN9: 0.01060165859 | AO9: -4.546744819 | AQ9: 0.01105228142 | AS9: 0.01327361125
AC10: 5 | AD10: 6 | AE10: ='Step 1'!E14 -> 6 | AF10: ='Step 1'!F14 -> 0.01181927014 | AG10: ='Step 2'!AX10 -> 0.002221329823 | AH10: 0.009597940322 | AJ10: 1 | AK10: 1 | AL10: 1 | AM10: 6 | AN10: 0.009597940322 | AO10: -4.646206753 | AQ10: 0.01001409011 | AS10: 0.01223541993
AC11: 6 | AD11: 7 | AE11: ='Step 1'!E15 -> 7 | AF11: ='Step 1'!F15 -> 0.01062214458 | AG11: ='Step 2'!AX11 -> 0.002221329823 | AH11: 0.008400814761 | AJ11: 1 | AK11: 1 | AL11: 1 | AM11: 7 | AN11: 0.008400814761 | AO11: -4.779426582 | AQ11: 0.009073420855 | AS11: 0.01129475068
AC12: 7 | AD12: 8 | AE12: ='Step 1'!E16 -> 8 | AF12: ='Step 1'!F16 -> 0.01078436277 | AG12: ='Step 2'!AX12 -> 0.002221329823 | AH12: 0.008563032943 | AJ12: 1 | AK12: 1 | AL12: 1 | AM12: 8 | AN12: 0.008563032943 | AO12: -4.760300836 | AQ12: 0.008221112962 | AS12: 0.01044244278
AC13: 8 | AD13: 9 | AE13: ='Step 1'!E17 -> 9 | AF13: ='Step 1'!F17 -> 0.01069264214 | AG13: ='Step 2'!AX13 -> 0.002221329823 | AH13: 0.008471312315 | AJ13: 1 | AK13: 1 | AL13: 1 | AM13: 9 | AN13: 0.008471312315 | AO13: -4.771069846 | AQ13: 0.007448866245 | AS13: 0.009670196068
AC14: 9 | AD14: 10 | AE14: ='Step 1'!E18 -> 10 | AF14: ='Step 1'!F18 -> 0.009245422404 | AG14: ='Step 2'!AX14 -> 0.002221329823 | AH14: 0.007024092581 | AJ14: 1 | AK14: 1 | AL14: 1 | AM14: 10 | AN14: 0.007024092581 | AO14: -4.958409242 | AQ14: 0.006749160191 | AS14: 0.008970490014
AC15: 10 | AD15: 11 | AE15: ='Step 1'!E19 -> 11 | AF15: ='Step 1'!F19 -> 0.008299889207 | AG15: ='Step 2'!AX15 -> 0.002221329823 | AH15: 0.006078559384 | AJ15: 1 | AK15: 1 | AL15: 1 | AM15: 11 | AN15: 0.006078559384 | AO15: -5.102987555 | AQ15: 0.006115180726 | AS15: 0.008336510549
AC16: 11 | AD16: 12 | AE16: ='Step 1'!E20 -> 12 | AF16: ='Step 1'!F20 -> 0.007565120443 | AG16: ='Step 2'!AX16 -> 0.002221329823 | AH16: 0.00534379062 | AJ16: 1 | AK16: 1 | AL16: 1 | AM16: 12 | AN16: 0.00534379062 | AO16: -5.231820024 | AQ16: 0.005540753849 | AS16: 0.007762083672
AC17: 12 | AD17: 13 | AE17: ='Step 1'!E21 -> 13 | AF17: ='Step 1'!F21 -> 0.007393070284 | AG17: ='Step 2'!AX17 -> 0.002221329823 | AH17: 0.005171740461 | AJ17: 1 | AK17: 1 | AL17: 1 | AM17: 13 | AN17: 0.005171740461 | AO17: -5.264546001 | AQ17: 0.005020285515 | AS17: 0.007241615338
AC18: 13 | AD18: 14 | AE18: ='Step 1'!E22 -> 14 | AF18: ='Step 1'!F22 -> 0.006868482895 | AG18: ='Step 2'!AX18 -> 0.002221329823 | AH18: 0.004647153072 | AJ18: 1 | AK18: 1 | AL18: 1 | AM18: 14 | AN18: 0.004647153072 | AO18: -5.371500489 | AQ18: 0.00454870715 | AS18: 0.006770036973
AC19: 14 | AD19: 15 | AE19: ='Step 1'!E23 -> 15 | AF19: ='Step 1'!F23 -> 0.005870014813 | AG19: ='Step 2'!AX19 -> 0.002221329823 | AH19: 0.00364868499 | AJ19: 1 | AK19: 1 | AL19: 1 | AM19: 15 | AN19: 0.00364868499 | AO19: -5.613388453 | AQ19: 0.004121426296 | AS19: 0.006342756119
AC20: 15 | AD20: 16 | AE20: ='Step 1'!E24 -> 16 | AF20: ='Step 1'!F24 -> 0.006094211519 | AG20: ='Step 2'!AX20 -> 0.002221329823 | AH20: 0.003872881696 | AJ20: 1 | AK20: 1 | AL20: 1 | AM20: 16 | AN20: 0.003872881696 | AO20: -5.553756425 | AQ20: 0.003734281886 | AS20: 0.005955611709
AC21: 16 | AD21: 17 | AE21: ='Step 1'!E25 -> 17 | AF21: ='Step 1'!F25 -> 0.005831094064 | AG21: ='Step 2'!AX21 -> 0.002221329823 | AH21: 0.003609764241 | AJ21: 1 | AK21: 0 | AL21: 0 | AQ21: 0.00338350372 | AS21: 0.005604833543
AC22: 17 | AD22: 18 | AE22: ='Step 1'!E26 -> 18 | AF22: ='Step 1'!F26 -> 0.01071066506 | AG22: ='Step 2'!AX22 -> 0.002221329823 | AH22: 0.008489335241 | AJ22: 1 | AK22: 0 | AL22: 0 | AQ22: 0.003065675751 | AS22: 0.005287005574
AC23: 18 | AD23: 19 | AE23: ='Step 1'!E27 -> 19 | AF23: ='Step 1'!F27 -> 0.01777846034 | AG23: ='Step 2'!AX23 -> 0.002221329823 | AH23: 0.01555713051 | AJ23: 1 | AK23: 0 | AL23: 0 | AQ23: 0.002777702815 | AS23: 0.004999032638
AC24: 19 | AD24: 20 | AE24: ='Step 1'!E28 -> 20 | AF24: ='Step 1'!F28 -> 0.01685787287 | AG24: ='Step 2'!AX24 -> 0.002221329823 | AH24: 0.01463654305 | AJ24: 1 | AK24: 0 | AL24: 0 | AQ24: 0.002516780493 | AS24: 0.004738110316
AC25: =AC24+1 -> 20 | AD25: =AD24+1 -> 21 | AE25: ='Step 1'!E29 -> 21 | AF25: ='Step 1'!F29 -> 0.01844240418 | AG25: ='Step 2'!AX25 -> 0.002221329823 | AH25: 0.01622107436 | AQ25: 0.002280367798 | AS25: 0.004501697621
AC26: 21 | AD26: 22 | AE26: ='Step 1'!E30 -> 22 | AF26: ='Step 1'!F30 -> 0.0242588571 | AG26: ='Step 2'!AX26 -> 0.002221329823 | AH26: 0.02203752728 | AN26: Slope (M) | AO26: =SLOPE(AO5:AO24,AM5:AM24) -> -0.09864375783 | AQ26: 0.002066162428 | AS26: 0.004287492251
AC27: 22 | AD27: 23 | AE27: ='Step 1'!E31 -> 23 | AF27: ='Step 1'!F31 -> 0.02811146786 | AG27: ='Step 2'!AX27 -> 0.002221329823 | AH27: 0.02589013804 | AN27: Intercept (C) | AO27: =INTERCEPT(AO5:AO24,AM5:AM24) -> -4.01189962 | AQ27: 0.001872078347 | AS27: 0.00409340817
AC28: 23 | AD28: 24 | AE28: ='Step 1'!E32 -> 24 | AF28: ='Step 1'!F32 -> 0.02810891853 | AG28: ='Step 2'!AX28 -> 0.002221329823 | AH28: 0.02588758871 | AQ28: 0.001696225471 | AS28: 0.003917555294
AC29: 24 | AD29: 25 | AE29: ='Step 1'!E33 -> 25 | AF29: ='Step 1'!F33 -> 0.0328139538 | AG29: ='Step 2'!AX29 -> 0.002221329823 | AH29: 0.03059262398 | AN29: a1 | AO29: =EXP(AO27) -> 0.01809898138 | AQ29: 0.00153689126 | AS29: 0.003758221083
AC30: 25 | AD30: 26 | AE30: ='Step 1'!E34 -> 26 | AF30: ='Step 1'!F34 -> 0.02978052241 | AG30: ='Step 2'!AX30 -> 0.002221329823 | AH30: 0.02755919259 | AN30: alpha1 | AO30: =-AO26 -> 0.09864375783 | AQ30: 0.001392524039 | AS30: 0.003613853862
B31: a1 | C31: =AO29 -> 0.01809898138 | AC31: 26 | AD31: 27 | AE31: ='Step 1'!E35 -> 27 | AF31: ='Step 1'!F35 -> 0.03086728245 | AG31: ='Step 2'!AX31 -> 0.002221329823 | AH31: 0.02864595262 | AQ31: 0.001261717891 | AS31: 0.003483047714
B32: alpha1 | C32: =AO30 -> 0.09864375783 | AC32: 27 | AD32: 28 | AE32: ='Step 1'!E36 -> 28 | AF32: ='Step 1'!F36 -> 0.02678199541 | AG32: ='Step 2'!AX32 -> 0.002221329823 | AH32: 0.02456066558 | AQ32: 0.001143198962 | AS32: 0.003364528785
AC33: 28 | AD33: 29 | AE33: ='Step 1'!E37 -> 29 | AF33: ='Step 1'!F37 -> 0.0257241948 | AG33: ='Step 2'!AX33 -> 0.002221329823 | AH33: 0.02350286498 | AQ33: 0.001035813059 | AS33: 0.003257142882
AC34: 29 | AD34: 30 | AE34: ='Step 1'!E38 -> 30 | AF34: ='Step 1'!F38 -> 0.02760154041 | AG34: ='Step 2'!AX34 -> 0.002221329823 | AH34: 0.02538021058 | AQ34: 0.0009385144036 | AS34: 0.003159844227
AC35: 30 | AD35: 31 | AE35: ='Step 1'!E39 -> 31 | AF35: ='Step 1'!F39 -> 0.02534820876 | AG35: ='Step 2'!AX35 -> 0.002221329823 | AH35: 0.02312687894 | AQ35: 0.000850355456 | AS35: 0.003071685279
AC36: 31 | AD36: 32 | AE36: ='Step 1'!E40 -> 32 | AF36: ='Step 1'!F40 -> 0.02407291238 | AG36: ='Step 2'!AX36 -> 0.002221329823 | AH36: 0.02185158256 | AQ36: 0.0007704776812 | AS36: 0.002991807504
AC37: 32 | AD37: 33 | AE37: ='Step 1'!E41 -> 33 | AF37: ='Step 1'!F41 -> 0.02214434054 | AG37: ='Step 2'!AX37 -> 0.002221329823 | AH37: 0.01992301072 | AQ37: 0.000698103191 | AS37: 0.002919433014
AC38: 33 | AD38: 34 | AE38: ='Step 1'!E42 -> 34 | AF38: ='Step 1'!F42 -> 0.02219016839 | AG38: ='Step 2'!AX38 -> 0.002221329823 | AH38: 0.01996883857 | AQ38: 0.0006325271674 | AS38: 0.00285385699
AC39: 34 | AD39: 35 | AE39: ='Step 1'!E43 -> 35 | AF39: ='Step 1'!F43 -> 0.02295369041 | AG39: ='Step 2'!AX39 -> 0.002221329823 | AH39: 0.02073236059 | AQ39: 0.0005731109994 | AS39: 0.002794440822
AC40: 35 | AD40: 36 | AE40: ='Step 1'!E44 -> 36 | AF40: ='Step 1'!F44 -> 0.01849808437 | AG40: ='Step 2'!AX40 -> 0.002221329823 | AH40: 0.01627675455 | AQ40: 0.0005192760637 | AS40: 0.002740605887
AC41: 36 | AD41: 37 | AE41: ='Step 1'!E45 -> 37 | AF41: ='Step 1'!F45 -> 0.02019800861 | AG41: ='Step 2'!AX41 -> 0.002221329823 | AH41: 0.01797667878 | AQ41: 0.0004704980896 | AS41: 0.002691827913
AC42: 37 | AD42: 38 | AE42: ='Step 1'!E46 -> 38 | AF42: ='Step 1'!F46 -> 0.01493046465 | AG42: ='Step 2'!AX42 -> 0.002221329823 | AH42: 0.01270913483 | AQ42: 0.0004263020535 | AS42: 0.002647631876
AC43: 38 | AD43: 39 | AE43: ='Step 1'!E47 -> 39 | AF43: ='Step 1'!F47 -> 0.01698401927 | AG43: ='Step 2'!AX43 -> 0.002221329823 | AH43: 0.01476268944 | AQ43: 0.0003862575531 | AS43: 0.002607587376
AC44: 39 | AD44: 40 | AE44: ='Step 1'!E48 -> 40 | AF44: ='Step 1'!F48 -> 0.01401981189 | AG44: ='Step 2'!AX44 -> 0.002221329823 | AH44: 0.01179848206 | AQ44: 0.0003499746156 | AS44: 0.002571304439
AC45: 40 | AD45: 41 | AE45: ='Step 1'!E49 -> 41 | AF45: ='Step 1'!F49 -> 0.01369201076 | AG45: ='Step 2'!AX45 -> 0.002221329823 | AH45: 0.01147068094 | AQ45: 0.0003170999003 | AS45: 0.002538429723
AC46: 41 | AD46: 42 | AE46: ='Step 1'!E50 -> 42 | AF46: ='Step 1'!F50 -> 0.01229027326 | AG46: ='Step 2'!AX46 -> 0.002221329823 | AH46: 0.01006894343 | AQ46: 0.0002873132573 | AS46: 0.00250864308
AC47: 42 | AD47: 43 | AE47: ='Step 1'!E51 -> 43 | AF47: ='Step 1'!F51 -> 0.0109922754 | AG47: ='Step 2'!AX47 -> 0.002221329823 | AH47: 0.008770945579 | AQ47: 0.0002603246098 | AS47: 0.002481654433
AC48: 43 | AD48: 44 | AE48: ='Step 1'!E52 -> 44 | AF48: ='Step 1'!F52 -> 0.01052860559 | AG48: ='Step 2'!AX48 -> 0.002221329823 | AH48: 0.008307275769 | AQ48: 0.0002358711293 | AS48: 0.002457200952
AC49: 44 | AD49: 45 | AE49: ='Step 1'!E53 -> 45 | AF49: ='Step 1'!F53 -> 0.01021332873 | AG49: ='Step 2'!AX49 -> 0.002221329823 | AH49: 0.007991998902 | AQ49: 0.0002137146761 | AS49: 0.002435044499
AC50: 45 | AD50: 46 | AE50: ='Step 1'!E54 -> 46 | AF50: ='Step 1'!F54 -> 0.01080952127 | AG50: ='Step 2'!AX50 -> 0.002221329823 | AH50: 0.008588191444 | AQ50: 0.0001936394797 | AS50: 0.002414969303
AC51: 46 | AD51: 47 | AE51: ='Step 1'!E55 -> 47 | AF51: ='Step 1'!F55 -> 0.008557853594 | AG51: ='Step 2'!AX51 -> 0.002221329823 | AH51: 0.006336523771 | AQ51: 0.0001754500383 | AS51: 0.002396779861
AC52: 47 | AD52: 48 | AE52: ='Step 1'!E56 -> 48 | AF52: ='Step 1'!F56 -> 0.008541971905 | AG52: ='Step 2'!AX52 -> 0.002221329823 | AH52: 0.006320642082 | AQ52: 0.0001589692143 | AS52: 0.002380299037
AC53: 48 | AD53: 49 | AE53: ='Step 1'!E57 -> 49 | AF53: ='Step 1'!F57 -> 0.009090777719 | AG53: ='Step 2'!AX53 -> 0.002221329823 | AH53: 0.006869447896 | AQ53: 0.0001440365094 | AS53: 0.002365366332
AC54: 49 | AD54: 50 | AE54: ='Step 1'!E58 -> 50 | AF54: ='Step 1'!F58 -> 0.008592377184 | AG54: ='Step 2'!AX54 -> 0.002221329823 | AH54: 0.006371047361 | AQ54: 0.0001305065017 | AS54: 0.002351836325
AC55: 50 | AD55: 51 | AE55: ='Step 1'!E59 -> 51 | AF55: ='Step 1'!F59 -> 0.006591857645 | AG55: ='Step 2'!AX55 -> 0.002221329823 | AH55: 0.004370527822 | AQ55: 0.0001182474295 | AS55: 0.002339577252
AC56: 51 | AD56: 52 | AE56: ='Step 1'!E60 -> 52 | AF56: ='Step 1'!F60 -> 0.007884424476 | AG56: ='Step 2'!AX56 -> 0.002221329823 | AH56: 0.005663094653 | AQ56: 0.0001071399079 | AS56: 0.002328469731
AC57: 52 | AD57: 53 | AE57: ='Step 1'!E61 -> 53 | AF57: ='Step 1'!F61 -> 0.007294511921 | AG57: ='Step 2'!AX57 -> 0.002221329823 | AH57: 0.005073182098 | AQ57: 9.707576667e-05 | AS57: 0.00231840559
AC58: 53 | AD58: 54 | AE58: ='Step 1'!E62 -> 54 | AF58: ='Step 1'!F62 -> 0.006774740079 | AG58: ='Step 2'!AX58 -> 0.002221329823 | AH58: 0.004553410256 | AQ58: 8.79569962e-05 | AS58: 0.002309286819
AC59: 54 | AD59: 55 | AE59: ='Step 1'!E63 -> 55 | AF59: ='Step 1'!F63 -> 0.008230679543 | AG59: ='Step 2'!AX59 -> 0.002221329823 | AH59: 0.00600934972 | AQ59: 7.969479351e-05 | AS59: 0.002301024616
AC60: 55 | AD60: 56 | AE60: ='Step 1'!E64 -> 56 | AF60: ='Step 1'!F64 -> 0.00889144135 | AG60: ='Step 2'!AX60 -> 0.002221329823 | AH60: 0.006670111527 | AQ60: 7.220869729e-05 | AS60: 0.00229353852
AC61: 56 | AD61: 57 | AE61: ='Step 1'!E65 -> 57 | AF61: ='Step 1'!F65 -> 0.007601015833 | AG61: ='Step 2'!AX61 -> 0.002221329823 | AH61: 0.00537968601 | AQ61: 6.542580431e-05 | AS61: 0.002286755627
AC62: 57 | AD62: 58 | AE62: ='Step 1'!E66 -> 58 | AF62: ='Step 1'!F66 -> 0.006531122986 | AG62: ='Step 2'!AX62 -> 0.002221329823 | AH62: 0.004309793163 | AQ62: 5.928005947e-05 | AS62: 0.002280609882
AC63: 58 | AD63: 59 | AE63: ='Step 1'!E67 -> 59 | AF63: ='Step 1'!F67 -> 0.007960910246 | AG63: ='Step 2'!AX63 -> 0.002221329823 | AH63: 0.005739580423 | AQ63: 5.371161253e-05 | AS63: 0.002275041436
AC64: =AC63+1 -> 59 | AD64: =AD63+1 -> 60 | AE64: ='Step 1'!E68 -> 60 | AF64: ='Step 1'!F68 -> 0.006594800093 | AG64: ='Step 2'!AX64 -> 0.002221329823 | AH64: 0.00437347027 | AQ64: 4.866623526e-05 | AS64: 0.002269996058
AC65: 60 | AD65: 61 | AE65: ='Step 1'!E69 -> 61 | AF65: ='Step 1'!F69 -> 0.008556242451 | AG65: ='Step 2'!AX65 -> 0.002221329823 | AH65: 0.006334912628 | AQ65: 4.409479334e-05 | AS65: 0.002265424616
AC66: 61 | AD66: 62 | AE66: ='Step 1'!E70 -> 62 | AF66: ='Step 1'!F70 -> 0.005984712644 | AG66: ='Step 2'!AX66 -> 0.002221329823 | AH66: 0.003763382821 | AQ66: 3.995276785e-05 | AS66: 0.002261282591
AC67: 62 | AD67: 63 | AE67: ='Step 1'!E71 -> 63 | AF67: ='Step 1'!F71 -> 0.005823769539 | AG67: ='Step 2'!AX67 -> 0.002221329823 | AH67: 0.003602439716 | AQ67: 3.619982176e-05 | AS67: 0.002257529645
AC68: 63 | AD68: 64 | AE68: ='Step 1'!E72 -> 64 | AF68: ='Step 1'!F72 -> 0.006603193428 | AG68: ='Step 2'!AX68 -> 0.002221329823 | AH68: 0.004381863605 | AQ68: 3.279940704e-05 | AS68: 0.00225412923
AC69: 64 | AD69: 65 | AE69: ='Step 1'!E73 -> 65 | AF69: ='Step 1'!F73 -> 0.006005997222 | AG69: ='Step 2'!AX69 -> 0.002221329823 | AH69: 0.003784667399 | AQ69: 2.971840882e-05 | AS69: 0.002251048232
AC70: 65 | AD70: 66 | AE70: ='Step 1'!E74 -> 66 | AF70: ='Step 1'!F74 -> 0.006832640956 | AG70: ='Step 2'!AX70 -> 0.002221329823 | AH70: 0.004611311133 | AQ70: =$AO$29*EXP(-$AO$30*AE70) -> 2.692682284e-05 | AS70: =AQ70+AG70 -> 0.002248256646
AC71: 66 | AD71: 67 | AE71: ='Step 1'!E75 -> 67 | AF71: ='Step 1'!F75 -> 0.006626391789 | AG71: ='Step 2'!AX71 -> 0.002221329823 | AH71: =AF71-AG71 -> 0.004405061966 | AQ71: 2.43974633e-05 | AS71: 0.002245727286
AC72: 67 | AD72: 68 | AE72: ='Step 1'!E76 -> 68 | AF72: ='Step 1'!F76 -> 0.003770843417 | AG72: ='Step 2'!AX72 -> 0.002221329823 | AH72: 0.001549513594 | AQ72: 2.210569805e-05 | AS72: 0.002243435521
AC73: 68 | AD73: 69 | AE73: ='Step 1'!E77 -> 69 | AF73: ='Step 1'!F77 -> 0.003303325012 | AG73: ='Step 2'!AX73 -> 0.002221329823 | AH73: 0.001081995189 | AQ73: 2.00292088e-05 | AS73: 0.002241359032
AC74: 69 | AD74: 70 | AE74: ='Step 1'!E78 -> 70 | AF74: ='Step 1'!F78 -> 0.003682740214 | AG74: ='Step 2'!AX74 -> 0.002221329823 | AH74: 0.001461410391 | AQ74: 1.814777367e-05 | AS74: 0.002239477597
AC75: 70 | AD75: 71 | AE75: ='Step 1'!E79 -> 71 | AF75: ='Step 1'!F79 -> 0.004768430156 | AG75: ='Step 2'!AX75 -> 0.002221329823 | AH75: 0.002547100333 | AQ75: 1.644307034e-05 | AS75: 0.002237772893
AC76: 71 | AD76: 72 | AE76: ='Step 1'!E80 -> 72 | AF76: ='Step 1'!F80 -> 0.003265792749 | AG76: ='Step 2'!AX76 -> 0.002221329823 | AH76: 0.001044462926 | AQ76: 1.489849758e-05 | AS76: 0.002236228321
AC77: 72 | AD77: 73 | AE77: ='Step 1'!E81 -> 73 | AF77: ='Step 1'!F81 -> 0.003785836556 | AG77: ='Step 2'!AX77 -> 0.002221329823 | AH77: 0.001564506733 | AQ77: 1.349901361e-05 | AS77: 0.002234828837
AC78: 73 | AD78: 74 | AE78: ='Step 1'!E82 -> 74 | AF78: ='Step 1'!F82 -> 0.003133387649 | AG78: ='Step 2'!AX78 -> 0.002221329823 | AH78: 0.0009120578262 | AQ78: 1.223098956e-05 | AS78: 0.002233560813
AC79: 74 | AD79: 75 | AE79: ='Step 1'!E83 -> 75 | AF79: ='Step 1'!F83 -> 0.003358550681 | AG79: ='Step 2'!AX79 -> 0.002221329823 | AH79: 0.001137220858 | AQ79: 1.10820768e-05 | AS79: 0.0022324119
AC80: 75 | AD80: 76 | AE80: ='Step 1'!E84 -> 76 | AF80: ='Step 1'!F84 -> 0.003315314349 | AG80: ='Step 2'!AX80 -> 0.002221329823 | AH80: 0.001093984526 | AQ80: 1.004108668e-05 | AS80: 0.00223137091
AC81: 76 | AD81: 77 | AE81: ='Step 1'!E85 -> 77 | AF81: ='Step 1'!F85 -> 0.002055675773 | AG81: ='Step 2'!AX81 -> 0.002221329823 | AH81: -0.0001656540504 | AQ81: 9.09788151e-06 | AS81: 0.002230427704
AC82: 77 | AD82: 78 | AE82: ='Step 1'!E86 -> 78 | AF82: ='Step 1'!F86 -> 0.004945519132 | AG82: ='Step 2'!AX82 -> 0.002221329823 | AH82: 0.002724189309 | AQ82: 8.243275916e-06 | AS82: 0.002229573099
AC83: 78 | AD83: 79 | AE83: ='Step 1'!E87 -> 79 | AF83: ='Step 1'!F87 -> 0.002354386915 | AG83: ='Step 2'!AX83 -> 0.002221329823 | AH83: 0.0001330570923 | AQ83: 7.468947331e-06 | AS83: 0.00222879877
AC84: 79 | AD84: 80 | AE84: ='Step 1'!E88 -> 80 | AF84: ='Step 1'!F88 -> 0.003105722981 | AG84: ='Step 2'!AX84 -> 0.002221329823 | AH84: 0.0008843931583 | AQ84: 6.767354969e-06 | AS84: 0.002228097178
AC85: 80 | AD85: 81 | AE85: ='Step 1'!E89 -> 81 | AF85: ='Step 1'!F89 -> 0.002082452578 | AG85: ='Step 2'!AX85 -> 0.002221329823 | AH85: -0.0001388772455 | AQ85: 6.131666385e-06 | AS85: 0.002227461489
AC86: 81 | AD86: 82 | AE86: ='Step 1'!E90 -> 82 | AF86: ='Step 1'!F90 -> 0.002050944643 | AG86: ='Step 2'!AX86 -> 0.002221329823 | AH86: -0.0001703851799 | AQ86: 5.555690935e-06 | AS86: 0.002226885514
AC87: 82 | AD87: 83 | AE87: ='Step 1'!E91 -> 83 | AF87: ='Step 1'!F91 -> 0.005339693094 | AG87: ='Step 2'!AX87 -> 0.002221329823 | AH87: 0.003118363271 | AQ87: 5.033819492e-06 | AS87: 0.002226363642
AC88: 83 | AD88: 84 | AE88: ='Step 1'!E92 -> 84 | AF88: ='Step 1'!F92 -> 0.002577398257 | AG88: ='Step 2'!AX88 -> 0.002221329823 | AH88: 0.0003560684342 | AQ88: 4.560969819e-06 | AS88: 0.002225890793
AC89: 84 | AD89: 85 | AE89: ='Step 1'!E93 -> 85 | AF89: ='Step 1'!F93 -> 0.002704312774 | AG89: ='Step 2'!AX89 -> 0.002221329823 | AH89: 0.000482982951 | AQ89: 4.132537077e-06 | AS89: 0.00222546236
AC90: 85 | AD90: 86 | AE90: ='Step 1'!E94 -> 86 | AF90: ='Step 1'!F94 -> 0.004917637084 | AG90: ='Step 2'!AX90 -> 0.002221329823 | AH90: =AF90-AG90 -> 0.002696307261 | AQ90: =$AO$29*EXP(-$AO$30*AE90) -> 3.74434898e-06 | AS90: =AQ90+AG90 -> 0.002225074172
AC91: 86 | AD91: 87 | AE91: ='Step 1'!E95 -> 87 | AF91: ='Step 1'!F95 -> 0.002563189206 | AG91: ='Step 2'!AX91 -> 0.002221329823 | AH91: 0.0003418593834 | AQ91: 3.392625166e-06 | AS91: 0.002224722448
AC92: 87 | AD92: 88 | AE92: ='Step 1'!E96 -> 88 | AF92: ='Step 1'!F96 -> 0.004947698351 | AG92: ='Step 2'!AX92 -> 0.002221329823 | AH92: 0.002726368528 | AQ92: 3.073940377e-06 | AS92: 0.002224403763
AC93: 88 | AD93: 89 | AE93: ='Step 1'!E97 -> 89 | AF93: ='Step 1'!F97 -> 0.004703389061 | AG93: ='Step 2'!AX93 -> 0.002221329823 | AH93: 0.002482059238 | AQ93: 2.785191108e-06 | AS93: 0.002224115014
AC94: 89 | AD94: 90 | AE94: ='Step 1'!E98 -> 90 | AF94: ='Step 1'!F98 -> 0 | AG94: ='Step 2'!AX94 -> 0.002221329823 | AH94: -0.002221329823 | AQ94: 2.523565376e-06 | AS94: 0.002223853388

Sheet Step 4
A1: Step 4: Estimate the labour force curve parameters
AN2: Fitted over ages | AO2: =H4 -> 17 | AP2: to | AQ2: =K4 -> 45 | AR2: except:
A4: (a) Fit the labour force curve over ages | H4: 17 | I4: to | K4: 45 | O4: Initial values | P4: Fitted values | AF4: Age 1 year before census | AG4: Age at census | AH4: Mean age | AI4: Probability scaled to unity | AJ4: Constant | AK4: Childhood | AL4: m2 | AN4: Select if ≥ lower age | AO4: Select if ≤ upper age | AP4: =C6 -> 18 | AQ4: 19 | AR4: 0 | AS4: 0 | AT4: 0 | AU4: 0 | AV4: 0 | AW4: 0 | AX4: 0 | AY4: 0 | AZ4: Select? | BB4: Selected m2 | BC4: Lab. force curve | BD4: Error | BE4: Error squared | BG4: Total so far
A5: but excluding those ages which the student curve will be fitted to: | N5: a2 (level) | O5: 0.06 | P5: 0.04734386874 | AF5: 0 | AG5: 1 | AH5: ='Step 1'!E9 -> 1 | AI5: ='Step 1'!F9 -> 0.01847034265 | AJ5: ='Step 2'!$AX$5 -> 0.002221329823 | AK5: ='Step 3'!AQ5 -> 0.01639886133 | AL5: =AI5-AJ5-AK5 -> -0.0001498485097 | AN5: =IF($AO$2<=AH5,1,0) -> 0 | AO5: =IF($AQ$2>=AH5,1,0) -> 1 | AP5: =IF($AH5=AP$4,0,1) -> 1 | AQ5: 1 | AR5: 1 | AS5: 1 | AT5: 1 | AU5: 1 | AV5: 1 | AW5: 1 | AX5: 1 | AY5: 1 | AZ5: =IF(SUM(AN5:AY5)=12,1,0) -> 0 | BB5: =IF(AZ5=1,AL5," ") ->  | BC5: =$P$5*EXP(-$P$6*(AH5-$P$7)-EXP(-$P$8*(AH5-$P$7))) -> 1.019423912e-302 | BD5: =IF(AZ5=1,BC5-AL5," ") ->  | BE5: =IF(AZ5=1,BD5*BD5," ") ->  | BG5: =AJ5+AK5+BC5 -> 0.01862019116
C6: 18 | D6: 19 | N6: alpha2 (r slope) | O6: 0.08 | P6: 0.07350934416 | AF6: =AF5+1 -> 1 | AG6: =AG5+1 -> 2 | AH6: ='Step 1'!E10 -> 2 | AI6: ='Step 1'!F10 -> 0.01682967443 | AJ6: ='Step 2'!$AX$5 -> 0.002221329823 | AK6: ='Step 3'!AQ6 -> 0.01485844133 | AL6: =AI6-AJ6-AK6 -> -0.0002500967289 | AN6: 0 | AO6: 1 | AP6: 1 | AQ6: 1 | AR6: 1 | AS6: 1 | AT6: 1 | AU6: 1 | AV6: 1 | AW6: 1 | AX6: 1 | AY6: 1 | AZ6: =IF(SUM(AN6:AY6)=12,1,0) -> 0 | BB6: =IF(AZ6=1,AL6," ") ->  | BC6: =$P$5*EXP(-$P$6*(AH6-$P$7)-EXP(-$P$8*(AH6-$P$7))) -> 4.152121503e-220 | BD6: =IF(AZ6=1,BC6-AL6," ") ->  | BE6: =IF(AZ6=1,BD6*BD6," ") ->  | BG6: =AJ6+AK6+BC6 -> 0.01707977116
N7: u2 (age) | O7: 21 | P7: 21.40778504 | AF7: =AF6+1 -> 2 | AG7: 3 | AH7: ='Step 1'!E11 -> 3 | AI7: ='Step 1'!F11 -> 0.01564059384 | AJ7: ='Step 2'!$AX$5 -> 0.002221329823 | AK7: ='Step 3'!AQ7 -> 0.01346272002 | AL7: -4.345600757e-05 | AN7: 0 | AO7: 1 | AP7: 1 | AQ7: 1 | AR7: 1 | AS7: 1 | AT7: 1 | AU7: 1 | AV7: 1 | AW7: 1 | AX7: 1 | AY7: 1 | AZ7: 0 | BC7: 3.649364584e-160 | BG7: 0.01568404985
A8: (b) | C8: to set the initial labour force curve parameters. | N8: lambda2 (l slope) | O8: 0.3 | P8: 0.3205737427 | AF8: 3 | AG8: 4 | AH8: ='Step 1'!E12 -> 4 | AI8: ='Step 1'!F12 -> 0.01514314268 | AJ8: ='Step 2'!$AX$5 -> 0.002221329823 | AK8: ='Step 3'!AQ8 -> 0.0121981052 | AL8: 0.0007237076627 | AN8: 0 | AO8: 1 | AP8: 1 | AQ8: 1 | AR8: 1 | AS8: 1 | AT8: 1 | AU8: 1 | AV8: 1 | AW8: 1 | AX8: 1 | AY8: 1 | AZ8: 0 | BC8: 1.139551706e-116 | BG8: 0.01441943502
AF9: 4 | AG9: 5 | AH9: ='Step 1'!E13 -> 5 | AI9: ='Step 1'!F13 -> 0.01282298842 | AJ9: ='Step 2'!$AX$5 -> 0.002221329823 | AK9: ='Step 3'!AQ9 -> 0.01105228142 | AL9: -0.0004506228289 | AN9: 0 | AO9: 1 | AP9: 1 | AQ9: 1 | AR9: 1 | AS9: 1 | AT9: 1 | AU9: 1 | AV9: 1 | AW9: 1 | AX9: 1 | AY9: 1 | AZ9: 0 | BC9: 4.105480575e-85 | BG9: 0.01327361125
A10: (c) Then from the Data tab click on Solver and ensure that the "Set target cell" is O12, "Equal to" is Min, and "By changing cells" is P5:P8. | AF10: 5 | AG10: 6 | AH10: ='Step 1'!E14 -> 6 | AI10: ='Step 1'!F14 -> 0.01181927014 | AJ10: ='Step 2'!$AX$5 -> 0.002221329823 | AK10: ='Step 3'!AQ10 -> 0.01001409011 | AL10: -0.0004161497893 | AN10: 0 | AO10: 1 | AP10: 1 | AQ10: 1 | AR10: 1 | AS10: 1 | AT10: 1 | AU10: 1 | AV10: 1 | AW10: 1 | AX10: 1 | AY10: 1 | AZ10: 0 | BC10: 3.208345418e-62 | BG10: 0.01223541993
A11: Click on the Solve button. Select "OK" when Solver has finished. | AF11: 6 | AG11: 7 | AH11: ='Step 1'!E15 -> 7 | AI11: ='Step 1'!F15 -> 0.01062214458 | AJ11: ='Step 2'!$AX$5 -> 0.002221329823 | AK11: ='Step 3'!AQ11 -> 0.009073420855 | AL11: -0.0006726060937 | AN11: 0 | AO11: 1 | AP11: 1 | AQ11: 1 | AR11: 1 | AS11: 1 | AT11: 1 | AU11: 1 | AV11: 1 | AW11: 1 | AX11: 1 | AY11: 1 | AZ11: 0 | BC11: 1.293182917e-45 | BG11: 0.01129475068
N12: Sum of squared error | O12: =BE96 -> 5.114441865e-05 | AF12: 7 | AG12: 8 | AH12: ='Step 1'!E16 -> 8 | AI12: ='Step 1'!F16 -> 0.01078436277 | AJ12: ='Step 2'!$AX$5 -> 0.002221329823 | AK12: ='Step 3'!AQ12 -> 0.008221112962 | AL12: 0.0003419199814 | AN12: 0 | AO12: 1 | AP12: 1 | AQ12: 1 | AR12: 1 | AS12: 1 | AT12: 1 | AU12: 1 | AV12: 1 | AW12: 1 | AX12: 1 | AY12: 1 | AZ12: 0 | BC12: 1.425501612e-33 | BG12: 0.01044244278
AF13: 8 | AG13: 9 | AH13: ='Step 1'!E17 -> 9 | AI13: ='Step 1'!F17 -> 0.01069264214 | AJ13: ='Step 2'!$AX$5 -> 0.002221329823 | AK13: ='Step 3'!AQ13 -> 0.007448866245 | AL13: 0.00102244607 | AN13: 0 | AO13: 1 | AP13: 1 | AQ13: 1 | AR13: 1 | AS13: 1 | AT13: 1 | AU13: 1 | AV13: 1 | AW13: 1 | AX13: 1 | AY13: 1 | AZ13: 0 | BC13: 7.668427656e-25 | BG13: 0.009670196068
AF14: 9 | AG14: 10 | AH14: ='Step 1'!E18 -> 10 | AI14: ='Step 1'!F18 -> 0.009245422404 | AJ14: ='Step 2'!$AX$5 -> 0.002221329823 | AK14: ='Step 3'!AQ14 -> 0.006749160191 | AL14: 0.0002749323894 | AN14: 0 | AO14: 1 | AP14: 1 | AQ14: 1 | AR14: 1 | AS14: 1 | AT14: 1 | AU14: 1 | AV14: 1 | AW14: 1 | AX14: 1 | AY14: 1 | AZ14: 0 | BC14: =$P$5*EXP(-$P$6*(AH14-$P$7)-EXP(-$P$8*(AH14-$P$7))) -> 1.62978934e-18 | BG14: 0.008970490014
AF15: 10 | AG15: 11 | AH15: ='Step 1'!E19 -> 11 | AI15: ='Step 1'!F19 -> 0.008299889207 | AJ15: ='Step 2'!$AX$5 -> 0.002221329823 | AK15: ='Step 3'!AQ15 -> 0.006115180726 | AL15: -3.662134226e-05 | AN15: 0 | AO15: 1 | AP15: =IF($AH15=AP$4,0,1) -> 1 | AQ15: 1 | AR15: 1 | AS15: 1 | AT15: 1 | AU15: 1 | AV15: 1 | AW15: 1 | AX15: 1 | AY15: 1 | AZ15: 0 | BC15: 6.243007421e-14 | BG15: 0.008336510549
AF16: 11 | AG16: 12 | AH16: ='Step 1'!E20 -> 12 | AI16: ='Step 1'!F20 -> 0.007565120443 | AJ16: ='Step 2'!$AX$5 -> 0.002221329823 | AK16: ='Step 3'!AQ16 -> 0.005540753849 | AL16: -0.0001969632296 | AN16: 0 | AO16: 1 | AP16: 1 | AQ16: 1 | AR16: 1 | AS16: 1 | AT16: 1 | AU16: 1 | AV16: 1 | AW16: 1 | AX16: 1 | AY16: 1 | AZ16: 0 | BC16: 1.296762858e-10 | BG16: 0.007762083802
AF17: 12 | AG17: 13 | AH17: ='Step 1'!E21 -> 13 | AI17: ='Step 1'!F21 -> 0.007393070284 | AJ17: ='Step 2'!$AX$5 -> 0.002221329823 | AK17: ='Step 3'!AQ17 -> 0.005020285515 | AL17: 0.0001514549463 | AN17: 0 | AO17: 1 | AP17: 1 | AQ17: 1 | AR17: 1 | AS17: 1 | AT17: 1 | AU17: 1 | AV17: 1 | AW17: 1 | AX17: 1 | AY17: 1 | AZ17: 0 | BC17: 3.248614499e-08 | BG17: 0.007241647824
AF18: 13 | AG18: 14 | AH18: ='Step 1'!E22 -> 14 | AI18: ='Step 1'!F22 -> 0.006868482895 | AJ18: ='Step 2'!$AX$5 -> 0.002221329823 | AK18: ='Step 3'!AQ18 -> 0.00454870715 | AL18: 9.844592209e-05 | AN18: 0 | AO18: 1 | AP18: 1 | AQ18: 1 | AR18: 1 | AS18: 1 | AT18: 1 | AU18: 1 | AV18: 1 | AW18: 1 | AX18: 1 | AY18: 1 | AZ18: 0 | BC18: 1.753302177e-06 | BG18: 0.006771790275
AF19: 14 | AG19: 15 | AH19: ='Step 1'!E23 -> 15 | AI19: ='Step 1'!F23 -> 0.005870014813 | AJ19: ='Step 2'!$AX$5 -> 0.002221329823 | AK19: ='Step 3'!AQ19 -> 0.004121426296 | AL19: -0.0004727413064 | AN19: 0 | AO19: 1 | AP19: 1 | AQ19: 1 | AR19: 1 | AS19: 1 | AT19: 1 | AU19: 1 | AV19: 1 | AW19: 1 | AX19: 1 | AY19: 1 | AZ19: 0 | BC19: 3.10588027e-05 | BG19: 0.006373814922
AF20: 15 | AG20: 16 | AH20: ='Step 1'!E24 -> 16 | AI20: ='Step 1'!F24 -> 0.006094211519 | AJ20: ='Step 2'!$AX$5 -> 0.002221329823 | AK20: ='Step 3'!AQ20 -> 0.003734281886 | AL20: 0.0001385998092 | AN20: 0 | AO20: 1 | AP20: 1 | AQ20: 1 | AR20: 1 | AS20: 1 | AT20: 1 | AU20: 1 | AV20: 1 | AW20: 1 | AX20: 1 | AY20: 1 | AZ20: 0 | BC20: 0.0002451212712 | BG20: 0.006200732981
AF21: 16 | AG21: 17 | AH21: ='Step 1'!E25 -> 17 | AI21: ='Step 1'!F25 -> 0.005831094064 | AJ21: ='Step 2'!$AX$5 -> 0.002221329823 | AK21: ='Step 3'!AQ21 -> 0.00338350372 | AL21: 0.0002262605204 | AN21: 1 | AO21: 1 | AP21: 1 | AQ21: 1 | AR21: 1 | AS21: 1 | AT21: 1 | AU21: 1 | AV21: 1 | AW21: 1 | AX21: 1 | AY21: 1 | AZ21: 1 | BB21: =IF(AZ21=1,AL21," ") -> 0.0002262605204 | BC21: 0.001075844812 | BD21: 0.0008495842916 | BE21: 7.217934685e-07 | BG21: 0.006680678355
AF22: 17 | AG22: 18 | AH22: ='Step 1'!E26 -> 18 | AI22: ='Step 1'!F26 -> 0.01071066506 | AJ22: ='Step 2'!$AX$5 -> 0.002221329823 | AK22: ='Step 3'!AQ22 -> 0.003065675751 | AL22: 0.00542365949 | AN22: 1 | AO22: 1 | AP22: 0 | AQ22: 1 | AR22: 1 | AS22: 1 | AT22: 1 | AU22: 1 | AV22: 1 | AW22: 1 | AX22: 1 | AY22: 1 | AZ22: 0 | BC22: 0.003084476999 | BG22: 0.008371482572
AF23: 18 | AG23: 19 | AH23: ='Step 1'!E27 -> 19 | AI23: ='Step 1'!F27 -> 0.01777846034 | AJ23: ='Step 2'!$AX$5 -> 0.002221329823 | AK23: ='Step 3'!AQ23 -> 0.002777702815 | AL23: 0.0127794277 | AN23: 1 | AO23: 1 | AP23: 1 | AQ23: 0 | AR23: 1 | AS23: 1 | AT23: 1 | AU23: 1 | AV23: 1 | AW23: 1 | AX23: 1 | AY23: 1 | AZ23: 0 | BC23: 0.006492303965 | BG23: 0.0114913366
AF24: 19 | AG24: 20 | AH24: ='Step 1'!E28 -> 20 | AI24: ='Step 1'!F28 -> 0.01685787287 | AJ24: ='Step 2'!$AX$5 -> 0.002221329823 | AK24: ='Step 3'!AQ24 -> 0.002516780493 | AL24: 0.01211976255 | AN24: 1 | AO24: 1 | AP24: 1 | AQ24: 1 | AR24: 1 | AS24: 1 | AT24: 1 | AU24: 1 | AV24: 1 | AW24: 1 | AX24: 1 | AY24: 1 | AZ24: 1 | BB24: 0.01211976255 | BC24: 0.01091973891 | BD24: -0.001200023647 | BE24: 1.440056753e-06 | BG24: 0.01565784922
AF25: =AF24+1 -> 20 | AG25: 21 | AH25: ='Step 1'!E29 -> 21 | AI25: ='Step 1'!F29 -> 0.01844240418 | AJ25: ='Step 2'!$AX$5 -> 0.002221329823 | AK25: ='Step 3'!AQ25 -> 0.002280367798 | AL25: 0.01394070656 | AN25: 1 | AO25: 1 | AP25: =IF($AH25=AP$4,0,1) -> 1 | AQ25: 1 | AR25: 1 | AS25: 1 | AT25: 1 | AU25: 1 | AV25: 1 | AW25: 1 | AX25: 1 | AY25: 1 | AZ25: 1 | BB25: 0.01394070656 | BC25: 0.01560761289 | BD25: 0.001666906329 | BE25: 2.778576711e-06 | BG25: 0.02010931051
AF26: 21 | AG26: 22 | AH26: ='Step 1'!E30 -> 22 | AI26: ='Step 1'!F30 -> 0.0242588571 | AJ26: ='Step 2'!$AX$5 -> 0.002221329823 | AK26: ='Step 3'!AQ26 -> 0.002066162428 | AL26: 0.01997136485 | AN26: 1 | AO26: 1 | AP26: 1 | AQ26: 1 | AR26: 1 | AS26: 1 | AT26: 1 | AU26: 1 | AV26: 1 | AW26: 1 | AX26: 1 | AY26: 1 | AZ26: 1 | BB26: 0.01997136485 | BC26: 0.01982253888 | BD26: -0.0001488259703 | BE26: 2.214916945e-08 | BG26: 0.02411003113
AF27: 22 | AG27: 23 | AH27: ='Step 1'!E31 -> 23 | AI27: ='Step 1'!F31 -> 0.02811146786 | AJ27: ='Step 2'!$AX$5 -> 0.002221329823 | AK27: ='Step 3'!AQ27 -> 0.001872078347 | AL27: 0.02401805969 | AN27: 1 | AO27: 1 | AP27: 1 | AQ27: 1 | AR27: 1 | AS27: 1 | AT27: 1 | AU27: 1 | AV27: 1 | AW27: 1 | AX27: 1 | AY27: 1 | AZ27: 1 | BB27: 0.02401805969 | BC27: 0.02310739297 | BD27: -0.000910666716 | BE27: 8.293138676e-07 | BG27: 0.02720080114
AF28: 23 | AG28: 24 | AH28: ='Step 1'!E32 -> 24 | AI28: ='Step 1'!F32 -> 0.02810891853 | AJ28: ='Step 2'!$AX$5 -> 0.002221329823 | AK28: ='Step 3'!AQ28 -> 0.001696225471 | AL28: 0.02419136324 | AN28: 1 | AO28: 1 | AP28: 1 | AQ28: 1 | AR28: 1 | AS28: 1 | AT28: 1 | AU28: 1 | AV28: 1 | AW28: 1 | AX28: 1 | AY28: 1 | AZ28: 1 | BB28: 0.02419136324 | BC28: =$P$5*EXP(-$P$6*(AH28-$P$7)-EXP(-$P$8*(AH28-$P$7))) -> 0.02531178574 | BD28: 0.001120422501 | BE28: 1.25534658e-06 | BG28: 0.02922934104
AF29: 24 | AG29: 25 | AH29: ='Step 1'!E33 -> 25 | AI29: ='Step 1'!F33 -> 0.0328139538 | AJ29: ='Step 2'!$AX$5 -> 0.002221329823 | AK29: ='Step 3'!AQ29 -> 0.00153689126 | AL29: 0.02905573272 | AN29: 1 | AO29: 1 | AP29: 1 | AQ29: 1 | AR29: 1 | AS29: 1 | AT29: 1 | AU29: 1 | AV29: 1 | AW29: 1 | AX29: 1 | AY29: 1 | AZ29: 1 | BB29: 0.02905573272 | BC29: =$P$5*EXP(-$P$6*(AH29-$P$7)-EXP(-$P$8*(AH29-$P$7))) -> 0.02650241478 | BD29: -0.002553317932 | BE29: 6.519432464e-06 | BG29: 0.03026063587
AF30: 25 | AG30: 26 | AH30: ='Step 1'!E34 -> 26 | AI30: ='Step 1'!F34 -> 0.02978052241 | AJ30: ='Step 2'!$AX$5 -> 0.002221329823 | AK30: ='Step 3'!AQ30 -> 0.001392524039 | AL30: 0.02616666855 | AN30: 1 | AO30: 1 | AP30: 1 | AQ30: 1 | AR30: 1 | AS30: 1 | AT30: 1 | AU30: 1 | AV30: 1 | AW30: 1 | AX30: 1 | AY30: 1 | AZ30: 1 | BB30: 0.02616666855 | BC30: 0.02685450132 | BD30: 0.000687832776 | BE30: 4.731139278e-07 | BG30: 0.03046835518
AF31: 26 | AG31: 27 | AH31: ='Step 1'!E35 -> 27 | AI31: ='Step 1'!F35 -> 0.03086728245 | AJ31: ='Step 2'!$AX$5 -> 0.002221329823 | AK31: ='Step 3'!AQ31 -> 0.001261717891 | AL31: 0.02738423473 | AN31: 1 | AO31: 1 | AP31: 1 | AQ31: 1 | AR31: 1 | AS31: 1 | AT31: 1 | AU31: 1 | AV31: 1 | AW31: 1 | AX31: 1 | AY31: 1 | AZ31: 1 | BB31: 0.02738423473 | BC31: 0.02657179091 | BD31: -0.0008124438251 | BE31: 6.600649689e-07 | BG31: 0.03005483862
AF32: 27 | AG32: 28 | AH32: ='Step 1'!E36 -> 28 | AI32: ='Step 1'!F36 -> 0.02678199541 | AJ32: ='Step 2'!$AX$5 -> 0.002221329823 | AK32: ='Step 3'!AQ32 -> 0.001143198962 | AL32: 0.02341746662 | AN32: 1 | AO32: 1 | AP32: 1 | AQ32: 1 | AR32: 1 | AS32: 1 | AT32: 1 | AU32: 1 | AV32: 1 | AW32: 1 | AX32: 1 | AY32: 1 | AZ32: 1 | BB32: 0.02341746662 | BC32: 0.02584218668 | BD32: 0.002424720062 | BE32: 5.87926738e-06 | BG32: 0.02920671547
AF33: 28 | AG33: 29 | AH33: ='Step 1'!E37 -> 29 | AI33: ='Step 1'!F37 -> 0.0257241948 | AJ33: ='Step 2'!$AX$5 -> 0.002221329823 | AK33: ='Step 3'!AQ33 -> 0.001035813059 | AL33: 0.02246705192 | AN33: 1 | AO33: 1 | AP33: 1 | AQ33: 1 | AR33: 1 | AS33: 1 | AT33: 1 | AU33: 1 | AV33: 1 | AW33: 1 | AX33: 1 | AY33: 1 | AZ33: 1 | BB33: 0.02246705192 | BC33: 0.02481979035 | BD33: 0.002352738431 | BE33: 5.535378123e-06 | BG33: 0.02807693323
AF34: 29 | AG34: 30 | AH34: ='Step 1'!E38 -> 30 | AI34: ='Step 1'!F38 -> 0.02760154041 | AJ34: ='Step 2'!$AX$5 -> 0.002221329823 | AK34: ='Step 3'!AQ34 -> 0.0009385144036 | AL34: 0.02444169618 | AN34: 1 | AO34: 1 | AP34: 1 | AQ34: 1 | AR34: 1 | AS34: 1 | AT34: 1 | AU34: 1 | AV34: 1 | AW34: 1 | AX34: 1 | AY34: 1 | AZ34: 1 | BB34: 0.02444169618 | BC34: 0.02362214195 | BD34: -0.000819554226 | BE34: 6.716691294e-07 | BG34: 0.02678198618
AF35: 30 | AG35: 31 | AH35: ='Step 1'!E39 -> 31 | AI35: ='Step 1'!F39 -> 0.02534820876 | AJ35: ='Step 2'!$AX$5 -> 0.002221329823 | AK35: ='Step 3'!AQ35 -> 0.000850355456 | AL35: 0.02227652348 | AN35: 1 | AO35: 1 | AP35: =IF($AH35=AP$4,0,1) -> 1 | AQ35: 1 | AR35: 1 | AS35: 1 | AT35: 1 | AU35: 1 | AV35: 1 | AW35: 1 | AX35: 1 | AY35: 1 | AZ35: 1 | BB35: 0.02227652348 | BC35: 0.02233446117 | BD35: 5.793768845e-05 | BE35: 3.356775742e-09 | BG35: 0.02540614645
AF36: 31 | AG36: 32 | AH36: ='Step 1'!E40 -> 32 | AI36: ='Step 1'!F40 -> 0.02407291238 | AJ36: ='Step 2'!$AX$5 -> 0.002221329823 | AK36: ='Step 3'!AQ36 -> 0.0007704776812 | AL36: 0.02108110488 | AN36: 1 | AO36: 1 | AP36: 1 | AQ36: 1 | AR36: 1 | AS36: 1 | AT36: 1 | AU36: 1 | AV36: 1 | AW36: 1 | AX36: 1 | AY36: 1 | AZ36: 1 | BB36: 0.02108110488 | BC36: 0.02101611748 | BD36: -6.498739528e-05 | BE36: 4.223361546e-09 | BG36: 0.02400792499
AF37: 32 | AG37: 33 | AH37: ='Step 1'!E41 -> 33 | AI37: ='Step 1'!F41 -> 0.02214434054 | AJ37: ='Step 2'!$AX$5 -> 0.002221329823 | AK37: ='Step 3'!AQ37 -> 0.000698103191 | AL37: 0.01922490753 | AN37: =IF($AO$2<=AH37,1,0) -> 1 | AO37: =IF($AQ$2>=AH37,1,0) -> 1 | AP37: 1 | AQ37: 1 | AR37: 1 | AS37: 1 | AT37: 1 | AU37: 1 | AV37: 1 | AW37: 1 | AX37: 1 | AY37: 1 | AZ37: 1 | BB37: 0.01922490753 | BC37: 0.01970700176 | BD37: 0.0004820942372 | BE37: 2.324148535e-07 | BG37: 0.02262643478
AF38: 33 | AG38: 34 | AH38: ='Step 1'!E42 -> 34 | AI38: ='Step 1'!F42 -> 0.02219016839 | AJ38: ='Step 2'!$AX$5 -> 0.002221329823 | AK38: ='Step 3'!AQ38 -> 0.0006325271674 | AL38: 0.0193363114 | AN38: 1 | AO38: 1 | AP38: 1 | AQ38: 1 | AR38: 1 | AS38: 1 | AT38: 1 | AU38: 1 | AV38: 1 | AW38: 1 | AX38: 1 | AY38: 1 | AZ38: 1 | BB38: 0.0193363114 | BC38: 0.01843289445 | BD38: -0.0009034169459 | BE38: 8.161621782e-07 | BG38: 0.02128675144
AF39: 34 | AG39: 35 | AH39: ='Step 1'!E43 -> 35 | AI39: ='Step 1'!F43 -> 0.02295369041 | AJ39: ='Step 2'!$AX$5 -> 0.002221329823 | AK39: ='Step 3'!AQ39 -> 0.0005731109994 | AL39: 0.02015924959 | AN39: 1 | AO39: 1 | AP39: 1 | AQ39: 1 | AR39: 1 | AS39: 1 | AT39: 1 | AU39: 1 | AV39: 1 | AW39: 1 | AX39: 1 | AY39: 1 | AZ39: 1 | BB39: 0.02015924959 | BC39: 0.01720963966 | BD39: -0.002949609932 | BE39: 8.700198752e-06 | BG39: 0.02000408048
AF40: 35 | AG40: 36 | AH40: ='Step 1'!E44 -> 36 | AI40: ='Step 1'!F44 -> 0.01849808437 | AJ40: ='Step 2'!$AX$5 -> 0.002221329823 | AK40: ='Step 3'!AQ40 -> 0.0005192760637 | AL40: 0.01575747848 | AN40: 1 | AO40: 1 | AP40: 1 | AQ40: 1 | AR40: 1 | AS40: 1 | AT40: 1 | AU40: 1 | AV40: 1 | AW40: 1 | AX40: 1 | AY40: 1 | AZ40: 1 | BB40: 0.01575747848 | BC40: 0.01604623871 | BD40: 0.000288760227 | BE40: 8.338246872e-08 | BG40: 0.0187868446
AF41: 36 | AG41: 37 | AH41: ='Step 1'!E45 -> 37 | AI41: ='Step 1'!F45 -> 0.02019800861 | AJ41: ='Step 2'!$AX$5 -> 0.002221329823 | AK41: ='Step 3'!AQ41 -> 0.0004704980896 | AL41: 0.01750618069 | AN41: 1 | AO41: 1 | AP41: 1 | AQ41: 1 | AR41: 1 | AS41: 1 | AT41: 1 | AU41: 1 | AV41: 1 | AW41: 1 | AX41: 1 | AY41: 1 | AZ41: 1 | BB41: 0.01750618069 | BC41: 0.01494707248 | BD41: -0.002559108215 | BE41: 6.549034857e-06 | BG41: 0.01763890039
AF42: 37 | AG42: 38 | AH42: ='Step 1'!E46 -> 38 | AI42: ='Step 1'!F46 -> 0.01493046465 | AJ42: ='Step 2'!$AX$5 -> 0.002221329823 | AK42: ='Step 3'!AQ42 -> 0.0004263020535 | AL42: 0.01228283278 | AN42: 1 | AO42: 1 | AP42: 1 | AQ42: 1 | AR42: 1 | AS42: 1 | AT42: 1 | AU42: 1 | AV42: 1 | AW42: 1 | AX42: 1 | AY42: 1 | AZ42: 1 | BB42: 0.01228283278 | BC42: 0.01391346357 | BD42: 0.00163063079 | BE42: 2.658956774e-06 | BG42: 0.01656109544
AF43: 38 | AG43: 39 | AH43: ='Step 1'!E47 -> 39 | AI43: ='Step 1'!F47 -> 0.01698401927 | AJ43: ='Step 2'!$AX$5 -> 0.002221329823 | AK43: ='Step 3'!AQ43 -> 0.0003862575531 | AL43: 0.01437643189 | AN43: 1 | AO43: 1 | AP43: 1 | AQ43: 1 | AR43: 1 | AS43: 1 | AT43: 1 | AU43: 1 | AV43: 1 | AW43: 1 | AX43: 1 | AY43: 1 | AZ43: 1 | BB43: 0.01437643189 | BC43: 0.0129447572 | BD43: -0.001431674693 | BE43: 2.049692426e-06 | BG43: 0.01555234457
AF44: 39 | AG44: 40 | AH44: ='Step 1'!E48 -> 40 | AI44: ='Step 1'!F48 -> 0.01401981189 | AJ44: ='Step 2'!$AX$5 -> 0.002221329823 | AK44: ='Step 3'!AQ44 -> 0.0003499746156 | AL44: 0.01144850745 | AN44: 1 | AO44: 1 | AP44: 1 | AQ44: 1 | AR44: 1 | AS44: 1 | AT44: 1 | AU44: 1 | AV44: 1 | AW44: 1 | AX44: 1 | AY44: 1 | AZ44: 1 | BB44: 0.01144850745 | BC44: 0.01203905967 | BD44: 0.000590552224 | BE44: 3.487519293e-07 | BG44: 0.01461036411
AF45: 40 | AG45: 41 | AH45: ='Step 1'!E49 -> 41 | AI45: ='Step 1'!F49 -> 0.01369201076 | AJ45: ='Step 2'!$AX$5 -> 0.002221329823 | AK45: ='Step 3'!AQ45 -> 0.0003170999003 | AL45: 0.01115358104 | AN45: 1 | AO45: 1 | AP45: =IF($AH45=AP$4,0,1) -> 1 | AQ45: 1 | AR45: 1 | AS45: 1 | AT45: 1 | AU45: 1 | AV45: 1 | AW45: 1 | AX45: 1 | AY45: 1 | AZ45: 1 | BB45: 0.01115358104 | BC45: 0.01119373732 | BD45: 4.015627707e-05 | BE45: 1.612526588e-09 | BG45: 0.01373216704
AF46: 41 | AG46: 42 | AH46: ='Step 1'!E50 -> 42 | AI46: ='Step 1'!F50 -> 0.01229027326 | AJ46: ='Step 2'!$AX$5 -> 0.002221329823 | AK46: ='Step 3'!AQ46 -> 0.0002873132573 | AL46: 0.009781630178 | AN46: 1 | AO46: 1 | AP46: 1 | AQ46: 1 | AR46: 1 | AS46: 1 | AT46: 1 | AU46: 1 | AV46: 1 | AW46: 1 | AX46: 1 | AY46: 1 | AZ46: 1 | BB46: 0.009781630178 | BC46: 0.01040574999 | BD46: 0.0006241198153 | BE46: 3.895255439e-07 | BG46: 0.01291439307
AF47: 42 | AG47: 43 | AH47: ='Step 1'!E51 -> 43 | AI47: ='Step 1'!F51 -> 0.0109922754 | AJ47: ='Step 2'!$AX$5 -> 0.002221329823 | AK47: ='Step 3'!AQ47 -> 0.0002603246098 | AL47: 0.008510620969 | AN47: 1 | AO47: 1 | AP47: 1 | AQ47: 1 | AR47: 1 | AS47: 1 | AT47: 1 | AU47: 1 | AV47: 1 | AW47: 1 | AX47: 1 | AY47: 1 | AZ47: 1 | BB47: 0.008510620969 | BC47: 0.009671871277 | BD47: 0.001161250307 | BE47: 1.348502276e-06 | BG47: 0.01215352571
AF48: 43 | AG48: 44 | AH48: ='Step 1'!E52 -> 44 | AI48: ='Step 1'!F52 -> 0.01052860559 | AJ48: ='Step 2'!$AX$5 -> 0.002221329823 | AK48: ='Step 3'!AQ48 -> 0.0002358711293 | AL48: 0.008071404639 | AN48: 1 | AO48: 1 | AP48: 1 | AQ48: 1 | AR48: 1 | AS48: 1 | AT48: 1 | AU48: 1 | AV48: 1 | AW48: 1 | AX48: 1 | AY48: 1 | AZ48: 1 | BB48: 0.008071404639 | BC48: 0.008988831626 | BD48: 0.0009174269868 | BE48: 8.41672276e-07 | BG48: 0.01144603258
AF49: 44 | AG49: 45 | AH49: ='Step 1'!E53 -> 45 | AI49: ='Step 1'!F53 -> 0.01021332873 | AJ49: ='Step 2'!$AX$5 -> 0.002221329823 | AK49: ='Step 3'!AQ49 -> 0.0002137146761 | AL49: 0.007778284226 | AN49: 1 | AO49: 1 | AP49: 1 | AQ49: 1 | AR49: 1 | AS49: 1 | AT49: 1 | AU49: 1 | AV49: 1 | AW49: 1 | AX49: 1 | AY49: 1 | AZ49: 1 | BB49: 0.007778284226 | BC49: 0.008353409525 | BD49: 0.0005751252993 | BE49: 3.307691099e-07 | BG49: 0.01078845402
AF50: 45 | AG50: 46 | AH50: ='Step 1'!E54 -> 46 | AI50: ='Step 1'!F54 -> 0.01080952127 | AJ50: ='Step 2'!$AX$5 -> 0.002221329823 | AK50: ='Step 3'!AQ50 -> 0.0001936394797 | AL50: 0.008394551965 | AN50: 1 | AO50: 0 | AP50: 1 | AQ50: 1 | AR50: 1 | AS50: 1 | AT50: 1 | AU50: 1 | AV50: 1 | AW50: 1 | AX50: 1 | AY50: 1 | AZ50: 0 | BC50: 0.007762487699 | BG50: 0.010177457
AF51: 46 | AG51: 47 | AH51: ='Step 1'!E55 -> 47 | AI51: ='Step 1'!F55 -> 0.008557853594 | AJ51: ='Step 2'!$AX$5 -> 0.002221329823 | AK51: ='Step 3'!AQ51 -> 0.0001754500383 | AL51: 0.006161073733 | AN51: 1 | AO51: 0 | AP51: 1 | AQ51: 1 | AR51: 1 | AS51: 1 | AT51: 1 | AU51: 1 | AV51: 1 | AW51: 1 | AX51: 1 | AY51: 1 | AZ51: 0 | BC51: 0.007213086032 | BG51: 0.009609865893
AF52: 47 | AG52: 48 | AH52: ='Step 1'!E56 -> 48 | AI52: ='Step 1'!F56 -> 0.008541971905 | AJ52: ='Step 2'!$AX$5 -> 0.002221329823 | AK52: ='Step 3'!AQ52 -> 0.0001589692143 | AL52: 0.006161672868 | AN52: 1 | AO52: 0 | AP52: 1 | AQ52: 1 | AR52: 1 | AS52: 1 | AT52: 1 | AU52: 1 | AV52: 1 | AW52: 1 | AX52: 1 | AY52: 1 | AZ52: 0 | BC52: 0.006702379081 | BG52: 0.009082678118
AF53: 48 | AG53: 49 | AH53: ='Step 1'!E57 -> 49 | AI53: ='Step 1'!F57 -> 0.009090777719 | AJ53: ='Step 2'!$AX$5 -> 0.002221329823 | AK53: ='Step 3'!AQ53 -> 0.0001440365094 | AL53: 0.006725411386 | AN53: 1 | AO53: 0 | AP53: 1 | AQ53: 1 | AR53: 1 | AS53: 1 | AT53: 1 | AU53: 1 | AV53: 1 | AW53: 1 | AX53: 1 | AY53: 1 | AZ53: 0 | BC53: 0.006227703502 | BG53: 0.008593069834
AF54: 49 | AG54: 50 | AH54: ='Step 1'!E58 -> 50 | AI54: ='Step 1'!F58 -> 0.008592377184 | AJ54: ='Step 2'!$AX$5 -> 0.002221329823 | AK54: ='Step 3'!AQ54 -> 0.0001305065017 | AL54: 0.00624054086 | AN54: 1 | AO54: 0 | AP54: 1 | AQ54: 1 | AR54: 1 | AS54: 1 | AT54: 1 | AU54: 1 | AV54: 1 | AW54: 1 | AX54: 1 | AY54: 1 | AZ54: 0 | BC54: 0.005786558975 | BG54: 0.008138395299
AF55: 50 | AG55: 51 | AH55: ='Step 1'!E59 -> 51 | AI55: ='Step 1'!F59 -> 0.006591857645 | AJ55: ='Step 2'!$AX$5 -> 0.002221329823 | AK55: ='Step 3'!AQ55 -> 0.0001182474295 | AL55: 0.004252280392 | AN55: 1 | AO55: 0 | AP55: =IF($AH55=AP$4,0,1) -> 1 | AQ55: 1 | AR55: 1 | AS55: 1 | AT55: 1 | AU55: 1 | AV55: 1 | AW55: 1 | AX55: 1 | AY55: 1 | AZ55: 0 | BC55: 0.005376605024 | BG55: 0.007716182276
AF56: 51 | AG56: 52 | AH56: ='Step 1'!E60 -> 52 | AI56: ='Step 1'!F60 -> 0.007884424476 | AJ56: ='Step 2'!$AX$5 -> 0.002221329823 | AK56: ='Step 3'!AQ56 -> 0.0001071399079 | AL56: 0.005555954745 | AN56: 1 | AO56: 0 | AP56: 1 | AQ56: 1 | AR56: 1 | AS56: 1 | AT56: 1 | AU56: 1 | AV56: 1 | AW56: 1 | AX56: 1 | AY56: 1 | AZ56: 0 | BC56: 0.004995655342 | BG56: 0.007324125073
AF57: 52 | AG57: 53 | AH57: ='Step 1'!E61 -> 53 | AI57: ='Step 1'!F61 -> 0.007294511921 | AJ57: ='Step 2'!$AX$5 -> 0.002221329823 | AK57: ='Step 3'!AQ57 -> 9.707576667e-05 | AL57: 0.004976106331 | AN57: 1 | AO57: 0 | AP57: 1 | AQ57: 1 | AR57: 1 | AS57: 1 | AT57: 1 | AU57: 1 | AV57: 1 | AW57: 1 | AX57: 1 | AY57: 1 | AZ57: 0 | BC57: 0.004641670674 | BG57: 0.006960076264
AF58: 53 | AG58: 54 | AH58: ='Step 1'!E62 -> 54 | AI58: ='Step 1'!F62 -> 0.006774740079 | AJ58: ='Step 2'!$AX$5 -> 0.002221329823 | AK58: ='Step 3'!AQ58 -> 8.79569962e-05 | AL58: 0.004465453259 | AN58: 1 | AO58: 0 | AP58: 1 | AQ58: 1 | AR58: 1 | AS58: 1 | AT58: 1 | AU58: 1 | AV58: 1 | AW58: 1 | AX58: 1 | AY58: 1 | AZ58: 0 | BC58: 0.004312750968 | BG58: 0.006622037787
AF59: 54 | AG59: 55 | AH59: ='Step 1'!E63 -> 55 | AI59: ='Step 1'!F63 -> 0.008230679543 | AJ59: ='Step 2'!$AX$5 -> 0.002221329823 | AK59: ='Step 3'!AQ59 -> 7.969479351e-05 | AL59: 0.005929654927 | AN59: 1 | AO59: 0 | AP59: 1 | AQ59: 1 | AR59: 1 | AS59: 1 | AT59: 1 | AU59: 1 | AV59: 1 | AW59: 1 | AX59: 1 | AY59: 1 | AZ59: 0 | BC59: 0.00400712724 | BG59: 0.006308151857
AF60: 55 | AG60: 56 | AH60: ='Step 1'!E64 -> 56 | AI60: ='Step 1'!F64 -> 0.00889144135 | AJ60: ='Step 2'!$AX$5 -> 0.002221329823 | AK60: ='Step 3'!AQ60 -> 7.220869729e-05 | AL60: 0.00659790283 | AN60: 1 | AO60: 0 | AP60: 1 | AQ60: 1 | AR60: 1 | AS60: 1 | AT60: 1 | AU60: 1 | AV60: 1 | AW60: 1 | AX60: 1 | AY60: 1 | AZ60: 0 | BC60: 0.003723153461 | BG60: 0.006016691982
AF61: 56 | AG61: 57 | AH61: ='Step 1'!E65 -> 57 | AI61: ='Step 1'!F65 -> 0.007601015833 | AJ61: ='Step 2'!$AX$5 -> 0.002221329823 | AK61: ='Step 3'!AQ61 -> 6.542580431e-05 | AL61: 0.005314260206 | AN61: 1 | AO61: 0 | AP61: 1 | AQ61: 1 | AR61: 1 | AS61: 1 | AT61: 1 | AU61: 1 | AV61: 1 | AW61: 1 | AX61: 1 | AY61: 1 | AZ61: 0 | BC61: 0.003459298625 | BG61: 0.005746054252
AF62: 57 | AG62: 58 | AH62: ='Step 1'!E66 -> 58 | AI62: ='Step 1'!F66 -> 0.006531122986 | AJ62: ='Step 2'!$AX$5 -> 0.002221329823 | AK62: ='Step 3'!AQ62 -> 5.928005947e-05 | AL62: 0.004250513104 | AN62: 1 | AO62: 0 | AP62: 1 | AQ62: 1 | AR62: 1 | AS62: 1 | AT62: 1 | AU62: 1 | AV62: 1 | AW62: 1 | AX62: 1 | AY62: 1 | AZ62: 0 | BC62: 0.003214139129 | BG62: 0.005494749012
AF63: 58 | AG63: 59 | AH63: ='Step 1'!E67 -> 59 | AI63: ='Step 1'!F67 -> 0.007960910246 | AJ63: ='Step 2'!$AX$5 -> 0.002221329823 | AK63: ='Step 3'!AQ63 -> 5.371161253e-05 | AL63: 0.00568586881 | AN63: 1 | AO63: 0 | AP63: 1 | AQ63: 1 | AR63: 1 | AS63: 1 | AT63: 1 | AU63: 1 | AV63: 1 | AW63: 1 | AX63: 1 | AY63: 1 | AZ63: 0 | BC63: 0.002986351527 | BG63: 0.005261392962
AF64: =AF63+1 -> 59 | AG64: 60 | AH64: ='Step 1'!E68 -> 60 | AI64: ='Step 1'!F68 -> 0.006594800093 | AJ64: ='Step 2'!$AX$5 -> 0.002221329823 | AK64: ='Step 3'!AQ64 -> 4.866623526e-05 | AL64: 0.004324804034 | AN64: 1 | AO64: 0 | AP64: 1 | AQ64: 1 | AR64: 1 | AS64: 1 | AT64: 1 | AU64: 1 | AV64: 1 | AW64: 1 | AX64: 1 | AY64: 1 | AZ64: 0 | BC64: 0.002774705663 | BG64: 0.005044701721
AF65: 60 | AG65: 61 | AH65: ='Step 1'!E69 -> 61 | AI65: ='Step 1'!F69 -> 0.008556242451 | AJ65: ='Step 2'!$AX$5 -> 0.002221329823 | AK65: ='Step 3'!AQ65 -> 4.409479334e-05 | AL65: 0.006290817835 | AN65: 1 | AO65: 0 | AP65: =IF($AH65=AP$4,0,1) -> 1 | AQ65: 1 | AR65: 1 | AS65: 1 | AT65: 1 | AU65: 1 | AV65: 1 | AW65: 1 | AX65: 1 | AY65: 1 | AZ65: 0 | BC65: 0.002578058232 | BG65: 0.004843482848
AF66: 61 | AG66: 62 | AH66: ='Step 1'!E70 -> 62 | AI66: ='Step 1'!F70 -> 0.005984712644 | AJ66: ='Step 2'!$AX$5 -> 0.002221329823 | AK66: ='Step 3'!AQ66 -> 3.995276785e-05 | AL66: 0.003723430053 | AN66: 1 | AO66: 0 | AP66: 1 | AQ66: 1 | AR66: 1 | AS66: 1 | AT66: 1 | AU66: 1 | AV66: 1 | AW66: 1 | AX66: 1 | AY66: 1 | AZ66: 0 | BC66: 0.002395346726 | BG66: 0.004656629317
AF67: 62 | AG67: 63 | AH67: ='Step 1'!E71 -> 63 | AI67: ='Step 1'!F71 -> 0.005823769539 | AJ67: ='Step 2'!$AX$5 -> 0.002221329823 | AK67: ='Step 3'!AQ67 -> 3.619982176e-05 | AL67: 0.003566239894 | AN67: 1 | AO67: 0 | AP67: 1 | AQ67: 1 | AR67: 1 | AS67: 1 | AT67: 1 | AU67: 1 | AV67: 1 | AW67: 1 | AX67: 1 | AY67: 1 | AZ67: 0 | BC67: 0.002225583791 | BG67: 0.004483113436
AF68: 63 | AG68: 64 | AH68: ='Step 1'!E72 -> 64 | AI68: ='Step 1'!F72 -> 0.006603193428 | AJ68: ='Step 2'!$AX$5 -> 0.002221329823 | AK68: ='Step 3'!AQ68 -> 3.279940704e-05 | AL68: 0.004349064198 | AN68: 1 | AO68: 0 | AP68: 1 | AQ68: 1 | AR68: 1 | AS68: 1 | AT68: 1 | AU68: 1 | AV68: 1 | AW68: 1 | AX68: 1 | AY68: 1 | AZ68: 0 | BC68: 0.002067851942 | BG68: 0.004321981172
AF69: 64 | AG69: 65 | AH69: ='Step 1'!E73 -> 65 | AI69: ='Step 1'!F73 -> 0.006005997222 | AJ69: ='Step 2'!$AX$5 -> 0.002221329823 | AK69: ='Step 3'!AQ69 -> 2.971840882e-05 | AL69: 0.00375494899 | AN69: =IF($AO$2<=AH69,1,0) -> 1 | AO69: =IF($AQ$2>=AH69,1,0) -> 0 | AP69: 1 | AQ69: 1 | AR69: 1 | AS69: 1 | AT69: 1 | AU69: 1 | AV69: 1 | AW69: 1 | AX69: 1 | AY69: 1 | AZ69: 0 | BC69: 0.00192129865 | BG69: 0.004172346881
AF70: 65 | AG70: 66 | AH70: ='Step 1'!E74 -> 66 | AI70: ='Step 1'!F74 -> 0.006832640956 | AJ70: ='Step 2'!$AX$5 -> 0.002221329823 | AK70: ='Step 3'!AQ70 -> 2.692682284e-05 | AL70: =AI70-AJ70-AK70 -> 0.00458438431 | AN70: 1 | AO70: 0 | AP70: 1 | AQ70: 1 | AR70: 1 | AS70: 1 | AT70: 1 | AU70: 1 | AV70: 1 | AW70: 1 | AX70: 1 | AY70: 1 | AZ70: =IF(SUM(AN70:AY70)=12,1,0) -> 0 | BB70: =IF(AZ70=1,AL70," ") ->  | BC70: =$P$5*EXP(-$P$6*(AH70-$P$7)-EXP(-$P$8*(AH70-$P$7))) -> 0.001785131759 | BD70: =IF(AZ70=1,BC70-AL70," ") ->  | BE70: =IF(AZ70=1,BD70*BD70," ") ->  | BG70: =AJ70+AK70+BC70 -> 0.004033388405
AF71: 66 | AG71: 67 | AH71: ='Step 1'!E75 -> 67 | AI71: ='Step 1'!F75 -> 0.006626391789 | AJ71: ='Step 2'!$AX$5 -> 0.002221329823 | AK71: ='Step 3'!AQ71 -> 2.43974633e-05 | AL71: 0.004380664502 | AN71: 1 | AO71: 0 | AP71: 1 | AQ71: 1 | AR71: 1 | AS71: 1 | AT71: 1 | AU71: 1 | AV71: 1 | AW71: 1 | AX71: 1 | AY71: 1 | AZ71: 0 | BC71: 0.001658615226 | BG71: 0.003904342512
AF72: 67 | AG72: 68 | AH72: ='Step 1'!E76 -> 68 | AI72: ='Step 1'!F76 -> 0.003770843417 | AJ72: ='Step 2'!$AX$5 -> 0.002221329823 | AK72: ='Step 3'!AQ72 -> 2.210569805e-05 | AL72: 0.001527407896 | AN72: 1 | AO72: 0 | AP72: 1 | AQ72: 1 | AR72: 1 | AS72: 1 | AT72: 1 | AU72: 1 | AV72: 1 | AW72: 1 | AX72: 1 | AY72: 1 | AZ72: 0 | BC72: 0.001541065148 | BG72: 0.003784500669
AF73: 68 | AG73: 69 | AH73: ='Step 1'!E77 -> 69 | AI73: ='Step 1'!F77 -> 0.003303325012 | AJ73: ='Step 2'!$AX$5 -> 0.002221329823 | AK73: ='Step 3'!AQ73 -> 2.00292088e-05 | AL73: 0.00106196598 | AN73: 1 | AO73: 0 | AP73: 1 | AQ73: 1 | AR73: 1 | AS73: 1 | AT73: 1 | AU73: 1 | AV73: 1 | AW73: 1 | AX73: 1 | AY73: 1 | AZ73: 0 | BC73: 0.001431846081 | BG73: 0.003673205112
AF74: 69 | AG74: 70 | AH74: ='Step 1'!E78 -> 70 | AI74: ='Step 1'!F78 -> 0.003682740214 | AJ74: ='Step 2'!$AX$5 -> 0.002221329823 | AK74: ='Step 3'!AQ74 -> 1.814777367e-05 | AL74: 0.001443262617 | AN74: 1 | AO74: 0 | AP74: 1 | AQ74: 1 | AR74: 1 | AS74: 1 | AT74: 1 | AU74: 1 | AV74: 1 | AW74: 1 | AX74: 1 | AY74: 1 | AZ74: 0 | BC74: 0.001330367604 | BG74: 0.0035698452
AF75: 70 | AG75: 71 | AH75: ='Step 1'!E79 -> 71 | AI75: ='Step 1'!F79 -> 0.004768430156 | AJ75: ='Step 2'!$AX$5 -> 0.002221329823 | AK75: ='Step 3'!AQ75 -> 1.644307034e-05 | AL75: 0.002530657263 | AN75: 1 | AO75: 0 | AP75: =IF($AH75=AP$4,0,1) -> 1 | AQ75: 1 | AR75: 1 | AS75: 1 | AT75: 1 | AU75: 1 | AV75: 1 | AW75: 1 | AX75: 1 | AY75: 1 | AZ75: 0 | BC75: 0.001236081136 | BG75: 0.003473854029
AF76: 71 | AG76: 72 | AH76: ='Step 1'!E80 -> 72 | AI76: ='Step 1'!F80 -> 0.003265792749 | AJ76: ='Step 2'!$AX$5 -> 0.002221329823 | AK76: ='Step 3'!AQ76 -> 1.489849758e-05 | AL76: 0.001029564428 | AN76: 1 | AO76: 0 | AP76: 1 | AQ76: 1 | AR76: 1 | AS76: 1 | AT76: 1 | AU76: 1 | AV76: 1 | AW76: 1 | AX76: 1 | AY76: 1 | AZ76: 0 | BC76: 0.00114847697 | BG76: 0.003384705291
AF77: 72 | AG77: 73 | AH77: ='Step 1'!E81 -> 73 | AI77: ='Step 1'!F81 -> 0.003785836556 | AJ77: ='Step 2'!$AX$5 -> 0.002221329823 | AK77: ='Step 3'!AQ77 -> 1.349901361e-05 | AL77: 0.001551007719 | AN77: 1 | AO77: 0 | AP77: 1 | AQ77: 1 | AR77: 1 | AS77: 1 | AT77: 1 | AU77: 1 | AV77: 1 | AW77: 1 | AX77: 1 | AY77: 1 | AZ77: 0 | BC77: 0.001067081521 | BG77: 0.003301910358
AF78: 73 | AG78: 74 | AH78: ='Step 1'!E82 -> 74 | AI78: ='Step 1'!F82 -> 0.003133387649 | AJ78: ='Step 2'!$AX$5 -> 0.002221329823 | AK78: ='Step 3'!AQ78 -> 1.223098956e-05 | AL78: 0.0008998268366 | AN78: 1 | AO78: 0 | AP78: 1 | AQ78: 1 | AR78: 1 | AS78: 1 | AT78: 1 | AU78: 1 | AV78: 1 | AW78: 1 | AX78: 1 | AY78: 1 | AZ78: 0 | BC78: 0.0009914547652 | BG78: 0.003225015578
AF79: 74 | AG79: 75 | AH79: ='Step 1'!E83 -> 75 | AI79: ='Step 1'!F83 -> 0.003358550681 | AJ79: ='Step 2'!$AX$5 -> 0.002221329823 | AK79: ='Step 3'!AQ79 -> 1.10820768e-05 | AL79: 0.001126138781 | AN79: 1 | AO79: 0 | AP79: 1 | AQ79: 1 | AR79: 1 | AS79: 1 | AT79: 1 | AU79: 1 | AV79: 1 | AW79: 1 | AX79: 1 | AY79: 1 | AZ79: 0 | BC79: 0.0009211878635 | BG79: 0.003153599763
AF80: 75 | AG80: 76 | AH80: ='Step 1'!E84 -> 76 | AI80: ='Step 1'!F84 -> 0.003315314349 | AJ80: ='Step 2'!$AX$5 -> 0.002221329823 | AK80: ='Step 3'!AQ80 -> 1.004108668e-05 | AL80: 0.001083943439 | AN80: 1 | AO80: 0 | AP80: 1 | AQ80: 1 | AR80: 1 | AS80: 1 | AT80: 1 | AU80: 1 | AV80: 1 | AW80: 1 | AX80: 1 | AY80: 1 | AZ80: 0 | BC80: 0.0008559009514 | BG80: 0.003087271861
AF81: 76 | AG81: 77 | AH81: ='Step 1'!E85 -> 77 | AI81: ='Step 1'!F85 -> 0.002055675773 | AJ81: ='Step 2'!$AX$5 -> 0.002221329823 | AK81: ='Step 3'!AQ81 -> 9.09788151e-06 | AL81: -0.0001747519319 | AN81: 1 | AO81: 0 | AP81: 1 | AQ81: 1 | AR81: 1 | AS81: 1 | AT81: 1 | AU81: 1 | AV81: 1 | AW81: 1 | AX81: 1 | AY81: 1 | AZ81: 0 | BC81: 0.0007952410858 | BG81: 0.00302566879
AF82: 77 | AG82: 78 | AH82: ='Step 1'!E86 -> 78 | AI82: ='Step 1'!F86 -> 0.004945519132 | AJ82: ='Step 2'!$AX$5 -> 0.002221329823 | AK82: ='Step 3'!AQ82 -> 8.243275916e-06 | AL82: 0.002715946033 | AN82: 1 | AO82: 0 | AP82: 1 | AQ82: 1 | AR82: 1 | AS82: 1 | AT82: 1 | AU82: 1 | AV82: 1 | AW82: 1 | AX82: 1 | AY82: 1 | AZ82: 0 | BC82: 0.0007388803368 | BG82: 0.002968453436
AF83: 78 | AG83: 79 | AH83: ='Step 1'!E87 -> 79 | AI83: ='Step 1'!F87 -> 0.002354386915 | AJ83: ='Step 2'!$AX$5 -> 0.002221329823 | AK83: ='Step 3'!AQ83 -> 7.468947331e-06 | AL83: 0.000125588145 | AN83: 1 | AO83: 0 | AP83: 1 | AQ83: 1 | AR83: 1 | AS83: 1 | AT83: 1 | AU83: 1 | AV83: 1 | AW83: 1 | AX83: 1 | AY83: 1 | AZ83: 0 | BC83: 0.0006865140159 | BG83: 0.002915312786
AF84: 79 | AG84: 80 | AH84: ='Step 1'!E88 -> 80 | AI84: ='Step 1'!F88 -> 0.003105722981 | AJ84: ='Step 2'!$AX$5 -> 0.002221329823 | AK84: ='Step 3'!AQ84 -> 6.767354969e-06 | AL84: 0.0008776258033 | AN84: 1 | AO84: 0 | AP84: 1 | AQ84: 1 | AR84: 1 | AS84: 1 | AT84: 1 | AU84: 1 | AV84: 1 | AW84: 1 | AX84: 1 | AY84: 1 | AZ84: 0 | BC84: 0.0006378590282 | BG84: 0.002865956206
AF85: 80 | AG85: 81 | AH85: ='Step 1'!E89 -> 81 | AI85: ='Step 1'!F89 -> 0.002082452578 | AJ85: ='Step 2'!$AX$5 -> 0.002221329823 | AK85: ='Step 3'!AQ85 -> 6.131666385e-06 | AL85: -0.0001450089119 | AN85: 1 | AO85: 0 | AP85: 1 | AQ85: 1 | AR85: 1 | AS85: 1 | AT85: 1 | AU85: 1 | AV85: 1 | AW85: 1 | AX85: 1 | AY85: 1 | AZ85: 0 | BC85: 0.0005926523423 | BG85: 0.002820113832
AF86: 81 | AG86: 82 | AH86: ='Step 1'!E90 -> 82 | AI86: ='Step 1'!F90 -> 0.002050944643 | AJ86: ='Step 2'!$AX$5 -> 0.002221329823 | AK86: ='Step 3'!AQ86 -> 5.555690935e-06 | AL86: -0.0001759408708 | AN86: 1 | AO86: 0 | AP86: 1 | AQ86: 1 | AR86: 1 | AS86: 1 | AT86: 1 | AU86: 1 | AV86: 1 | AW86: 1 | AX86: 1 | AY86: 1 | AZ86: 0 | BC86: 0.0005506495685 | BG86: 0.002777535082
AF87: 82 | AG87: 83 | AH87: ='Step 1'!E91 -> 83 | AI87: ='Step 1'!F91 -> 0.005339693094 | AJ87: ='Step 2'!$AX$5 -> 0.002221329823 | AK87: ='Step 3'!AQ87 -> 5.033819492e-06 | AL87: 0.003113329451 | AN87: 1 | AO87: 0 | AP87: 1 | AQ87: 1 | AR87: 1 | AS87: 1 | AT87: 1 | AU87: 1 | AV87: 1 | AW87: 1 | AX87: 1 | AY87: 1 | AZ87: 0 | BC87: 0.0005116236375 | BG87: 0.00273798728
AF88: 83 | AG88: 84 | AH88: ='Step 1'!E92 -> 84 | AI88: ='Step 1'!F92 -> 0.002577398257 | AJ88: ='Step 2'!$AX$5 -> 0.002221329823 | AK88: ='Step 3'!AQ88 -> 4.560969819e-06 | AL88: 0.0003515074644 | AN88: 1 | AO88: 0 | AP88: 1 | AQ88: 1 | AR88: 1 | AS88: 1 | AT88: 1 | AU88: 1 | AV88: 1 | AW88: 1 | AX88: 1 | AY88: 1 | AZ88: 0 | BC88: 0.0004753635731 | BG88: 0.002701254366
AF89: 84 | AG89: 85 | AH89: ='Step 1'!E93 -> 85 | AI89: ='Step 1'!F93 -> 0.002704312774 | AJ89: ='Step 2'!$AX$5 -> 0.002221329823 | AK89: ='Step 3'!AQ89 -> 4.132537077e-06 | AL89: 0.0004788504139 | AN89: 1 | AO89: 0 | AP89: 1 | AQ89: 1 | AR89: 1 | AS89: 1 | AT89: 1 | AU89: 1 | AV89: 1 | AW89: 1 | AX89: 1 | AY89: 1 | AZ89: 0 | BC89: 0.0004416733513 | BG89: 0.002667135711
AF90: =AF89+1 -> 85 | AG90: 86 | AH90: ='Step 1'!E94 -> 86 | AI90: ='Step 1'!F94 -> 0.004917637084 | AJ90: ='Step 2'!$AX$5 -> 0.002221329823 | AK90: ='Step 3'!AQ90 -> 3.74434898e-06 | AL90: =AI90-AJ90-AK90 -> 0.002692562913 | AN90: =IF($AO$2<=AH90,1,0) -> 1 | AO90: =IF($AQ$2>=AH90,1,0) -> 0 | AP90: 1 | AQ90: 1 | AR90: 1 | AS90: 1 | AT90: 1 | AU90: 1 | AV90: 1 | AW90: 1 | AX90: 1 | AY90: 1 | AZ90: =IF(SUM(AN90:AY90)=12,1,0) -> 0 | BB90: =IF(AZ90=1,AL90," ") ->  | BC90: =$P$5*EXP(-$P$6*(AH90-$P$7)-EXP(-$P$8*(AH90-$P$7))) -> 0.0004103708409 | BD90: =IF(AZ90=1,BC90-AL90," ") ->  | BE90: =IF(AZ90=1,BD90*BD90," ") ->  | BG90: =AJ90+AK90+BC90 -> 0.002635445013
AF91: =AF90+1 -> 86 | AG91: 87 | AH91: ='Step 1'!E95 -> 87 | AI91: ='Step 1'!F95 -> 0.002563189206 | AJ91: ='Step 2'!$AX$5 -> 0.002221329823 | AK91: ='Step 3'!AQ91 -> 3.392625166e-06 | AL91: 0.0003384667583 | AN91: 1 | AO91: 0 | AP91: =IF($AH91=AP$4,0,1) -> 1 | AQ91: 1 | AR91: 1 | AS91: 1 | AT91: 1 | AU91: 1 | AV91: 1 | AW91: 1 | AX91: 1 | AY91: 1 | AZ91: 0 | BC91: 0.0003812868188 | BG91: 0.002606009267
AF92: =AF91+1 -> 87 | AG92: 88 | AH92: ='Step 1'!E96 -> 88 | AI92: ='Step 1'!F96 -> 0.004947698351 | AJ92: ='Step 2'!$AX$5 -> 0.002221329823 | AK92: ='Step 3'!AQ92 -> 3.073940377e-06 | AL92: 0.002723294588 | AN92: 1 | AO92: 0 | AP92: 1 | AQ92: 1 | AR92: 1 | AS92: 1 | AT92: 1 | AU92: 1 | AV92: 1 | AW92: 1 | AX92: 1 | AY92: 1 | AZ92: 0 | BC92: 0.000354264055 | BG92: 0.002578667818
AF93: =AF92+1 -> 88 | AG93: 89 | AH93: ='Step 1'!E97 -> 89 | AI93: ='Step 1'!F97 -> 0.004703389061 | AJ93: ='Step 2'!$AX$5 -> 0.002221329823 | AK93: ='Step 3'!AQ93 -> 2.785191108e-06 | AL93: 0.002479274047 | AN93: 1 | AO93: 0 | AP93: 1 | AQ93: 1 | AR93: 1 | AS93: 1 | AT93: 1 | AU93: 1 | AV93: 1 | AW93: 1 | AX93: 1 | AY93: 1 | AZ93: 0 | BC93: 0.000329156463 | BG93: 0.002553271477
AF94: =AF93+1 -> 89 | AG94: 90 | AH94: ='Step 1'!E98 -> 90 | AI94: ='Step 1'!F98 -> 0 | AJ94: ='Step 2'!$AX$5 -> 0.002221329823 | AK94: ='Step 3'!AQ94 -> 2.523565376e-06 | AL94: -0.002223853388 | AN94: 1 | AO94: 0 | AP94: 1 | AQ94: 1 | AR94: 1 | AS94: 1 | AT94: 1 | AU94: 1 | AV94: 1 | AW94: 1 | AX94: 1 | AY94: 1 | AZ94: 0 | BC94: 0.0003058283097 | BG94: 0.002529681698
BD96: Sum of squared error | BE96: =SUM(BE5:BE89) -> 5.114441865e-05

Sheet Step 5
A1: Step 5: Estimate the retirement curve parameters
AO2: Fitted over ages | AP2: =D32 -> 50 | AQ2: to | AR2: =G32 -> 75 | AT2: TRUE
A4: (a) Does the migration age profile need a retirement curve? Assess this by seeing whether the migration probabilities around | AF4: Age 1 year before census | AG4: Age at census | AH4: Mean age | AI4: Probability scaled to unity | AJ4: Constant | AK4: Childhood | AL4: Labour force | AM4: m3 | AO4: Select if ≥ lower age | AP4: Select if ≤ upper age | AQ4: Select? | AS4: Selected m3 | AT4: Retirement curve | AU4: Error | AV4: Error squared | AX4: Total so far
A5: the retirement ages lie above the model migration schedule fitted up to now. | AF5: 0 | AG5: 1 | AH5: 1 | AI5: ='Step 1'!F9 -> 0.01847034265 | AJ5: ='Step 2'!AX5 -> 0.002221329823 | AK5: ='Step 3'!AQ5 -> 0.01639886133 | AL5: ='Step 4'!BC5 -> 1.019423912e-302 | AM5: =AI5-AJ5-AK5-AL5 -> -0.0001498485097 | AO5: =IF($AP$2<=AH5,1,0) -> 0 | AP5: =IF($AR$2>=AH5,1,0) -> 1 | AQ5: =IF(AO5+AP5=2,1,0) -> 0 | AS5: =IF(AQ5=1,AM5," ") ->  | AT5: =IF($AT$2=TRUE,$L$35*EXP(-((AH5-$L$37)/$L$36)*((AH5-$L$37)/$L$36)),0) -> 9.666226799e-33 | AU5: =IF(AQ5=1,AT5-AM5," ") ->  | AV5: =IF(AQ5=1,AU5*AU5," ") ->  | AX5: =AJ5+AK5+AL5+AT5 -> 0.01862019116
A6: If they do, a retirement curve is probably needed. If not, skip to the next step. | AF6: =AF5+1 -> 1 | AG6: =AG5+1 -> 2 | AH6: 2 | AI6: ='Step 1'!F10 -> 0.01682967443 | AJ6: ='Step 2'!AX6 -> 0.002221329823 | AK6: ='Step 3'!AQ6 -> 0.01485844133 | AL6: ='Step 4'!BC6 -> 4.152121503e-220 | AM6: =AI6-AJ6-AK6-AL6 -> -0.0002500967289 | AO6: =IF($AP$2<=AH6,1,0) -> 0 | AP6: 1 | AQ6: =IF(AO6+AP6=2,1,0) -> 0 | AS6: =IF(AQ6=1,AM6," ") ->  | AT6: =IF($AT$2=TRUE,$L$35*EXP(-((AH6-$L$37)/$L$36)*((AH6-$L$37)/$L$36)),0) -> 9.01198234e-32 | AU6: =IF(AQ6=1,AT6-AM6," ") ->  | AV6: =IF(AQ6=1,AU6*AU6," ") ->  | AX6: =AJ6+AK6+AL6+AT6 -> 0.01707977116
AF7: =AF6+1 -> 2 | AG7: 3 | AH7: 3 | AI7: ='Step 1'!F11 -> 0.01564059384 | AJ7: ='Step 2'!AX7 -> 0.002221329823 | AK7: ='Step 3'!AQ7 -> 0.01346272002 | AL7: ='Step 4'!BC7 -> 3.649364584e-160 | AM7: -4.345600757e-05 | AO7: 0 | AP7: 1 | AQ7: 0 | AT7: 8.093291614e-31 | AX7: 0.01568404985
AF8: 3 | AG8: 4 | AH8: 4 | AI8: ='Step 1'!F12 -> 0.01514314268 | AJ8: ='Step 2'!AX8 -> 0.002221329823 | AK8: ='Step 3'!AQ8 -> 0.0121981052 | AL8: ='Step 4'!BC8 -> 1.139551706e-116 | AM8: =AI8-AJ8-AK8-AL8 -> 0.0007237076627 | AO8: 0 | AP8: 1 | AQ8: 0 | AT8: 7.001184968e-30 | AX8: 0.01441943502
AF9: 4 | AG9: 5 | AH9: 5 | AI9: ='Step 1'!F13 -> 0.01282298842 | AJ9: ='Step 2'!AX9 -> 0.002221329823 | AK9: ='Step 3'!AQ9 -> 0.01105228142 | AL9: ='Step 4'!BC9 -> 4.105480575e-85 | AM9: -0.0004506228289 | AO9: 0 | AP9: 1 | AQ9: 0 | AT9: 5.833905905e-29 | AX9: 0.01327361125
AF10: 5 | AG10: 6 | AH10: 6 | AI10: ='Step 1'!F14 -> 0.01181927014 | AJ10: ='Step 2'!AX10 -> 0.002221329823 | AK10: ='Step 3'!AQ10 -> 0.01001409011 | AL10: ='Step 4'!BC10 -> 3.208345418e-62 | AM10: -0.0004161497893 | AO10: 0 | AP10: 1 | AQ10: 0 | AT10: 4.682618691e-28 | AX10: 0.01223541993
AF11: 6 | AG11: 7 | AH11: 7 | AI11: ='Step 1'!F15 -> 0.01062214458 | AJ11: ='Step 2'!AX11 -> 0.002221329823 | AK11: ='Step 3'!AQ11 -> 0.009073420855 | AL11: ='Step 4'!BC11 -> 1.293182917e-45 | AM11: -0.0006726060937 | AO11: 0 | AP11: 1 | AQ11: 0 | AT11: 3.620425993e-27 | AX11: 0.01129475068
AF12: 7 | AG12: 8 | AH12: 8 | AI12: ='Step 1'!F16 -> 0.01078436277 | AJ12: ='Step 2'!AX12 -> 0.002221329823 | AK12: ='Step 3'!AQ12 -> 0.008221112962 | AL12: ='Step 4'!BC12 -> 1.425501612e-33 | AM12: 0.0003419199814 | AO12: 0 | AP12: 1 | AQ12: 0 | AT12: 2.696323891e-26 | AX12: 0.01044244278
AF13: 8 | AG13: 9 | AH13: 9 | AI13: ='Step 1'!F17 -> 0.01069264214 | AJ13: ='Step 2'!AX13 -> 0.002221329823 | AK13: ='Step 3'!AQ13 -> 0.007448866245 | AL13: ='Step 4'!BC13 -> 7.668427656e-25 | AM13: 0.00102244607 | AO13: 0 | AP13: 1 | AQ13: 0 | AT13: 1.93430944e-25 | AX13: 0.009670196068
AF14: 9 | AG14: 10 | AH14: 10 | AI14: ='Step 1'!F18 -> 0.009245422404 | AJ14: ='Step 2'!AX14 -> 0.002221329823 | AK14: ='Step 3'!AQ14 -> 0.006749160191 | AL14: ='Step 4'!BC14 -> 1.62978934e-18 | AM14: 0.0002749323894 | AO14: 0 | AP14: 1 | AQ14: 0 | AT14: 1.336661221e-24 | AX14: 0.008970490014
AF15: 10 | AG15: 11 | AH15: 11 | AI15: ='Step 1'!F19 -> 0.008299889207 | AJ15: ='Step 2'!AX15 -> 0.002221329823 | AK15: ='Step 3'!AQ15 -> 0.006115180726 | AL15: ='Step 4'!BC15 -> 6.243007421e-14 | AM15: -3.662134232e-05 | AO15: 0 | AP15: 1 | AQ15: 0 | AT15: 8.897300346e-24 | AX15: 0.008336510549
AF16: 11 | AG16: 12 | AH16: 12 | AI16: ='Step 1'!F20 -> 0.007565120443 | AJ16: ='Step 2'!AX16 -> 0.002221329823 | AK16: ='Step 3'!AQ16 -> 0.005540753849 | AL16: ='Step 4'!BC16 -> 1.296762858e-10 | AM16: -0.0001969633593 | AO16: 0 | AP16: 1 | AQ16: 0 | AT16: 5.704750563e-23 | AX16: 0.007762083802
AF17: 12 | AG17: 13 | AH17: 13 | AI17: ='Step 1'!F21 -> 0.007393070284 | AJ17: ='Step 2'!AX17 -> 0.002221329823 | AK17: ='Step 3'!AQ17 -> 0.005020285515 | AL17: ='Step 4'!BC17 -> 3.248614499e-08 | AM17: 0.0001514224602 | AO17: 0 | AP17: 1 | AQ17: 0 | AT17: 3.523356387e-22 | AX17: 0.007241647824
AF18: 13 | AG18: 14 | AH18: 14 | AI18: ='Step 1'!F22 -> 0.006868482895 | AJ18: ='Step 2'!AX18 -> 0.002221329823 | AK18: ='Step 3'!AQ18 -> 0.00454870715 | AL18: ='Step 4'!BC18 -> 1.753302177e-06 | AM18: 9.669261991e-05 | AO18: 0 | AP18: 1 | AQ18: 0 | AT18: 2.096128941e-21 | AX18: 0.006771790275
AF19: 14 | AG19: 15 | AH19: 15 | AI19: ='Step 1'!F23 -> 0.005870014813 | AJ19: ='Step 2'!AX19 -> 0.002221329823 | AK19: ='Step 3'!AQ19 -> 0.004121426296 | AL19: ='Step 4'!BC19 -> 3.10588027e-05 | AM19: -0.0005038001091 | AO19: 0 | AP19: 1 | AQ19: 0 | AT19: 1.20121548e-20 | AX19: 0.006373814922
AF20: 15 | AG20: 16 | AH20: 16 | AI20: ='Step 1'!F24 -> 0.006094211519 | AJ20: ='Step 2'!AX20 -> 0.002221329823 | AK20: ='Step 3'!AQ20 -> 0.003734281886 | AL20: ='Step 4'!BC20 -> 0.0002451212712 | AM20: -0.0001065214619 | AO20: 0 | AP20: 1 | AQ20: 0 | AT20: 6.63079119e-20 | AX20: 0.006200732981
AF21: 16 | AG21: 17 | AH21: 17 | AI21: ='Step 1'!F25 -> 0.005831094064 | AJ21: ='Step 2'!AX21 -> 0.002221329823 | AK21: ='Step 3'!AQ21 -> 0.00338350372 | AL21: ='Step 4'!BC21 -> 0.001075844812 | AM21: -0.0008495842916 | AO21: 0 | AP21: 1 | AQ21: 0 | AT21: 3.525748169e-19 | AX21: 0.006680678355
AF22: 17 | AG22: 18 | AH22: 18 | AI22: ='Step 1'!F26 -> 0.01071066506 | AJ22: ='Step 2'!AX22 -> 0.002221329823 | AK22: ='Step 3'!AQ22 -> 0.003065675751 | AL22: ='Step 4'!BC22 -> 0.003084476999 | AM22: =AI22-AJ22-AK22-AL22 -> 0.002339182491 | AO22: 0 | AP22: 1 | AQ22: 0 | AT22: 1.805837769e-18 | AX22: 0.008371482572
AF23: 18 | AG23: 19 | AH23: 19 | AI23: ='Step 1'!F27 -> 0.01777846034 | AJ23: ='Step 2'!AX23 -> 0.002221329823 | AK23: ='Step 3'!AQ23 -> 0.002777702815 | AL23: ='Step 4'!BC23 -> 0.006492303965 | AM23: 0.006287123733 | AO23: 0 | AP23: 1 | AQ23: 0 | AT23: 8.909384065e-18 | AX23: 0.0114913366
AF24: 19 | AG24: 20 | AH24: 20 | AI24: ='Step 1'!F28 -> 0.01685787287 | AJ24: ='Step 2'!AX24 -> 0.002221329823 | AK24: ='Step 3'!AQ24 -> 0.002516780493 | AL24: ='Step 4'!BC24 -> 0.01091973891 | AM24: 0.001200023647 | AO24: 0 | AP24: 1 | AQ24: 0 | AT24: 4.234070991e-17 | AX24: 0.01565784922
AF25: =AF24+1 -> 20 | AG25: 21 | AH25: 21 | AI25: ='Step 1'!F29 -> 0.01844240418 | AJ25: ='Step 2'!AX25 -> 0.002221329823 | AK25: ='Step 3'!AQ25 -> 0.002280367798 | AL25: ='Step 4'!BC25 -> 0.01560761289 | AM25: -0.001666906329 | AO25: 0 | AP25: 1 | AQ25: 0 | AT25: 1.938251352e-16 | AX25: 0.02010931051
AF26: 21 | AG26: 22 | AH26: 22 | AI26: ='Step 1'!F30 -> 0.0242588571 | AJ26: ='Step 2'!AX26 -> 0.002221329823 | AK26: ='Step 3'!AQ26 -> 0.002066162428 | AL26: ='Step 4'!BC26 -> 0.01982253888 | AM26: 0.0001488259703 | AO26: 0 | AP26: 1 | AQ26: 0 | AT26: 8.546800399e-16 | AX26: 0.02411003113
AF27: 22 | AG27: 23 | AH27: 23 | AI27: ='Step 1'!F31 -> 0.02811146786 | AJ27: ='Step 2'!AX27 -> 0.002221329823 | AK27: ='Step 3'!AQ27 -> 0.001872078347 | AL27: ='Step 4'!BC27 -> 0.02310739297 | AM27: 0.000910666716 | AO27: 0 | AP27: 1 | AQ27: 0 | AT27: 3.630266712e-15 | AX27: 0.02720080114
AF28: 23 | AG28: 24 | AH28: 24 | AI28: ='Step 1'!F32 -> 0.02810891853 | AJ28: ='Step 2'!AX28 -> 0.002221329823 | AK28: ='Step 3'!AQ28 -> 0.001696225471 | AL28: ='Step 4'!BC28 -> 0.02531178574 | AM28: -0.001120422501 | AO28: 0 | AP28: 1 | AQ28: 0 | AT28: 1.485302838e-14 | AX28: 0.02922934104
AF29: 24 | AG29: 25 | AH29: 25 | AI29: ='Step 1'!F33 -> 0.0328139538 | AJ29: ='Step 2'!AX29 -> 0.002221329823 | AK29: ='Step 3'!AQ29 -> 0.00153689126 | AL29: ='Step 4'!BC29 -> 0.02650241478 | AM29: 0.002553317932 | AO29: 0 | AP29: 1 | AQ29: 0 | AT29: 5.853734139e-14 | AX29: 0.03026063587
AF30: 25 | AG30: 26 | AH30: 26 | AI30: ='Step 1'!F34 -> 0.02978052241 | AJ30: ='Step 2'!AX30 -> 0.002221329823 | AK30: ='Step 3'!AQ30 -> 0.001392524039 | AL30: ='Step 4'!BC30 -> 0.02685450132 | AM30: -0.000687832776 | AO30: 0 | AP30: 1 | AQ30: 0 | AT30: 2.22224779e-13 | AX30: 0.03046835518
A31: (b) If a retirement curve is needed select the age range over which it should be fitted. | AF31: 26 | AG31: 27 | AH31: 27 | AI31: ='Step 1'!F35 -> 0.03086728245 | AJ31: ='Step 2'!AX31 -> 0.002221329823 | AK31: ='Step 3'!AQ31 -> 0.001261717891 | AL31: ='Step 4'!BC31 -> 0.02657179091 | AM31: 0.0008124438251 | AO31: 0 | AP31: 1 | AQ31: 0 | AT31: 8.126311722e-13 | AX31: 0.03005483862
A32: Fit over ages | D32: 50 | E32: to | G32: 75 | AF32: 27 | AG32: 28 | AH32: 28 | AI32: ='Step 1'!F36 -> 0.02678199541 | AJ32: ='Step 2'!AX32 -> 0.002221329823 | AK32: ='Step 3'!AQ32 -> 0.001143198962 | AL32: ='Step 4'!BC32 -> 0.02584218668 | AM32: -0.002424720062 | AO32: 0 | AP32: 1 | AQ32: 0 | AT32: 2.862437271e-12 | AX32: 0.02920671547
K33: Starting | L33: Parameter | AF33: 28 | AG33: 29 | AH33: 29 | AI33: ='Step 1'!F37 -> 0.0257241948 | AJ33: ='Step 2'!AX33 -> 0.002221329823 | AK33: ='Step 3'!AQ33 -> 0.001035813059 | AL33: ='Step 4'!BC33 -> 0.02481979035 | AM33: -0.002352738431 | AO33: 0 | AP33: 1 | AQ33: 0 | AT33: 9.712252937e-12 | AX33: 0.02807693324
K34: values | L34: estimates | AF34: 29 | AG34: 30 | AH34: 30 | AI34: ='Step 1'!F38 -> 0.02760154041 | AJ34: ='Step 2'!AX34 -> 0.002221329823 | AK34: ='Step 3'!AQ34 -> 0.0009385144036 | AL34: ='Step 4'!BC34 -> 0.02362214195 | AM34: 0.000819554226 | AO34: 0 | AP34: 1 | AQ34: 0 | AT34: 3.174281925e-11 | AX34: 0.02678198621
A35: (c) | C35: to set the initial retirement curve parameters | J35: a3 (level) | K35: 0.005 | L35: 0.002408073603 | AF35: 30 | AG35: 31 | AH35: 31 | AI35: ='Step 1'!F39 -> 0.02534820876 | AJ35: ='Step 2'!AX35 -> 0.002221329823 | AK35: ='Step 3'!AQ35 -> 0.000850355456 | AL35: ='Step 4'!BC35 -> 0.02233446117 | AM35: -5.793768845e-05 | AO35: 0 | AP35: 1 | AQ35: 0 | AT35: 9.993382575e-11 | AX35: 0.02540614655
A36: Set your own starting value for the modal age of the | J36: rho 3 (slope) | K36: 5 | L36: 7.309151982 | AF36: 31 | AG36: 32 | AH36: 32 | AI36: ='Step 1'!F40 -> 0.02407291238 | AJ36: ='Step 2'!AX36 -> 0.002221329823 | AK36: ='Step 3'!AQ36 -> 0.0007704776812 | AL36: ='Step 4'!BC36 -> 0.02101611748 | AM36: 6.498739528e-05 | AO36: 0 | AP36: 1 | AQ36: 0 | AT36: 3.030547093e-10 | AX36: 0.02400792529
A37: retirement curve if you like -> | J37: mu3 (age) | K37: 60 | L37: 61.13426475 | AF37: 32 | AG37: 33 | AH37: 33 | AI37: ='Step 1'!F41 -> 0.02214434054 | AJ37: ='Step 2'!AX37 -> 0.002221329823 | AK37: ='Step 3'!AQ37 -> 0.000698103191 | AL37: ='Step 4'!BC37 -> 0.01970700176 | AM37: -0.0004820942372 | AO37: 0 | AP37: =IF($AR$2>=AH37,1,0) -> 1 | AQ37: 0 | AT37: 8.852604585e-10 | AX37: 0.02262643566
AF38: 33 | AG38: 34 | AH38: 34 | AI38: ='Step 1'!F42 -> 0.02219016839 | AJ38: ='Step 2'!AX38 -> 0.002221329823 | AK38: ='Step 3'!AQ38 -> 0.0006325271674 | AL38: ='Step 4'!BC38 -> 0.01843289445 | AM38: 0.0009034169459 | AO38: 0 | AP38: 1 | AQ38: 0 | AT38: 2.490936182e-09 | AX38: 0.02128675394
A39: (d) Then from the Data tab click on Solver and ensure that the "Set target cell" is L41, "Equal to" is Min, and "By changing cells" is L35:L37. | AF39: 34 | AG39: 35 | AH39: 35 | AI39: ='Step 1'!F43 -> 0.02295369041 | AJ39: ='Step 2'!AX39 -> 0.002221329823 | AK39: ='Step 3'!AQ39 -> 0.0005731109994 | AL39: ='Step 4'!BC39 -> 0.01720963966 | AM39: 0.002949609932 | AO39: 0 | AP39: 1 | AQ39: 0 | AT39: 6.751428018e-09 | AX39: 0.02000408723
AF40: 35 | AG40: 36 | AH40: 36 | AI40: ='Step 1'!F44 -> 0.01849808437 | AJ40: ='Step 2'!AX40 -> 0.002221329823 | AK40: ='Step 3'!AQ40 -> 0.0005192760637 | AL40: ='Step 4'!BC40 -> 0.01604623871 | AM40: -0.000288760227 | AO40: 0 | AP40: 1 | AQ40: 0 | AT40: 1.762666651e-08 | AX40: 0.01878686222
K41: Sum of squared error | L41: =AV96 -> 1.828353057e-05 | AF41: 36 | AG41: 37 | AH41: 37 | AI41: ='Step 1'!F45 -> 0.02019800861 | AJ41: ='Step 2'!AX41 -> 0.002221329823 | AK41: ='Step 3'!AQ41 -> 0.0004704980896 | AL41: ='Step 4'!BC41 -> 0.01494707248 | AM41: 0.002559108215 | AO41: 0 | AP41: 1 | AQ41: 0 | AT41: 4.432882706e-08 | AX41: 0.01763894472
AF42: 37 | AG42: 38 | AH42: 38 | AI42: ='Step 1'!F46 -> 0.01493046465 | AJ42: ='Step 2'!AX42 -> 0.002221329823 | AK42: ='Step 3'!AQ42 -> 0.0004263020535 | AL42: ='Step 4'!BC42 -> 0.01391346357 | AM42: -0.00163063079 | AO42: 0 | AP42: 1 | AQ42: 0 | AT42: 1.073850436e-07 | AX42: 0.01656120283
AF43: 38 | AG43: 39 | AH43: 39 | AI43: ='Step 1'!F47 -> 0.01698401927 | AJ43: ='Step 2'!AX43 -> 0.002221329823 | AK43: ='Step 3'!AQ43 -> 0.0003862575531 | AL43: ='Step 4'!BC43 -> 0.0129447572 | AM43: 0.001431674693 | AO43: 0 | AP43: 1 | AQ43: 0 | AT43: 2.505779555e-07 | AX43: 0.01555259515
AF44: 39 | AG44: 40 | AH44: 40 | AI44: ='Step 1'!F48 -> 0.01401981189 | AJ44: ='Step 2'!AX44 -> 0.002221329823 | AK44: ='Step 3'!AQ44 -> 0.0003499746156 | AL44: ='Step 4'!BC44 -> 0.01203905967 | AM44: -0.000590552224 | AO44: 0 | AP44: 1 | AQ44: 0 | AT44: 5.632269544e-07 | AX44: 0.01461092734
AF45: 40 | AG45: 41 | AH45: 41 | AI45: ='Step 1'!F49 -> 0.01369201076 | AJ45: ='Step 2'!AX45 -> 0.002221329823 | AK45: ='Step 3'!AQ45 -> 0.0003170999003 | AL45: ='Step 4'!BC45 -> 0.01119373732 | AM45: -4.015627707e-05 | AO45: 0 | AP45: 1 | AQ45: 0 | AT45: 1.219454233e-06 | AX45: 0.01373338649
AF46: 41 | AG46: 42 | AH46: 42 | AI46: ='Step 1'!F50 -> 0.01229027326 | AJ46: ='Step 2'!AX46 -> 0.002221329823 | AK46: ='Step 3'!AQ46 -> 0.0002873132573 | AL46: ='Step 4'!BC46 -> 0.01040574999 | AM46: -0.0006241198153 | AO46: 0 | AP46: 1 | AQ46: 0 | AT46: 2.543250195e-06 | AX46: 0.01291693632
AF47: 42 | AG47: 43 | AH47: 43 | AI47: ='Step 1'!F51 -> 0.0109922754 | AJ47: ='Step 2'!AX47 -> 0.002221329823 | AK47: ='Step 3'!AQ47 -> 0.0002603246098 | AL47: ='Step 4'!BC47 -> 0.009671871277 | AM47: -0.001161250307 | AO47: 0 | AP47: 1 | AQ47: 0 | AT47: 5.109214934e-06 | AX47: 0.01215863492
AF48: 43 | AG48: 44 | AH48: 44 | AI48: ='Step 1'!F52 -> 0.01052860559 | AJ48: ='Step 2'!AX48 -> 0.002221329823 | AK48: ='Step 3'!AQ48 -> 0.0002358711293 | AL48: ='Step 4'!BC48 -> 0.008988831626 | AM48: -0.0009174269868 | AO48: 0 | AP48: 1 | AQ48: 0 | AT48: 9.886914197e-06 | AX48: 0.01145591949
AF49: 44 | AG49: 45 | AH49: 45 | AI49: ='Step 1'!F53 -> 0.01021332873 | AJ49: ='Step 2'!AX49 -> 0.002221329823 | AK49: ='Step 3'!AQ49 -> 0.0002137146761 | AL49: ='Step 4'!BC49 -> 0.008353409525 | AM49: -0.0005751252993 | AO49: 0 | AP49: 1 | AQ49: 0 | AT49: 1.842930099e-05 | AX49: 0.01080688333
AF50: 45 | AG50: 46 | AH50: 46 | AI50: ='Step 1'!F54 -> 0.01080952127 | AJ50: ='Step 2'!AX50 -> 0.002221329823 | AK50: ='Step 3'!AQ50 -> 0.0001936394797 | AL50: ='Step 4'!BC50 -> 0.007762487699 | AM50: 0.0006320642656 | AO50: 0 | AP50: 1 | AQ50: 0 | AT50: 3.30901295e-05 | AX50: 0.01021054713
AF51: 46 | AG51: 47 | AH51: 47 | AI51: ='Step 1'!F55 -> 0.008557853594 | AJ51: ='Step 2'!AX51 -> 0.002221329823 | AK51: ='Step 3'!AQ51 -> 0.0001754500383 | AL51: ='Step 4'!BC51 -> 0.007213086032 | AM51: -0.001052012299 | AO51: 0 | AP51: 1 | AQ51: 0 | AT51: 5.723076831e-05 | AX51: 0.009667096661
AF52: 47 | AG52: 48 | AH52: 48 | AI52: ='Step 1'!F56 -> 0.008541971905 | AJ52: ='Step 2'!AX52 -> 0.002221329823 | AK52: ='Step 3'!AQ52 -> 0.0001589692143 | AL52: ='Step 4'!BC52 -> 0.006702379081 | AM52: -0.0005407062124 | AO52: 0 | AP52: 1 | AQ52: 0 | AT52: 9.534593708e-05 | AX52: 0.009178024055
AF53: 48 | AG53: 49 | AH53: 49 | AI53: ='Step 1'!F57 -> 0.009090777719 | AJ53: ='Step 2'!AX53 -> 0.002221329823 | AK53: ='Step 3'!AQ53 -> 0.0001440365094 | AL53: ='Step 4'!BC53 -> 0.006227703502 | AM53: 0.0004977078848 | AO53: 0 | AP53: 1 | AQ53: 0 | AT53: 0.0001530087659 | AX53: 0.0087460786
AF54: 49 | AG54: 50 | AH54: 50 | AI54: ='Step 1'!F58 -> 0.008592377184 | AJ54: ='Step 2'!AX54 -> 0.002221329823 | AK54: ='Step 3'!AQ54 -> 0.0001305065017 | AL54: ='Step 4'!BC54 -> 0.005786558975 | AM54: 0.0004539818851 | AO54: 1 | AP54: 1 | AQ54: 1 | AS54: 0.0004539818851 | AT54: 0.0002365222158 | AU54: -0.0002174596692 | AV54: 4.728870775e-08 | AX54: 0.008374917515
AF55: 50 | AG55: 51 | AH55: 51 | AI55: ='Step 1'!F59 -> 0.006591857645 | AJ55: ='Step 2'!AX55 -> 0.002221329823 | AK55: ='Step 3'!AQ55 -> 0.0001182474295 | AL55: ='Step 4'!BC55 -> 0.005376605024 | AM55: -0.001124324632 | AO55: 1 | AP55: 1 | AQ55: 1 | AS55: -0.001124324632 | AT55: 0.0003521835537 | AU55: 0.001476508185 | AV55: 2.180076422e-06 | AX55: 0.00806836583
AF56: 51 | AG56: 52 | AH56: 52 | AI56: ='Step 1'!F60 -> 0.007884424476 | AJ56: ='Step 2'!AX56 -> 0.002221329823 | AK56: ='Step 3'!AQ56 -> 0.0001071399079 | AL56: ='Step 4'!BC56 -> 0.004995655342 | AM56: 0.0005602994034 | AO56: 1 | AP56: 1 | AQ56: 1 | AS56: 0.0005602994034 | AT56: 0.0005051352889 | AU56: -5.516411452e-05 | AV56: 3.043079531e-09 | AX56: 0.007829260362
AF57: 52 | AG57: 53 | AH57: 53 | AI57: ='Step 1'!F61 -> 0.007294511921 | AJ57: ='Step 2'!AX57 -> 0.002221329823 | AK57: ='Step 3'!AQ57 -> 9.707576667e-05 | AL57: ='Step 4'!BC57 -> 0.004641670674 | AM57: 0.0003344356569 | AO57: 1 | AP57: 1 | AQ57: 1 | AS57: 0.0003344356569 | AT57: 0.0006978914109 | AU57: 0.000363455754 | AV57: 1.321000851e-07 | AX57: 0.007657967675
AF58: 53 | AG58: 54 | AH58: 54 | AI58: ='Step 1'!F62 -> 0.006774740079 | AJ58: ='Step 2'!AX58 -> 0.002221329823 | AK58: ='Step 3'!AQ58 -> 8.79569962e-05 | AL58: ='Step 4'!BC58 -> 0.004312750968 | AM58: 0.0001527022919 | AO58: 1 | AP58: 1 | AQ58: 1 | AS58: 0.0001527022919 | AT58: 0.0009287728317 | AU58: 0.0007760705398 | AV58: 6.022854828e-07 | AX58: 0.007550810618
AF59: 54 | AG59: 55 | AH59: 55 | AI59: ='Step 1'!F63 -> 0.008230679543 | AJ59: ='Step 2'!AX59 -> 0.002221329823 | AK59: ='Step 3'!AQ59 -> 7.969479351e-05 | AL59: ='Step 4'!BC59 -> 0.00400712724 | AM59: 0.001922527687 | AO59: 1 | AP59: 1 | AQ59: 1 | AS59: 0.001922527687 | AT59: 0.001190618588 | AU59: -0.000731909099 | AV59: 5.356909292e-07 | AX59: 0.007498770444
AF60: 55 | AG60: 56 | AH60: 56 | AI60: ='Step 1'!F64 -> 0.00889144135 | AJ60: ='Step 2'!AX60 -> 0.002221329823 | AK60: ='Step 3'!AQ60 -> 7.220869729e-05 | AL60: ='Step 4'!BC60 -> 0.003723153461 | AM60: 0.002874749369 | AO60: 1 | AP60: 1 | AQ60: 1 | AS60: 0.002874749369 | AT60: 0.00147020305 | AU60: -0.001404546319 | AV60: 1.972750361e-06 | AX60: 0.007486895032
AF61: 56 | AG61: 57 | AH61: 57 | AI61: ='Step 1'!F65 -> 0.007601015833 | AJ61: ='Step 2'!AX61 -> 0.002221329823 | AK61: ='Step 3'!AQ61 -> 6.542580431e-05 | AL61: ='Step 4'!BC61 -> 0.003459298625 | AM61: 0.001854961581 | AO61: 1 | AP61: 1 | AQ61: 1 | AS61: 0.001854961581 | AT61: 0.001748732922 | AU61: -0.000106228659 | AV61: 1.128452799e-08 | AX61: 0.007494787174
AF62: 57 | AG62: 58 | AH62: 58 | AI62: ='Step 1'!F66 -> 0.006531122986 | AJ62: ='Step 2'!AX62 -> 0.002221329823 | AK62: ='Step 3'!AQ62 -> 5.928005947e-05 | AL62: ='Step 4'!BC62 -> 0.003214139129 | AM62: 0.001036373974 | AO62: 1 | AP62: 1 | AQ62: 1 | AS62: 0.001036373974 | AT62: 0.002003600626 | AU62: 0.0009672266522 | AV62: 9.355273968e-07 | AX62: 0.007498349638
AF63: 58 | AG63: 59 | AH63: 59 | AI63: ='Step 1'!F67 -> 0.007960910246 | AJ63: ='Step 2'!AX63 -> 0.002221329823 | AK63: ='Step 3'!AQ63 -> 5.371161253e-05 | AL63: ='Step 4'!BC63 -> 0.002986351527 | AM63: 0.002699517283 | AO63: 1 | AP63: 1 | AQ63: 1 | AS63: 0.002699517283 | AT63: 0.002211262684 | AU63: -0.0004882545992 | AV63: 2.383925536e-07 | AX63: 0.007472655646
AF64: =AF63+1 -> 59 | AG64: 60 | AH64: 60 | AI64: ='Step 1'!F68 -> 0.006594800093 | AJ64: ='Step 2'!AX64 -> 0.002221329823 | AK64: ='Step 3'!AQ64 -> 4.866623526e-05 | AL64: ='Step 4'!BC64 -> 0.002774705663 | AM64: 0.001550098371 | AO64: 1 | AP64: 1 | AQ64: 1 | AS64: 0.001550098371 | AT64: 0.002350774771 | AU64: 0.0008006763998 | AV64: 6.410826972e-07 | AX64: 0.007395476492
AF65: 60 | AG65: 61 | AH65: 61 | AI65: ='Step 1'!F69 -> 0.008556242451 | AJ65: ='Step 2'!AX65 -> 0.002221329823 | AK65: ='Step 3'!AQ65 -> 4.409479334e-05 | AL65: ='Step 4'!BC65 -> 0.002578058232 | AM65: 0.003712759603 | AO65: 1 | AP65: 1 | AQ65: 1 | AS65: 0.003712759603 | AT65: 0.002407261172 | AU65: -0.001305498431 | AV65: 1.704326154e-06 | AX65: 0.00725074402
AF66: 61 | AG66: 62 | AH66: 62 | AI66: ='Step 1'!F70 -> 0.005984712644 | AJ66: ='Step 2'!AX66 -> 0.002221329823 | AK66: ='Step 3'!AQ66 -> 3.995276785e-05 | AL66: ='Step 4'!BC66 -> 0.002395346726 | AM66: 0.001328083327 | AO66: 1 | AP66: 1 | AQ66: 1 | AS66: 0.001328083327 | AT66: 0.002374525875 | AU66: 0.001046442548 | AV66: 1.095042007e-06 | AX66: 0.007031155192
AF67: 62 | AG67: 63 | AH67: 63 | AI67: ='Step 1'!F71 -> 0.005823769539 | AJ67: ='Step 2'!AX67 -> 0.002221329823 | AK67: ='Step 3'!AQ67 -> 3.619982176e-05 | AL67: ='Step 4'!BC67 -> 0.002225583791 | AM67: 0.001340656103 | AO67: 1 | AP67: 1 | AQ67: 1 | AS67: 0.001340656103 | AT67: 0.002256171494 | AU67: 0.0009155153903 | AV67: 8.3816843e-07 | AX67: 0.006739284929
AF68: 63 | AG68: 64 | AH68: 64 | AI68: ='Step 1'!F72 -> 0.006603193428 | AJ68: ='Step 2'!AX68 -> 0.002221329823 | AK68: ='Step 3'!AQ68 -> 3.279940704e-05 | AL68: ='Step 4'!BC68 -> 0.002067851942 | AM68: 0.002281212256 | AO68: 1 | AP68: 1 | AQ68: 1 | AS68: 0.002281212256 | AT68: 0.00206494655 | AU68: -0.0002162657064 | AV68: 4.677085575e-08 | AX68: 0.006386927722
AF69: 64 | AG69: 65 | AH69: 65 | AI69: ='Step 1'!F73 -> 0.006005997222 | AJ69: ='Step 2'!AX69 -> 0.002221329823 | AK69: ='Step 3'!AQ69 -> 2.971840882e-05 | AL69: ='Step 4'!BC69 -> 0.00192129865 | AM69: 0.00183365034 | AO69: 1 | AP69: =IF($AR$2>=AH69,1,0) -> 1 | AQ69: 1 | AS69: 0.00183365034 | AT69: 0.001820484675 | AU69: -1.31656652e-05 | AV69: 1.733347403e-10 | AX69: 0.005992831557
AF70: 65 | AG70: 66 | AH70: 66 | AI70: ='Step 1'!F74 -> 0.006832640956 | AJ70: ='Step 2'!AX70 -> 0.002221329823 | AK70: ='Step 3'!AQ70 -> 2.692682284e-05 | AL70: ='Step 4'!BC70 -> 0.001785131759 | AM70: =AI70-AJ70-AK70-AL70 -> 0.002799252551 | AO70: =IF($AP$2<=AH70,1,0) -> 1 | AP70: 1 | AQ70: =IF(AO70+AP70=2,1,0) -> 1 | AS70: =IF(AQ70=1,AM70," ") -> 0.002799252551 | AT70: =IF($AT$2=TRUE,$L$35*EXP(-((AH70-$L$37)/$L$36)*((AH70-$L$37)/$L$36)),0) -> 0.001545990233 | AU70: =IF(AQ70=1,AT70-AM70," ") -> -0.001253262318 | AV70: =IF(AQ70=1,AU70*AU70," ") -> 1.570666438e-06 | AX70: =AJ70+AK70+AL70+AT70 -> 0.005579378638
AF71: 66 | AG71: 67 | AH71: 67 | AI71: ='Step 1'!F75 -> 0.006626391789 | AJ71: ='Step 2'!AX71 -> 0.002221329823 | AK71: ='Step 3'!AQ71 -> 2.43974633e-05 | AL71: ='Step 4'!BC71 -> 0.001658615226 | AM71: 0.002722049277 | AO71: 1 | AP71: 1 | AQ71: 1 | AS71: 0.002722049277 | AT71: 0.001264643074 | AU71: -0.001457406202 | AV71: 2.124032838e-06 | AX71: 0.005168985586
AF72: 67 | AG72: 68 | AH72: 68 | AI72: ='Step 1'!F76 -> 0.003770843417 | AJ72: ='Step 2'!AX72 -> 0.002221329823 | AK72: ='Step 3'!AQ72 -> 2.210569805e-05 | AL72: ='Step 4'!BC72 -> 0.001541065148 | AM72: -1.365725238e-05 | AO72: 1 | AP72: 1 | AQ72: 1 | AS72: -1.365725238e-05 | AT72: 0.0009964848492 | AU72: 0.001010142102 | AV72: 1.020387065e-06 | AX72: 0.004780985518
AF73: 68 | AG73: 69 | AH73: 69 | AI73: ='Step 1'!F77 -> 0.003303325012 | AJ73: ='Step 2'!AX73 -> 0.002221329823 | AK73: ='Step 3'!AQ73 -> 2.00292088e-05 | AL73: ='Step 4'!BC73 -> 0.001431846081 | AM73: -0.0003698801005 | AO73: 1 | AP73: 1 | AQ73: 1 | AS73: -0.0003698801005 | AT73: 0.0007563362843 | AU73: 0.001126216385 | AV73: 1.268363345e-06 | AX73: 0.004429541397
AF74: 69 | AG74: 70 | AH74: 70 | AI74: ='Step 1'!F78 -> 0.003682740214 | AJ74: ='Step 2'!AX74 -> 0.002221329823 | AK74: ='Step 3'!AQ74 -> 1.814777367e-05 | AL74: ='Step 4'!BC74 -> 0.001330367604 | AM74: 0.0001128950133 | AO74: 1 | AP74: 1 | AQ74: 1 | AS74: 0.0001128950133 | AT74: 0.0005529688626 | AU74: 0.0004400738493 | AV74: 1.936649928e-07 | AX74: 0.004122814063
AF75: 70 | AG75: 71 | AH75: 71 | AI75: ='Step 1'!F79 -> 0.004768430156 | AJ75: ='Step 2'!AX75 -> 0.002221329823 | AK75: ='Step 3'!AQ75 -> 1.644307034e-05 | AL75: ='Step 4'!BC75 -> 0.001236081136 | AM75: 0.001294576127 | AO75: 1 | AP75: 1 | AQ75: 1 | AS75: 0.001294576127 | AT75: 0.0003894286725 | AU75: -0.0009051474545 | AV75: 8.192919144e-07 | AX75: 0.003863282702
AF76: 71 | AG76: 72 | AH76: 72 | AI76: ='Step 1'!F80 -> 0.003265792749 | AJ76: ='Step 2'!AX76 -> 0.002221329823 | AK76: ='Step 3'!AQ76 -> 1.489849758e-05 | AL76: ='Step 4'!BC76 -> 0.00114847697 | AM76: -0.000118912542 | AO76: 1 | AP76: 1 | AQ76: 1 | AS76: -0.000118912542 | AT76: 0.0002641780177 | AU76: 0.0003830905597 | AV76: 1.467583769e-07 | AX76: 0.003648883308
AF77: 72 | AG77: 73 | AH77: 73 | AI77: ='Step 1'!F81 -> 0.003785836556 | AJ77: ='Step 2'!AX77 -> 0.002221329823 | AK77: ='Step 3'!AQ77 -> 1.349901361e-05 | AL77: ='Step 4'!BC77 -> 0.001067081521 | AM77: 0.0004839261983 | AO77: 1 | AP77: 1 | AQ77: 1 | AS77: 0.0004839261983 | AT77: 0.0001726262895 | AU77: -0.0003112999088 | AV77: 9.69076332e-08 | AX77: 0.003474536647
AF78: 73 | AG78: 74 | AH78: 74 | AI78: ='Step 1'!F82 -> 0.003133387649 | AJ78: ='Step 2'!AX78 -> 0.002221329823 | AK78: ='Step 3'!AQ78 -> 1.223098956e-05 | AL78: ='Step 4'!BC78 -> 0.0009914547652 | AM78: -9.16279285e-05 | AO78: 1 | AP78: 1 | AQ78: 1 | AS78: -9.16279285e-05 | AT78: 0.0001086572477 | AU78: 0.0002002851762 | AV78: 4.011415181e-08 | AX78: 0.003333672825
AF79: 74 | AG79: 75 | AH79: 75 | AI79: ='Step 1'!F83 -> 0.003358550681 | AJ79: ='Step 2'!AX79 -> 0.002221329823 | AK79: ='Step 3'!AQ79 -> 1.10820768e-05 | AL79: ='Step 4'!BC79 -> 0.0009211878635 | AM79: 0.000204950918 | AO79: 1 | AP79: 1 | AQ79: 1 | AS79: 0.000204950918 | AT79: 6.587975421e-05 | AU79: -0.0001390711638 | AV79: 1.93407886e-08 | AX79: 0.003219479517
AF80: 75 | AG80: 76 | AH80: 76 | AI80: ='Step 1'!F84 -> 0.003315314349 | AJ80: ='Step 2'!AX80 -> 0.002221329823 | AK80: ='Step 3'!AQ80 -> 1.004108668e-05 | AL80: ='Step 4'!BC80 -> 0.0008559009514 | AM80: 0.000228042488 | AO80: 1 | AP80: 0 | AQ80: 0 | AT80: 3.847571916e-05 | AX80: 0.00312574758
AF81: 76 | AG81: 77 | AH81: 77 | AI81: ='Step 1'!F85 -> 0.002055675773 | AJ81: ='Step 2'!AX81 -> 0.002221329823 | AK81: ='Step 3'!AQ81 -> 9.09788151e-06 | AL81: ='Step 4'!BC81 -> 0.0007952410858 | AM81: -0.0009699930176 | AO81: 1 | AP81: 0 | AQ81: 0 | AT81: 2.1645271e-05 | AX81: 0.003047314061
AF82: 77 | AG82: 78 | AH82: 78 | AI82: ='Step 1'!F86 -> 0.004945519132 | AJ82: ='Step 2'!AX82 -> 0.002221329823 | AK82: ='Step 3'!AQ82 -> 8.243275916e-06 | AL82: ='Step 4'!BC82 -> 0.0007388803368 | AM82: 0.001977065696 | AO82: 1 | AP82: 0 | AQ82: 0 | AT82: 1.172953553e-05 | AX82: 0.002980182971
AF83: 78 | AG83: 79 | AH83: 79 | AI83: ='Step 1'!F87 -> 0.002354386915 | AJ83: ='Step 2'!AX83 -> 0.002221329823 | AK83: ='Step 3'!AQ83 -> 7.468947331e-06 | AL83: ='Step 4'!BC83 -> 0.0006865140159 | AM83: -0.000560925871 | AO83: 1 | AP83: 0 | AQ83: 0 | AT83: 6.122659505e-06 | AX83: 0.002921435446
AF84: 79 | AG84: 80 | AH84: 80 | AI84: ='Step 1'!F88 -> 0.003105722981 | AJ84: ='Step 2'!AX84 -> 0.002221329823 | AK84: ='Step 3'!AQ84 -> 6.767354969e-06 | AL84: ='Step 4'!BC84 -> 0.0006378590282 | AM84: 0.0002397667751 | AO84: 1 | AP84: 0 | AQ84: 0 | AT84: 3.078512397e-06 | AX84: 0.002869034719
AF85: 80 | AG85: 81 | AH85: 81 | AI85: ='Step 1'!F89 -> 0.002082452578 | AJ85: ='Step 2'!AX85 -> 0.002221329823 | AK85: ='Step 3'!AQ85 -> 6.131666385e-06 | AL85: ='Step 4'!BC85 -> 0.0005926523423 | AM85: -0.0007376612541 | AO85: 1 | AP85: 0 | AQ85: 0 | AT85: 1.491019115e-06 | AX85: 0.002821604851
AF86: 81 | AG86: 82 | AH86: 82 | AI86: ='Step 1'!F90 -> 0.002050944643 | AJ86: ='Step 2'!AX86 -> 0.002221329823 | AK86: ='Step 3'!AQ86 -> 5.555690935e-06 | AL86: ='Step 4'!BC86 -> 0.0005506495685 | AM86: -0.0007265904393 | AO86: 1 | AP86: 0 | AQ86: 0 | AT86: 6.956119298e-07 | AX86: 0.002778230694
AF87: 82 | AG87: 83 | AH87: 83 | AI87: ='Step 1'!F91 -> 0.005339693094 | AJ87: ='Step 2'!AX87 -> 0.002221329823 | AK87: ='Step 3'!AQ87 -> 5.033819492e-06 | AL87: ='Step 4'!BC87 -> 0.0005116236375 | AM87: 0.002601705814 | AO87: 1 | AP87: 0 | AQ87: 0 | AT87: 3.126024213e-07 | AX87: 0.002738299882
AF88: 83 | AG88: 84 | AH88: 84 | AI88: ='Step 1'!F92 -> 0.002577398257 | AJ88: ='Step 2'!AX88 -> 0.002221329823 | AK88: ='Step 3'!AQ88 -> 4.560969819e-06 | AL88: ='Step 4'!BC88 -> 0.0004753635731 | AM88: -0.0001238561087 | AO88: 1 | AP88: 0 | AQ88: 0 | AT88: 1.353191183e-07 | AX88: 0.002701389685
AF89: 84 | AG89: 85 | AH89: 85 | AI89: ='Step 1'!F93 -> 0.002704312774 | AJ89: ='Step 2'!AX89 -> 0.002221329823 | AK89: ='Step 3'!AQ89 -> 4.132537077e-06 | AL89: ='Step 4'!BC89 -> 0.0004416733513 | AM89: 3.717706261e-05 | AO89: 1 | AP89: 0 | AQ89: 0 | AT89: 5.64244698e-08 | AX89: 0.002667192136
AF90: =AF89+1 -> 85 | AG90: 86 | AH90: 86 | AI90: ='Step 1'!F94 -> 0.004917637084 | AJ90: ='Step 2'!AX90 -> 0.002221329823 | AK90: ='Step 3'!AQ90 -> 3.74434898e-06 | AL90: ='Step 4'!BC90 -> 0.0004103708409 | AM90: =AI90-AJ90-AK90-AL90 -> 0.002282192072 | AO90: =IF($AP$2<=AH90,1,0) -> 1 | AP90: =IF($AR$2>=AH90,1,0) -> 0 | AQ90: =IF(AO90+AP90=2,1,0) -> 0 | AS90: =IF(AQ90=1,AM90," ") ->  | AT90: =IF($AT$2=TRUE,$L$35*EXP(-((AH90-$L$37)/$L$36)*((AH90-$L$37)/$L$36)),0) -> 2.266299589e-08 | AU90: =IF(AQ90=1,AT90-AM90," ") ->  | AV90: =IF(AQ90=1,AU90*AU90," ") ->  | AX90: =AJ90+AK90+AL90+AT90 -> 0.002635467676
AF91: =AF90+1 -> 86 | AG91: 87 | AH91: 87 | AI91: ='Step 1'!F95 -> 0.002563189206 | AJ91: ='Step 2'!AX91 -> 0.002221329823 | AK91: ='Step 3'!AQ91 -> 3.392625166e-06 | AL91: ='Step 4'!BC91 -> 0.0003812868188 | AM91: -4.282006049e-05 | AO91: 1 | AP91: 0 | AQ91: 0 | AT91: 8.768163894e-09 | AX91: 0.002606018035
AF92: =AF91+1 -> 87 | AG92: 88 | AH92: 88 | AI92: ='Step 1'!F96 -> 0.004947698351 | AJ92: ='Step 2'!AX92 -> 0.002221329823 | AK92: ='Step 3'!AQ92 -> 3.073940377e-06 | AL92: ='Step 4'!BC92 -> 0.000354264055 | AM92: 0.002369030533 | AO92: 1 | AP92: 0 | AQ92: 0 | AT92: 3.267694926e-09 | AX92: 0.002578671086
AF93: =AF92+1 -> 88 | AG93: 89 | AH93: 89 | AI93: ='Step 1'!F97 -> 0.004703389061 | AJ93: ='Step 2'!AX93 -> 0.002221329823 | AK93: ='Step 3'!AQ93 -> 2.785191108e-06 | AL93: ='Step 4'!BC93 -> 0.000329156463 | AM93: 0.002150117584 | AO93: 1 | AP93: 0 | AQ93: 0 | AT93: 1.173048191e-09 | AX93: 0.00255327265
AF94: =AF93+1 -> 89 | AG94: 90 | AH94: 90 | AI94: ='Step 1'!F98 -> 0 | AJ94: ='Step 2'!AX94 -> 0.002221329823 | AK94: ='Step 3'!AQ94 -> 2.523565376e-06 | AL94: ='Step 4'!BC94 -> 0.0003058283097 | AM94: -0.002529681698 | AO94: 1 | AP94: 0 | AQ94: 0 | AT94: 4.056315344e-10 | AX94: 0.002529682104
AU96: Sum of error squared | AV96: =SUM(AV5:AV89) -> 1.828353057e-05

Sheet Step 6
A1: Step 6: Estimate the elderly curve parameters | AG1: Childhood curve is fitted via linearisation. M4 = a4 exp(alpha4 x) is linearised to Y (ln m4) = C (ln a4) + M (alpha4) X (x)
AQ2: Fitted over ages | AR2: =D33 -> 70 | AS2: to | AT2: =G33 -> 84 | AV2: FALSE
A4: (a) Does the migration age profile need an elderly curve? Assess this by seeing whether the migration probabilities | AG4: Age 1 year before census | AH4: Age at census | AI4: Mean age | AJ4: Probability scaled to unity | AK4: Constant | AL4: Childhood | AM4: Labour force | AN4: Retirement | AO4: m4 | AQ4: Select if ≥ lower age | AR4: Select if ≤ upper age | AU4: Select? | AV4: Selected m4 | AW4: Elderly curve | AX4: Error | AY4: Error squared | BA4: Total so far
A5: at the very oldest ages lie above the model migration schedule fitted up to now. | AG5: 0 | AH5: 1 | AI5: 1 | AJ5: ='Step 1'!F9 -> 0.01847034265 | AK5: ='Step 2'!AX5 -> 0.002221329823 | AL5: ='Step 3'!AQ5 -> 0.01639886133 | AM5: ='Step 4'!BC5 -> 1.019423912e-302 | AN5: ='Step 5'!AT5 -> 9.666226799e-33 | AO5: =AJ5-AK5-AL5-AM5-AN5 -> -0.0001498485097 | AQ5: =IF($AR$2<=AI5,1,0) -> 0 | AR5: =IF($AT$2>=AI5,1,0) -> 1 | AU5: =IF(AQ5+AR5=2,1,0) -> 0 | AV5: =IF(AU5=1,AO5,"") ->  | AW5: =IF($AV$2=TRUE,$L$38*EXP($L$39*AI5),0) -> 0 | AX5: =IF(AU5=1,AW5-AV5,"") ->  | AY5: =IF(AU5=1,AX5*AX5,"") ->  | BA5: =AK5+AL5+AM5+AN5+AW5 -> 0.01862019116
A6: If they do, a retirement curve is probably needed. If not, skip to the next step. | AG6: 1 | AH6: 2 | AI6: 2 | AJ6: ='Step 1'!F10 -> 0.01682967443 | AK6: ='Step 2'!AX6 -> 0.002221329823 | AL6: ='Step 3'!AQ6 -> 0.01485844133 | AM6: ='Step 4'!BC6 -> 4.152121503e-220 | AN6: ='Step 5'!AT6 -> 9.01198234e-32 | AO6: =AJ6-AK6-AL6-AM6-AN6 -> -0.0002500967289 | AQ6: =IF($AR$2<=AI6,1,0) -> 0 | AR6: 1 | AU6: =IF(AQ6+AR6=2,1,0) -> 0 | AW6: 0 | AX6: =IF(AU6=1,AW6-AV6,"") ->  | AY6: =IF(AU6=1,AX6*AX6,"") ->  | BA6: 0.01707977116
AG7: 2 | AH7: 3 | AI7: 3 | AJ7: ='Step 1'!F11 -> 0.01564059384 | AK7: ='Step 2'!AX7 -> 0.002221329823 | AL7: ='Step 3'!AQ7 -> 0.01346272002 | AM7: ='Step 4'!BC7 -> 3.649364584e-160 | AN7: ='Step 5'!AT7 -> 8.093291614e-31 | AO7: -4.345600757e-05 | AQ7: 0 | AR7: 1 | AU7: 0 | AW7: 0 | BA7: 0.01568404985
AG8: 3 | AH8: 4 | AI8: 4 | AJ8: ='Step 1'!F12 -> 0.01514314268 | AK8: ='Step 2'!AX8 -> 0.002221329823 | AL8: ='Step 3'!AQ8 -> 0.0121981052 | AM8: ='Step 4'!BC8 -> 1.139551706e-116 | AN8: ='Step 5'!AT8 -> 7.001184968e-30 | AO8: 0.0007237076627 | AQ8: 0 | AR8: 1 | AU8: 0 | AW8: 0 | BA8: 0.01441943502
AG9: 4 | AH9: 5 | AI9: 5 | AJ9: ='Step 1'!F13 -> 0.01282298842 | AK9: ='Step 2'!AX9 -> 0.002221329823 | AL9: ='Step 3'!AQ9 -> 0.01105228142 | AM9: ='Step 4'!BC9 -> 4.105480575e-85 | AN9: ='Step 5'!AT9 -> 5.833905905e-29 | AO9: -0.0004506228289 | AQ9: 0 | AR9: 1 | AU9: 0 | AW9: 0 | BA9: 0.01327361125
AG10: 5 | AH10: 6 | AI10: 6 | AJ10: ='Step 1'!F14 -> 0.01181927014 | AK10: ='Step 2'!AX10 -> 0.002221329823 | AL10: ='Step 3'!AQ10 -> 0.01001409011 | AM10: ='Step 4'!BC10 -> 3.208345418e-62 | AN10: ='Step 5'!AT10 -> 4.682618691e-28 | AO10: -0.0004161497893 | AQ10: 0 | AR10: 1 | AU10: 0 | AW10: 0 | BA10: 0.01223541993
AG11: 6 | AH11: 7 | AI11: 7 | AJ11: ='Step 1'!F15 -> 0.01062214458 | AK11: ='Step 2'!AX11 -> 0.002221329823 | AL11: ='Step 3'!AQ11 -> 0.009073420855 | AM11: ='Step 4'!BC11 -> 1.293182917e-45 | AN11: ='Step 5'!AT11 -> 3.620425993e-27 | AO11: -0.0006726060937 | AQ11: 0 | AR11: 1 | AU11: 0 | AW11: 0 | BA11: 0.01129475068
AG12: 7 | AH12: 8 | AI12: 8 | AJ12: ='Step 1'!F16 -> 0.01078436277 | AK12: ='Step 2'!AX12 -> 0.002221329823 | AL12: ='Step 3'!AQ12 -> 0.008221112962 | AM12: ='Step 4'!BC12 -> 1.425501612e-33 | AN12: ='Step 5'!AT12 -> 2.696323891e-26 | AO12: 0.0003419199814 | AQ12: 0 | AR12: 1 | AU12: 0 | AW12: 0 | BA12: 0.01044244278
AG13: 8 | AH13: 9 | AI13: 9 | AJ13: ='Step 1'!F17 -> 0.01069264214 | AK13: ='Step 2'!AX13 -> 0.002221329823 | AL13: ='Step 3'!AQ13 -> 0.007448866245 | AM13: ='Step 4'!BC13 -> 7.668427656e-25 | AN13: ='Step 5'!AT13 -> 1.93430944e-25 | AO13: 0.00102244607 | AQ13: 0 | AR13: 1 | AU13: 0 | AW13: 0 | BA13: 0.009670196068
AG14: 9 | AH14: 10 | AI14: 10 | AJ14: ='Step 1'!F18 -> 0.009245422404 | AK14: ='Step 2'!AX14 -> 0.002221329823 | AL14: ='Step 3'!AQ14 -> 0.006749160191 | AM14: ='Step 4'!BC14 -> 1.62978934e-18 | AN14: ='Step 5'!AT14 -> 1.336661221e-24 | AO14: 0.0002749323894 | AQ14: 0 | AR14: 1 | AU14: 0 | AW14: 0 | BA14: 0.008970490014
AG15: 10 | AH15: 11 | AI15: 11 | AJ15: ='Step 1'!F19 -> 0.008299889207 | AK15: ='Step 2'!AX15 -> 0.002221329823 | AL15: ='Step 3'!AQ15 -> 0.006115180726 | AM15: ='Step 4'!BC15 -> 6.243007421e-14 | AN15: ='Step 5'!AT15 -> 8.897300346e-24 | AO15: -3.662134232e-05 | AQ15: 0 | AR15: 1 | AU15: 0 | AW15: 0 | BA15: 0.008336510549
AG16: 11 | AH16: 12 | AI16: 12 | AJ16: ='Step 1'!F20 -> 0.007565120443 | AK16: ='Step 2'!AX16 -> 0.002221329823 | AL16: ='Step 3'!AQ16 -> 0.005540753849 | AM16: ='Step 4'!BC16 -> 1.296762858e-10 | AN16: ='Step 5'!AT16 -> 5.704750563e-23 | AO16: -0.0001969633593 | AQ16: 0 | AR16: 1 | AU16: 0 | AW16: 0 | BA16: 0.007762083802
AG17: 12 | AH17: 13 | AI17: 13 | AJ17: ='Step 1'!F21 -> 0.007393070284 | AK17: ='Step 2'!AX17 -> 0.002221329823 | AL17: ='Step 3'!AQ17 -> 0.005020285515 | AM17: ='Step 4'!BC17 -> 3.248614499e-08 | AN17: ='Step 5'!AT17 -> 3.523356387e-22 | AO17: 0.0001514224602 | AQ17: 0 | AR17: 1 | AU17: 0 | AW17: 0 | BA17: 0.007241647824
AG18: 13 | AH18: 14 | AI18: 14 | AJ18: ='Step 1'!F22 -> 0.006868482895 | AK18: ='Step 2'!AX18 -> 0.002221329823 | AL18: ='Step 3'!AQ18 -> 0.00454870715 | AM18: ='Step 4'!BC18 -> 1.753302177e-06 | AN18: ='Step 5'!AT18 -> 2.096128941e-21 | AO18: 9.669261991e-05 | AQ18: 0 | AR18: 1 | AU18: 0 | AW18: 0 | BA18: 0.006771790275
AG19: 14 | AH19: 15 | AI19: 15 | AJ19: ='Step 1'!F23 -> 0.005870014813 | AK19: ='Step 2'!AX19 -> 0.002221329823 | AL19: ='Step 3'!AQ19 -> 0.004121426296 | AM19: ='Step 4'!BC19 -> 3.10588027e-05 | AN19: ='Step 5'!AT19 -> 1.20121548e-20 | AO19: -0.0005038001091 | AQ19: 0 | AR19: 1 | AU19: 0 | AW19: 0 | BA19: 0.006373814922
AG20: 15 | AH20: 16 | AI20: 16 | AJ20: ='Step 1'!F24 -> 0.006094211519 | AK20: ='Step 2'!AX20 -> 0.002221329823 | AL20: ='Step 3'!AQ20 -> 0.003734281886 | AM20: ='Step 4'!BC20 -> 0.0002451212712 | AN20: ='Step 5'!AT20 -> 6.63079119e-20 | AO20: -0.0001065214619 | AQ20: 0 | AR20: 1 | AU20: 0 | AW20: 0 | BA20: 0.006200732981
AG21: 16 | AH21: 17 | AI21: 17 | AJ21: ='Step 1'!F25 -> 0.005831094064 | AK21: ='Step 2'!AX21 -> 0.002221329823 | AL21: ='Step 3'!AQ21 -> 0.00338350372 | AM21: ='Step 4'!BC21 -> 0.001075844812 | AN21: ='Step 5'!AT21 -> 3.525748169e-19 | AO21: -0.0008495842916 | AQ21: 0 | AR21: 1 | AU21: 0 | AW21: 0 | BA21: 0.006680678355
AG22: 17 | AH22: 18 | AI22: 18 | AJ22: ='Step 1'!F26 -> 0.01071066506 | AK22: ='Step 2'!AX22 -> 0.002221329823 | AL22: ='Step 3'!AQ22 -> 0.003065675751 | AM22: ='Step 4'!BC22 -> 0.003084476999 | AN22: ='Step 5'!AT22 -> 1.805837769e-18 | AO22: 0.002339182491 | AQ22: 0 | AR22: 1 | AU22: 0 | AW22: 0 | BA22: 0.008371482572
AG23: 18 | AH23: 19 | AI23: 19 | AJ23: ='Step 1'!F27 -> 0.01777846034 | AK23: ='Step 2'!AX23 -> 0.002221329823 | AL23: ='Step 3'!AQ23 -> 0.002777702815 | AM23: ='Step 4'!BC23 -> 0.006492303965 | AN23: ='Step 5'!AT23 -> 8.909384065e-18 | AO23: 0.006287123733 | AQ23: 0 | AR23: 1 | AU23: 0 | AW23: 0 | BA23: 0.0114913366
AG24: 19 | AH24: 20 | AI24: 20 | AJ24: ='Step 1'!F28 -> 0.01685787287 | AK24: ='Step 2'!AX24 -> 0.002221329823 | AL24: ='Step 3'!AQ24 -> 0.002516780493 | AM24: ='Step 4'!BC24 -> 0.01091973891 | AN24: ='Step 5'!AT24 -> 4.234070991e-17 | AO24: 0.001200023647 | AQ24: 0 | AR24: 1 | AU24: 0 | AW24: 0 | BA24: 0.01565784922
AG25: 20 | AH25: 21 | AI25: 21 | AJ25: ='Step 1'!F29 -> 0.01844240418 | AK25: ='Step 2'!AX25 -> 0.002221329823 | AL25: ='Step 3'!AQ25 -> 0.002280367798 | AM25: ='Step 4'!BC25 -> 0.01560761289 | AN25: ='Step 5'!AT25 -> 1.938251352e-16 | AO25: -0.001666906329 | AQ25: 0 | AR25: 1 | AU25: 0 | AW25: 0 | BA25: 0.02010931051
AG26: 21 | AH26: 22 | AI26: 22 | AJ26: ='Step 1'!F30 -> 0.0242588571 | AK26: ='Step 2'!AX26 -> 0.002221329823 | AL26: ='Step 3'!AQ26 -> 0.002066162428 | AM26: ='Step 4'!BC26 -> 0.01982253888 | AN26: ='Step 5'!AT26 -> 8.546800399e-16 | AO26: 0.0001488259703 | AQ26: 0 | AR26: 1 | AU26: 0 | AW26: 0 | BA26: 0.02411003113
AG27: 22 | AH27: 23 | AI27: 23 | AJ27: ='Step 1'!F31 -> 0.02811146786 | AK27: ='Step 2'!AX27 -> 0.002221329823 | AL27: ='Step 3'!AQ27 -> 0.001872078347 | AM27: ='Step 4'!BC27 -> 0.02310739297 | AN27: ='Step 5'!AT27 -> 3.630266712e-15 | AO27: 0.000910666716 | AQ27: 0 | AR27: 1 | AU27: 0 | AW27: 0 | BA27: 0.02720080114
AG28: 23 | AH28: 24 | AI28: 24 | AJ28: ='Step 1'!F32 -> 0.02810891853 | AK28: ='Step 2'!AX28 -> 0.002221329823 | AL28: ='Step 3'!AQ28 -> 0.001696225471 | AM28: ='Step 4'!BC28 -> 0.02531178574 | AN28: ='Step 5'!AT28 -> 1.485302838e-14 | AO28: -0.001120422501 | AQ28: 0 | AR28: 1 | AU28: 0 | AW28: 0 | BA28: 0.02922934104
AG29: 24 | AH29: 25 | AI29: 25 | AJ29: ='Step 1'!F33 -> 0.0328139538 | AK29: ='Step 2'!AX29 -> 0.002221329823 | AL29: ='Step 3'!AQ29 -> 0.00153689126 | AM29: ='Step 4'!BC29 -> 0.02650241478 | AN29: ='Step 5'!AT29 -> 5.853734139e-14 | AO29: 0.002553317932 | AQ29: 0 | AR29: 1 | AU29: 0 | AW29: 0 | BA29: 0.03026063587
AG30: 25 | AH30: 26 | AI30: 26 | AJ30: ='Step 1'!F34 -> 0.02978052241 | AK30: ='Step 2'!AX30 -> 0.002221329823 | AL30: ='Step 3'!AQ30 -> 0.001392524039 | AM30: ='Step 4'!BC30 -> 0.02685450132 | AN30: ='Step 5'!AT30 -> 2.22224779e-13 | AO30: -0.0006878327762 | AQ30: 0 | AR30: 1 | AU30: 0 | AW30: 0 | BA30: 0.03046835518
AG31: 26 | AH31: 27 | AI31: 27 | AJ31: ='Step 1'!F35 -> 0.03086728245 | AK31: ='Step 2'!AX31 -> 0.002221329823 | AL31: ='Step 3'!AQ31 -> 0.001261717891 | AM31: ='Step 4'!BC31 -> 0.02657179091 | AN31: ='Step 5'!AT31 -> 8.126311722e-13 | AO31: 0.0008124438243 | AQ31: 0 | AR31: 1 | AU31: 0 | AW31: 0 | BA31: 0.03005483862
A32: (b) If an elderly curve is needed select the age range over which it should be fitted. | AG32: 27 | AH32: 28 | AI32: 28 | AJ32: ='Step 1'!F36 -> 0.02678199541 | AK32: ='Step 2'!AX32 -> 0.002221329823 | AL32: ='Step 3'!AQ32 -> 0.001143198962 | AM32: ='Step 4'!BC32 -> 0.02584218668 | AN32: ='Step 5'!AT32 -> 2.862437271e-12 | AO32: -0.002424720065 | AQ32: 0 | AR32: 1 | AU32: 0 | AW32: 0 | BA32: 0.02920671547
A33: Fit over ages | D33: 70 | E33: to | G33: 84 | AG33: 28 | AH33: 29 | AI33: 29 | AJ33: ='Step 1'!F37 -> 0.0257241948 | AK33: ='Step 2'!AX33 -> 0.002221329823 | AL33: ='Step 3'!AQ33 -> 0.001035813059 | AM33: ='Step 4'!BC33 -> 0.02481979035 | AN33: ='Step 5'!AT33 -> 9.712252937e-12 | AO33: -0.00235273844 | AQ33: 0 | AR33: 1 | AU33: 0 | AW33: 0 | BA33: 0.02807693324
AG34: 29 | AH34: 30 | AI34: 30 | AJ34: ='Step 1'!F38 -> 0.02760154041 | AK34: ='Step 2'!AX34 -> 0.002221329823 | AL34: ='Step 3'!AQ34 -> 0.0009385144036 | AM34: ='Step 4'!BC34 -> 0.02362214195 | AN34: ='Step 5'!AT34 -> 3.174281925e-11 | AO34: 0.0008195541943 | AQ34: 0 | AR34: 1 | AU34: 0 | AW34: 0 | BA34: 0.02678198621
AG35: 30 | AH35: 31 | AI35: 31 | AJ35: ='Step 1'!F39 -> 0.02534820876 | AK35: ='Step 2'!AX35 -> 0.002221329823 | AL35: ='Step 3'!AQ35 -> 0.000850355456 | AM35: ='Step 4'!BC35 -> 0.02233446117 | AN35: ='Step 5'!AT35 -> 9.993382575e-11 | AO35: -5.793778838e-05 | AQ35: 0 | AR35: 1 | AU35: 0 | AW35: 0 | BA35: 0.02540614655
A36: (b) | C36: to set the initial elderly curve parameters. | K36: Starting | L36: Estimated | AG36: 31 | AH36: 32 | AI36: 32 | AJ36: ='Step 1'!F40 -> 0.02407291238 | AK36: ='Step 2'!AX36 -> 0.002221329823 | AL36: ='Step 3'!AQ36 -> 0.0007704776812 | AM36: ='Step 4'!BC36 -> 0.02101611748 | AN36: ='Step 5'!AT36 -> 3.030547093e-10 | AO36: 6.498709223e-05 | AQ36: 0 | AR36: 1 | AU36: 0 | AW36: 0 | BA36: 0.02400792529
K37: values | L37: values | AG37: 32 | AH37: 33 | AI37: 33 | AJ37: ='Step 1'!F41 -> 0.02214434054 | AK37: ='Step 2'!AX37 -> 0.002221329823 | AL37: ='Step 3'!AQ37 -> 0.000698103191 | AM37: ='Step 4'!BC37 -> 0.01970700176 | AN37: ='Step 5'!AT37 -> 8.852604585e-10 | AO37: -0.0004820951225 | AQ37: 0 | AR37: =IF($AT$2>=AI37,1,0) -> 1 | AU37: 0 | AV37: =IF(AU37=1,AO37,"") ->  | AW37: =IF($AV$2=TRUE,$L$38*EXP($L$39*AI37),0) -> 0 | BA37: =AK37+AL37+AM37+AN37+AW37 -> 0.02262643566
J38: a4 | K38: 1e-10 | L38: 2.171824429e-07 | AG38: 33 | AH38: 34 | AI38: 34 | AJ38: ='Step 1'!F42 -> 0.02219016839 | AK38: ='Step 2'!AX38 -> 0.002221329823 | AL38: ='Step 3'!AQ38 -> 0.0006325271674 | AM38: ='Step 4'!BC38 -> 0.01843289445 | AN38: ='Step 5'!AT38 -> 2.490936182e-09 | AO38: 0.000903414455 | AQ38: 0 | AR38: 1 | AU38: 0 | AW38: 0 | BA38: 0.02128675394
J39: alpha4 | K39: 0.1 | L39: 0.1000000249 | AG39: 34 | AH39: 35 | AI39: 35 | AJ39: ='Step 1'!F43 -> 0.02295369041 | AK39: ='Step 2'!AX39 -> 0.002221329823 | AL39: ='Step 3'!AQ39 -> 0.0005731109994 | AM39: ='Step 4'!BC39 -> 0.01720963966 | AN39: ='Step 5'!AT39 -> 6.751428018e-09 | AO39: 0.002949603181 | AQ39: 0 | AR39: 1 | AU39: 0 | AW39: 0 | BA39: 0.02000408723
AG40: 35 | AH40: 36 | AI40: 36 | AJ40: ='Step 1'!F44 -> 0.01849808437 | AK40: ='Step 2'!AX40 -> 0.002221329823 | AL40: ='Step 3'!AQ40 -> 0.0005192760637 | AM40: ='Step 4'!BC40 -> 0.01604623871 | AN40: ='Step 5'!AT40 -> 1.762666651e-08 | AO40: -0.0002887778537 | AQ40: 0 | AR40: 1 | AU40: 0 | AW40: 0 | BA40: 0.01878686222
A41: (c) Then from the Data tab click on Solver and ensure that the "Set target cell" is L42, "Equal to" is Min, and "By changing cells" is L38:L39. | AG41: 36 | AH41: 37 | AI41: 37 | AJ41: ='Step 1'!F45 -> 0.02019800861 | AK41: ='Step 2'!AX41 -> 0.002221329823 | AL41: ='Step 3'!AQ41 -> 0.0004704980896 | AM41: ='Step 4'!BC41 -> 0.01494707248 | AN41: ='Step 5'!AT41 -> 4.432882706e-08 | AO41: 0.002559063886 | AQ41: 0 | AR41: 1 | AU41: 0 | AW41: 0 | BA41: 0.01763894472
A42: Click on the Solve button. Select "OK" when Solver has finished. | AG42: 37 | AH42: 38 | AI42: 38 | AJ42: ='Step 1'!F46 -> 0.01493046465 | AK42: ='Step 2'!AX42 -> 0.002221329823 | AL42: ='Step 3'!AQ42 -> 0.0004263020535 | AM42: ='Step 4'!BC42 -> 0.01391346357 | AN42: ='Step 5'!AT42 -> 1.073850436e-07 | AO42: -0.001630738175 | AQ42: 0 | AR42: 1 | AU42: 0 | AW42: 0 | BA42: 0.01656120283
K43: Sum of squared error | L43: =AY96 -> 1.443338311e-05 | AG43: 38 | AH43: 39 | AI43: 39 | AJ43: ='Step 1'!F47 -> 0.01698401927 | AK43: ='Step 2'!AX43 -> 0.002221329823 | AL43: ='Step 3'!AQ43 -> 0.0003862575531 | AM43: ='Step 4'!BC43 -> 0.0129447572 | AN43: ='Step 5'!AT43 -> 2.505779555e-07 | AO43: 0.001431424115 | AQ43: 0 | AR43: 1 | AU43: 0 | AW43: 0 | BA43: 0.01555259515
AG44: 39 | AH44: 40 | AI44: 40 | AJ44: ='Step 1'!F48 -> 0.01401981189 | AK44: ='Step 2'!AX44 -> 0.002221329823 | AL44: ='Step 3'!AQ44 -> 0.0003499746156 | AM44: ='Step 4'!BC44 -> 0.01203905967 | AN44: ='Step 5'!AT44 -> 5.632269544e-07 | AO44: -0.000591115451 | AQ44: 0 | AR44: 1 | AU44: 0 | AW44: 0 | BA44: 0.01461092734
AG45: 40 | AH45: 41 | AI45: 41 | AJ45: ='Step 1'!F49 -> 0.01369201076 | AK45: ='Step 2'!AX45 -> 0.002221329823 | AL45: ='Step 3'!AQ45 -> 0.0003170999003 | AM45: ='Step 4'!BC45 -> 0.01119373732 | AN45: ='Step 5'!AT45 -> 1.219454233e-06 | AO45: -4.13757313e-05 | AQ45: 0 | AR45: 1 | AU45: 0 | AW45: 0 | BA45: 0.01373338649
AG46: 41 | AH46: 42 | AI46: 42 | AJ46: ='Step 1'!F50 -> 0.01229027326 | AK46: ='Step 2'!AX46 -> 0.002221329823 | AL46: ='Step 3'!AQ46 -> 0.0002873132573 | AM46: ='Step 4'!BC46 -> 0.01040574999 | AN46: ='Step 5'!AT46 -> 2.543250195e-06 | AO46: -0.0006266630655 | AQ46: 0 | AR46: 1 | AU46: 0 | AW46: 0 | BA46: 0.01291693632
AG47: 42 | AH47: 43 | AI47: 43 | AJ47: ='Step 1'!F51 -> 0.0109922754 | AK47: ='Step 2'!AX47 -> 0.002221329823 | AL47: ='Step 3'!AQ47 -> 0.0002603246098 | AM47: ='Step 4'!BC47 -> 0.009671871277 | AN47: ='Step 5'!AT47 -> 5.109214934e-06 | AO47: -0.001166359522 | AQ47: 0 | AR47: 1 | AU47: 0 | AW47: 0 | BA47: 0.01215863492
AG48: 43 | AH48: 44 | AI48: 44 | AJ48: ='Step 1'!F52 -> 0.01052860559 | AK48: ='Step 2'!AX48 -> 0.002221329823 | AL48: ='Step 3'!AQ48 -> 0.0002358711293 | AM48: ='Step 4'!BC48 -> 0.008988831626 | AN48: ='Step 5'!AT48 -> 9.886914197e-06 | AO48: -0.000927313901 | AQ48: 0 | AR48: 1 | AU48: 0 | AW48: 0 | BA48: 0.01145591949
AG49: 44 | AH49: 45 | AI49: 45 | AJ49: ='Step 1'!F53 -> 0.01021332873 | AK49: ='Step 2'!AX49 -> 0.002221329823 | AL49: ='Step 3'!AQ49 -> 0.0002137146761 | AM49: ='Step 4'!BC49 -> 0.008353409525 | AN49: ='Step 5'!AT49 -> 1.842930099e-05 | AO49: -0.0005935546003 | AQ49: 0 | AR49: 1 | AU49: 0 | AW49: 0 | BA49: 0.01080688333
AG50: 45 | AH50: 46 | AI50: 46 | AJ50: ='Step 1'!F54 -> 0.01080952127 | AK50: ='Step 2'!AX50 -> 0.002221329823 | AL50: ='Step 3'!AQ50 -> 0.0001936394797 | AM50: ='Step 4'!BC50 -> 0.007762487699 | AN50: ='Step 5'!AT50 -> 3.30901295e-05 | AO50: 0.0005989741361 | AQ50: 0 | AR50: 1 | AU50: 0 | AW50: 0 | BA50: 0.01021054713
AG51: 46 | AH51: 47 | AI51: 47 | AJ51: ='Step 1'!F55 -> 0.008557853594 | AK51: ='Step 2'!AX51 -> 0.002221329823 | AL51: ='Step 3'!AQ51 -> 0.0001754500383 | AM51: ='Step 4'!BC51 -> 0.007213086032 | AN51: ='Step 5'!AT51 -> 5.723076831e-05 | AO51: -0.001109243068 | AQ51: 0 | AR51: 1 | AU51: 0 | AW51: 0 | BA51: 0.009667096661
AG52: 47 | AH52: 48 | AI52: 48 | AJ52: ='Step 1'!F56 -> 0.008541971905 | AK52: ='Step 2'!AX52 -> 0.002221329823 | AL52: ='Step 3'!AQ52 -> 0.0001589692143 | AM52: ='Step 4'!BC52 -> 0.006702379081 | AN52: ='Step 5'!AT52 -> 9.534593708e-05 | AO52: -0.0006360521494 | AQ52: 0 | AR52: 1 | AU52: 0 | AW52: 0 | BA52: 0.009178024055
AG53: 48 | AH53: 49 | AI53: 49 | AJ53: ='Step 1'!F57 -> 0.009090777719 | AK53: ='Step 2'!AX53 -> 0.002221329823 | AL53: ='Step 3'!AQ53 -> 0.0001440365094 | AM53: ='Step 4'!BC53 -> 0.006227703502 | AN53: ='Step 5'!AT53 -> 0.0001530087659 | AO53: 0.0003446991188 | AQ53: 0 | AR53: 1 | AU53: 0 | AW53: 0 | BA53: 0.0087460786
AG54: 49 | AH54: 50 | AI54: 50 | AJ54: ='Step 1'!F58 -> 0.008592377184 | AK54: ='Step 2'!AX54 -> 0.002221329823 | AL54: ='Step 3'!AQ54 -> 0.0001305065017 | AM54: ='Step 4'!BC54 -> 0.005786558975 | AN54: ='Step 5'!AT54 -> 0.0002365222158 | AO54: 0.0002174596692 | AQ54: 0 | AR54: 1 | AU54: 0 | AW54: 0 | BA54: 0.008374917515
AG55: 50 | AH55: 51 | AI55: 51 | AJ55: ='Step 1'!F59 -> 0.006591857645 | AK55: ='Step 2'!AX55 -> 0.002221329823 | AL55: ='Step 3'!AQ55 -> 0.0001182474295 | AM55: ='Step 4'!BC55 -> 0.005376605024 | AN55: ='Step 5'!AT55 -> 0.0003521835537 | AO55: -0.001476508185 | AQ55: 0 | AR55: 1 | AU55: 0 | AW55: 0 | BA55: 0.00806836583
AG56: 51 | AH56: 52 | AI56: 52 | AJ56: ='Step 1'!F60 -> 0.007884424476 | AK56: ='Step 2'!AX56 -> 0.002221329823 | AL56: ='Step 3'!AQ56 -> 0.0001071399079 | AM56: ='Step 4'!BC56 -> 0.004995655342 | AN56: ='Step 5'!AT56 -> 0.0005051352889 | AO56: 5.516411452e-05 | AQ56: 0 | AR56: 1 | AU56: 0 | AW56: 0 | BA56: 0.007829260362
AG57: 52 | AH57: 53 | AI57: 53 | AJ57: ='Step 1'!F61 -> 0.007294511921 | AK57: ='Step 2'!AX57 -> 0.002221329823 | AL57: ='Step 3'!AQ57 -> 9.707576667e-05 | AM57: ='Step 4'!BC57 -> 0.004641670674 | AN57: ='Step 5'!AT57 -> 0.0006978914109 | AO57: -0.000363455754 | AQ57: 0 | AR57: 1 | AU57: 0 | AW57: 0 | BA57: 0.007657967675
AG58: 53 | AH58: 54 | AI58: 54 | AJ58: ='Step 1'!F62 -> 0.006774740079 | AK58: ='Step 2'!AX58 -> 0.002221329823 | AL58: ='Step 3'!AQ58 -> 8.79569962e-05 | AM58: ='Step 4'!BC58 -> 0.004312750968 | AN58: ='Step 5'!AT58 -> 0.0009287728317 | AO58: -0.0007760705398 | AQ58: 0 | AR58: 1 | AU58: 0 | AW58: 0 | BA58: 0.007550810618
AG59: 54 | AH59: 55 | AI59: 55 | AJ59: ='Step 1'!F63 -> 0.008230679543 | AK59: ='Step 2'!AX59 -> 0.002221329823 | AL59: ='Step 3'!AQ59 -> 7.969479351e-05 | AM59: ='Step 4'!BC59 -> 0.00400712724 | AN59: ='Step 5'!AT59 -> 0.001190618588 | AO59: 0.000731909099 | AQ59: 0 | AR59: 1 | AU59: 0 | AW59: 0 | BA59: 0.007498770444
AG60: 55 | AH60: 56 | AI60: 56 | AJ60: ='Step 1'!F64 -> 0.00889144135 | AK60: ='Step 2'!AX60 -> 0.002221329823 | AL60: ='Step 3'!AQ60 -> 7.220869729e-05 | AM60: ='Step 4'!BC60 -> 0.003723153461 | AN60: ='Step 5'!AT60 -> 0.00147020305 | AO60: 0.001404546319 | AQ60: 0 | AR60: 1 | AU60: 0 | AW60: 0 | BA60: 0.007486895032
AG61: 56 | AH61: 57 | AI61: 57 | AJ61: ='Step 1'!F65 -> 0.007601015833 | AK61: ='Step 2'!AX61 -> 0.002221329823 | AL61: ='Step 3'!AQ61 -> 6.542580431e-05 | AM61: ='Step 4'!BC61 -> 0.003459298625 | AN61: ='Step 5'!AT61 -> 0.001748732922 | AO61: 0.000106228659 | AQ61: 0 | AR61: 1 | AU61: 0 | AW61: 0 | BA61: 0.007494787174
AG62: 57 | AH62: 58 | AI62: 58 | AJ62: ='Step 1'!F66 -> 0.006531122986 | AK62: ='Step 2'!AX62 -> 0.002221329823 | AL62: ='Step 3'!AQ62 -> 5.928005947e-05 | AM62: ='Step 4'!BC62 -> 0.003214139129 | AN62: ='Step 5'!AT62 -> 0.002003600626 | AO62: -0.0009672266522 | AQ62: 0 | AR62: 1 | AU62: 0 | AW62: 0 | BA62: 0.007498349638
AG63: 58 | AH63: 59 | AI63: 59 | AJ63: ='Step 1'!F67 -> 0.007960910246 | AK63: ='Step 2'!AX63 -> 0.002221329823 | AL63: ='Step 3'!AQ63 -> 5.371161253e-05 | AM63: ='Step 4'!BC63 -> 0.002986351527 | AN63: ='Step 5'!AT63 -> 0.002211262684 | AO63: 0.0004882545992 | AQ63: 0 | AR63: 1 | AU63: 0 | AW63: 0 | BA63: 0.007472655646
AG64: 59 | AH64: 60 | AI64: 60 | AJ64: ='Step 1'!F68 -> 0.006594800093 | AK64: ='Step 2'!AX64 -> 0.002221329823 | AL64: ='Step 3'!AQ64 -> 4.866623526e-05 | AM64: ='Step 4'!BC64 -> 0.002774705663 | AN64: ='Step 5'!AT64 -> 0.002350774771 | AO64: -0.0008006763998 | AQ64: 0 | AR64: 1 | AU64: 0 | AW64: 0 | BA64: 0.007395476492
AG65: 60 | AH65: 61 | AI65: 61 | AJ65: ='Step 1'!F69 -> 0.008556242451 | AK65: ='Step 2'!AX65 -> 0.002221329823 | AL65: ='Step 3'!AQ65 -> 4.409479334e-05 | AM65: ='Step 4'!BC65 -> 0.002578058232 | AN65: ='Step 5'!AT65 -> 0.002407261172 | AO65: 0.001305498431 | AQ65: 0 | AR65: 1 | AU65: 0 | AW65: 0 | BA65: 0.00725074402
AG66: 61 | AH66: 62 | AI66: 62 | AJ66: ='Step 1'!F70 -> 0.005984712644 | AK66: ='Step 2'!AX66 -> 0.002221329823 | AL66: ='Step 3'!AQ66 -> 3.995276785e-05 | AM66: ='Step 4'!BC66 -> 0.002395346726 | AN66: ='Step 5'!AT66 -> 0.002374525875 | AO66: -0.001046442548 | AQ66: 0 | AR66: 1 | AU66: 0 | AW66: 0 | BA66: 0.007031155192
AG67: 62 | AH67: 63 | AI67: 63 | AJ67: ='Step 1'!F71 -> 0.005823769539 | AK67: ='Step 2'!AX67 -> 0.002221329823 | AL67: ='Step 3'!AQ67 -> 3.619982176e-05 | AM67: ='Step 4'!BC67 -> 0.002225583791 | AN67: ='Step 5'!AT67 -> 0.002256171494 | AO67: -0.0009155153903 | AQ67: 0 | AR67: 1 | AU67: 0 | AW67: 0 | BA67: 0.006739284929
AG68: 63 | AH68: 64 | AI68: 64 | AJ68: ='Step 1'!F72 -> 0.006603193428 | AK68: ='Step 2'!AX68 -> 0.002221329823 | AL68: ='Step 3'!AQ68 -> 3.279940704e-05 | AM68: ='Step 4'!BC68 -> 0.002067851942 | AN68: ='Step 5'!AT68 -> 0.00206494655 | AO68: 0.0002162657064 | AQ68: 0 | AR68: 1 | AU68: 0 | AW68: 0 | BA68: 0.006386927722
AG69: 64 | AH69: 65 | AI69: 65 | AJ69: ='Step 1'!F73 -> 0.006005997222 | AK69: ='Step 2'!AX69 -> 0.002221329823 | AL69: ='Step 3'!AQ69 -> 2.971840882e-05 | AM69: ='Step 4'!BC69 -> 0.00192129865 | AN69: ='Step 5'!AT69 -> 0.001820484675 | AO69: 1.31656652e-05 | AQ69: 0 | AR69: =IF($AT$2>=AI69,1,0) -> 1 | AU69: 0 | AV69: =IF(AU69=1,AO69,"") ->  | AW69: =IF($AV$2=TRUE,$L$38*EXP($L$39*AI69),0) -> 0 | BA69: =AK69+AL69+AM69+AN69+AW69 -> 0.005992831557
AG70: 65 | AH70: 66 | AI70: 66 | AJ70: ='Step 1'!F74 -> 0.006832640956 | AK70: ='Step 2'!AX70 -> 0.002221329823 | AL70: ='Step 3'!AQ70 -> 2.692682284e-05 | AM70: ='Step 4'!BC70 -> 0.001785131759 | AN70: ='Step 5'!AT70 -> 0.001545990233 | AO70: =AJ70-AK70-AL70-AM70-AN70 -> 0.001253262318 | AQ70: =IF($AR$2<=AI70,1,0) -> 0 | AR70: 1 | AU70: =IF(AQ70+AR70=2,1,0) -> 0 | AW70: 0 | AX70: =IF(AU70=1,AW70-AV70,"") ->  | AY70: =IF(AU70=1,AX70*AX70,"") ->  | BA70: 0.005579378638
AG71: 66 | AH71: 67 | AI71: 67 | AJ71: ='Step 1'!F75 -> 0.006626391789 | AK71: ='Step 2'!AX71 -> 0.002221329823 | AL71: ='Step 3'!AQ71 -> 2.43974633e-05 | AM71: ='Step 4'!BC71 -> 0.001658615226 | AN71: ='Step 5'!AT71 -> 0.001264643074 | AO71: 0.001457406202 | AQ71: 0 | AR71: 1 | AU71: 0 | AW71: 0 | BA71: 0.005168985586
AG72: 67 | AH72: 68 | AI72: 68 | AJ72: ='Step 1'!F76 -> 0.003770843417 | AK72: ='Step 2'!AX72 -> 0.002221329823 | AL72: ='Step 3'!AQ72 -> 2.210569805e-05 | AM72: ='Step 4'!BC72 -> 0.001541065148 | AN72: ='Step 5'!AT72 -> 0.0009964848492 | AO72: -0.001010142102 | AQ72: 0 | AR72: 1 | AU72: 0 | AW72: 0 | BA72: 0.004780985518
AG73: 68 | AH73: 69 | AI73: 69 | AJ73: ='Step 1'!F77 -> 0.003303325012 | AK73: ='Step 2'!AX73 -> 0.002221329823 | AL73: ='Step 3'!AQ73 -> 2.00292088e-05 | AM73: ='Step 4'!BC73 -> 0.001431846081 | AN73: ='Step 5'!AT73 -> 0.0007563362843 | AO73: -0.001126216385 | AQ73: 0 | AR73: 1 | AU73: 0 | AW73: 0 | BA73: 0.004429541397
AG74: 69 | AH74: 70 | AI74: 70 | AJ74: ='Step 1'!F78 -> 0.003682740214 | AK74: ='Step 2'!AX74 -> 0.002221329823 | AL74: ='Step 3'!AQ74 -> 1.814777367e-05 | AM74: ='Step 4'!BC74 -> 0.001330367604 | AN74: ='Step 5'!AT74 -> 0.0005529688626 | AO74: -0.0004400738493 | AQ74: 1 | AR74: 1 | AU74: 1 | AV74: -0.0004400738493 | AW74: 0 | AX74: 0.0004400738493 | AY74: 1.936649928e-07 | BA74: 0.004122814063
AG75: 70 | AH75: 71 | AI75: 71 | AJ75: ='Step 1'!F79 -> 0.004768430156 | AK75: ='Step 2'!AX75 -> 0.002221329823 | AL75: ='Step 3'!AQ75 -> 1.644307034e-05 | AM75: ='Step 4'!BC75 -> 0.001236081136 | AN75: ='Step 5'!AT75 -> 0.0003894286725 | AO75: 0.0009051474545 | AQ75: 1 | AR75: 1 | AU75: 1 | AV75: 0.0009051474545 | AW75: 0 | AX75: -0.0009051474545 | AY75: 8.192919144e-07 | BA75: 0.003863282702
AG76: 71 | AH76: 72 | AI76: 72 | AJ76: ='Step 1'!F80 -> 0.003265792749 | AK76: ='Step 2'!AX76 -> 0.002221329823 | AL76: ='Step 3'!AQ76 -> 1.489849758e-05 | AM76: ='Step 4'!BC76 -> 0.00114847697 | AN76: ='Step 5'!AT76 -> 0.0002641780177 | AO76: -0.0003830905597 | AQ76: 1 | AR76: 1 | AU76: 1 | AV76: -0.0003830905597 | AW76: 0 | AX76: 0.0003830905597 | AY76: 1.467583769e-07 | BA76: 0.003648883308
AG77: 72 | AH77: 73 | AI77: 73 | AJ77: ='Step 1'!F81 -> 0.003785836556 | AK77: ='Step 2'!AX77 -> 0.002221329823 | AL77: ='Step 3'!AQ77 -> 1.349901361e-05 | AM77: ='Step 4'!BC77 -> 0.001067081521 | AN77: ='Step 5'!AT77 -> 0.0001726262895 | AO77: 0.0003112999088 | AQ77: 1 | AR77: 1 | AU77: 1 | AV77: 0.0003112999088 | AW77: 0 | AX77: -0.0003112999088 | AY77: 9.69076332e-08 | BA77: 0.003474536647
AG78: 73 | AH78: 74 | AI78: 74 | AJ78: ='Step 1'!F82 -> 0.003133387649 | AK78: ='Step 2'!AX78 -> 0.002221329823 | AL78: ='Step 3'!AQ78 -> 1.223098956e-05 | AM78: ='Step 4'!BC78 -> 0.0009914547652 | AN78: ='Step 5'!AT78 -> 0.0001086572477 | AO78: -0.0002002851762 | AQ78: 1 | AR78: 1 | AU78: 1 | AV78: -0.0002002851762 | AW78: 0 | AX78: 0.0002002851762 | AY78: 4.011415181e-08 | BA78: 0.003333672825
AG79: 74 | AH79: 75 | AI79: 75 | AJ79: ='Step 1'!F83 -> 0.003358550681 | AK79: ='Step 2'!AX79 -> 0.002221329823 | AL79: ='Step 3'!AQ79 -> 1.10820768e-05 | AM79: ='Step 4'!BC79 -> 0.0009211878635 | AN79: ='Step 5'!AT79 -> 6.587975421e-05 | AO79: 0.0001390711638 | AQ79: 1 | AR79: 1 | AU79: 1 | AV79: 0.0001390711638 | AW79: 0 | AX79: -0.0001390711638 | AY79: 1.93407886e-08 | BA79: 0.003219479517
AG80: 75 | AH80: 76 | AI80: 76 | AJ80: ='Step 1'!F84 -> 0.003315314349 | AK80: ='Step 2'!AX80 -> 0.002221329823 | AL80: ='Step 3'!AQ80 -> 1.004108668e-05 | AM80: ='Step 4'!BC80 -> 0.0008559009514 | AN80: ='Step 5'!AT80 -> 3.847571916e-05 | AO80: 0.0001895667689 | AQ80: 1 | AR80: 1 | AU80: 1 | AV80: 0.0001895667689 | AW80: 0 | AX80: -0.0001895667689 | AY80: 3.593555986e-08 | BA80: 0.00312574758
AG81: 76 | AH81: 77 | AI81: 77 | AJ81: ='Step 1'!F85 -> 0.002055675773 | AK81: ='Step 2'!AX81 -> 0.002221329823 | AL81: ='Step 3'!AQ81 -> 9.09788151e-06 | AM81: ='Step 4'!BC81 -> 0.0007952410858 | AN81: ='Step 5'!AT81 -> 2.1645271e-05 | AO81: -0.0009916382886 | AQ81: 1 | AR81: 1 | AU81: 1 | AV81: -0.0009916382886 | AW81: 0 | AX81: 0.0009916382886 | AY81: 9.833464955e-07 | BA81: 0.003047314061
AG82: 77 | AH82: 78 | AI82: 78 | AJ82: ='Step 1'!F86 -> 0.004945519132 | AK82: ='Step 2'!AX82 -> 0.002221329823 | AL82: ='Step 3'!AQ82 -> 8.243275916e-06 | AM82: ='Step 4'!BC82 -> 0.0007388803368 | AN82: ='Step 5'!AT82 -> 1.172953553e-05 | AO82: 0.001965336161 | AQ82: 1 | AR82: 1 | AU82: 1 | AV82: 0.001965336161 | AW82: 0 | AX82: -0.001965336161 | AY82: 3.862546225e-06 | BA82: 0.002980182971
AG83: 78 | AH83: 79 | AI83: 79 | AJ83: ='Step 1'!F87 -> 0.002354386915 | AK83: ='Step 2'!AX83 -> 0.002221329823 | AL83: ='Step 3'!AQ83 -> 7.468947331e-06 | AM83: ='Step 4'!BC83 -> 0.0006865140159 | AN83: ='Step 5'!AT83 -> 6.122659505e-06 | AO83: -0.0005670485305 | AQ83: 1 | AR83: 1 | AU83: 1 | AV83: -0.0005670485305 | AW83: 0 | AX83: 0.0005670485305 | AY83: 3.215440359e-07 | BA83: 0.002921435446
AG84: 79 | AH84: 80 | AI84: 80 | AJ84: ='Step 1'!F88 -> 0.003105722981 | AK84: ='Step 2'!AX84 -> 0.002221329823 | AL84: ='Step 3'!AQ84 -> 6.767354969e-06 | AM84: ='Step 4'!BC84 -> 0.0006378590282 | AN84: ='Step 5'!AT84 -> 3.078512397e-06 | AO84: 0.0002366882627 | AQ84: 1 | AR84: 1 | AU84: 1 | AV84: 0.0002366882627 | AW84: 0 | AX84: -0.0002366882627 | AY84: 5.602133372e-08 | BA84: 0.002869034719
AG85: 80 | AH85: 81 | AI85: 81 | AJ85: ='Step 1'!F89 -> 0.002082452578 | AK85: ='Step 2'!AX85 -> 0.002221329823 | AL85: ='Step 3'!AQ85 -> 6.131666385e-06 | AM85: ='Step 4'!BC85 -> 0.0005926523423 | AN85: ='Step 5'!AT85 -> 1.491019115e-06 | AO85: -0.0007391522732 | AQ85: 1 | AR85: 1 | AU85: 1 | AV85: -0.0007391522732 | AW85: 0 | AX85: 0.0007391522732 | AY85: 5.46346083e-07 | BA85: 0.002821604851
AG86: 81 | AH86: 82 | AI86: 82 | AJ86: ='Step 1'!F90 -> 0.002050944643 | AK86: ='Step 2'!AX86 -> 0.002221329823 | AL86: ='Step 3'!AQ86 -> 5.555690935e-06 | AM86: ='Step 4'!BC86 -> 0.0005506495685 | AN86: ='Step 5'!AT86 -> 6.956119298e-07 | AO86: -0.0007272860512 | AQ86: 1 | AR86: 1 | AU86: 1 | AV86: -0.0007272860512 | AW86: 0 | AX86: 0.0007272860512 | AY86: 5.289450003e-07 | BA86: 0.002778230694
AG87: 82 | AH87: 83 | AI87: 83 | AJ87: ='Step 1'!F91 -> 0.005339693094 | AK87: ='Step 2'!AX87 -> 0.002221329823 | AL87: ='Step 3'!AQ87 -> 5.033819492e-06 | AM87: ='Step 4'!BC87 -> 0.0005116236375 | AN87: ='Step 5'!AT87 -> 3.126024213e-07 | AO87: 0.002601393211 | AQ87: 1 | AR87: 1 | AU87: 1 | AV87: 0.002601393211 | AW87: 0 | AX87: -0.002601393211 | AY87: 6.76724664e-06 | BA87: 0.002738299882
AG88: 83 | AH88: 84 | AI88: 84 | AJ88: ='Step 1'!F92 -> 0.002577398257 | AK88: ='Step 2'!AX88 -> 0.002221329823 | AL88: ='Step 3'!AQ88 -> 4.560969819e-06 | AM88: ='Step 4'!BC88 -> 0.0004753635731 | AN88: ='Step 5'!AT88 -> 1.353191183e-07 | AO88: -0.0001239914278 | AQ88: 1 | AR88: 1 | AU88: 1 | AV88: -0.0001239914278 | AW88: 0 | AX88: 0.0001239914278 | AY88: 1.537387418e-08 | BA88: 0.002701389685
AG89: 84 | AH89: 85 | AI89: 85 | AJ89: ='Step 1'!F93 -> 0.002704312774 | AK89: ='Step 2'!AX89 -> 0.002221329823 | AL89: ='Step 3'!AQ89 -> 4.132537077e-06 | AM89: ='Step 4'!BC89 -> 0.0004416733513 | AN89: ='Step 5'!AT89 -> 5.64244698e-08 | AO89: 3.712063814e-05 | AQ89: 1 | AR89: 0 | AU89: 0 | AW89: 0 | BA89: 0.002667192136
AG90: 85 | AH90: 86 | AI90: 86 | AJ90: ='Step 1'!F94 -> 0.004917637084 | AK90: ='Step 2'!AX90 -> 0.002221329823 | AL90: ='Step 3'!AQ90 -> 3.74434898e-06 | AM90: ='Step 4'!BC90 -> 0.0004103708409 | AN90: ='Step 5'!AT90 -> 2.266299589e-08 | AO90: 0.002282169409 | AQ90: =IF($AR$2<=AI90,1,0) -> 1 | AR90: =IF($AT$2>=AI90,1,0) -> 0 | AU90: 0 | AW90: 0 | BA90: 0.002635467676
AG91: 86 | AH91: 87 | AI91: 87 | AJ91: ='Step 1'!F95 -> 0.002563189206 | AK91: ='Step 2'!AX91 -> 0.002221329823 | AL91: ='Step 3'!AQ91 -> 3.392625166e-06 | AM91: ='Step 4'!BC91 -> 0.0003812868188 | AN91: ='Step 5'!AT91 -> 8.768163894e-09 | AO91: -4.282882866e-05 | AQ91: 1 | AR91: 0 | AU91: 0 | AW91: 0 | BA91: 0.002606018035
AG92: 87 | AH92: 88 | AI92: 88 | AJ92: ='Step 1'!F96 -> 0.004947698351 | AK92: ='Step 2'!AX92 -> 0.002221329823 | AL92: ='Step 3'!AQ92 -> 3.073940377e-06 | AM92: ='Step 4'!BC92 -> 0.000354264055 | AN92: ='Step 5'!AT92 -> 3.267694926e-09 | AO92: 0.002369027265 | AQ92: 1 | AR92: 0 | AU92: 0 | AW92: 0 | BA92: 0.002578671086
AG93: 88 | AH93: 89 | AI93: 89 | AJ93: ='Step 1'!F97 -> 0.004703389061 | AK93: ='Step 2'!AX93 -> 0.002221329823 | AL93: ='Step 3'!AQ93 -> 2.785191108e-06 | AM93: ='Step 4'!BC93 -> 0.000329156463 | AN93: ='Step 5'!AT93 -> 1.173048191e-09 | AO93: 0.002150116411 | AQ93: 1 | AR93: 0 | AU93: 0 | AW93: 0 | BA93: 0.00255327265
AG94: 89 | AH94: 90 | AI94: 90 | AJ94: ='Step 1'!F98 -> 0 | AK94: ='Step 2'!AX94 -> 0.002221329823 | AL94: ='Step 3'!AQ94 -> 2.523565376e-06 | AM94: ='Step 4'!BC94 -> 0.0003058283097 | AN94: ='Step 5'!AT94 -> 4.056315344e-10 | AO94: -0.002529682104 | AQ94: 1 | AR94: 0 | AU94: 0 | AW94: 0 | BA94: 0.002529682104
AX96: Sum of squared error | AY96: =SUM(AY5:AY94) -> 1.443338311e-05

Sheet Step 7
A1: Step 7: Estimate the student curve parameters
AR2: Fitted over ages | AS2: =E33 -> 18 | AT2: to | AU2: =H33 -> 20 | AV2: TRUE
A4: (a) Does the migration age profile need a student curve? Assess this by seeing whether the migration probabilities around | AG4: Age 1 year before census | AH4: Age at census | AI4: Mean age | AJ4: Probability scaled to unity | AK4: Constant | AL4: Childhood | AM4: Labour force | AN4: Retirement | AO4: Elderly | AP4: m5 | AR4: Select if ≥ lower age | AS4: Select if ≤ upper age | AT4: Select? | AU4: Selected m5 | AV4: Student curve | AW4: Error | AX4: Error squared | AZ4: Total so far
A5: ages 17-20 lie above the model migration schedule fitted up to now. | AG5: 0 | AH5: 1 | AI5: 1 | AJ5: ='Step 1'!F9 -> 0.01847034265 | AK5: ='Step 2'!AX5 -> 0.002221329823 | AL5: ='Step 3'!AQ5 -> 0.01639886133 | AM5: ='Step 4'!BC5 -> 1.019423912e-302 | AN5: ='Step 5'!AT5 -> 9.666226799e-33 | AO5: ='Step 6'!AW5 -> 0 | AP5: =AJ5-AK5-AL5-AM5-AN5-AO5 -> -0.0001498485097 | AR5: =IF($AS$2<=AI5,1,0) -> 0 | AS5: =IF($AU$2>=AI5,1,0) -> 1 | AT5: =IF(AR5+AS5=2,1,0) -> 0 | AU5: =IF(AT5=1,AP5," ") ->  | AV5: =IF($AV$2=TRUE,$M$34*EXP(-$M$35*(AI5-$M$36)-EXP(-$M$37*(AI5-$M$36))),0) -> 0 | AW5: =IF(AT5=1,AV5-AP5," ") ->  | AX5: =IF(AT5=1,AW5*AW5," ") ->  | AZ5: =AK5+AL5+AM5+AN5+AO5+AV5 -> 0.01862019116
A6: If they do, a student curve is probably needed. If not, skip to the next step. | AG6: 1 | AH6: 2 | AI6: 2 | AJ6: ='Step 1'!F10 -> 0.01682967443 | AK6: ='Step 2'!AX6 -> 0.002221329823 | AL6: ='Step 3'!AQ6 -> 0.01485844133 | AM6: ='Step 4'!BC6 -> 4.152121503e-220 | AN6: ='Step 5'!AT6 -> 9.01198234e-32 | AO6: ='Step 6'!AW6 -> 0 | AP6: =AJ6-AK6-AL6-AM6-AN6-AO6 -> -0.0002500967289 | AR6: =IF($AS$2<=AI6,1,0) -> 0 | AS6: 1 | AT6: 0 | AV6: =IF($AV$2=TRUE,$M$34*EXP(-$M$35*(AI6-$M$36)-EXP(-$M$37*(AI6-$M$36))),0) -> 0 | AZ6: 0.01707977116
AG7: 2 | AH7: 3 | AI7: 3 | AJ7: ='Step 1'!F11 -> 0.01564059384 | AK7: ='Step 2'!AX7 -> 0.002221329823 | AL7: ='Step 3'!AQ7 -> 0.01346272002 | AM7: ='Step 4'!BC7 -> 3.649364584e-160 | AN7: ='Step 5'!AT7 -> 8.093291614e-31 | AO7: ='Step 6'!AW7 -> 0 | AP7: -4.345600757e-05 | AR7: 0 | AS7: 1 | AT7: 0 | AV7: 0 | AZ7: 0.01568404985
AG8: 3 | AH8: 4 | AI8: 4 | AJ8: ='Step 1'!F12 -> 0.01514314268 | AK8: ='Step 2'!AX8 -> 0.002221329823 | AL8: ='Step 3'!AQ8 -> 0.0121981052 | AM8: ='Step 4'!BC8 -> 1.139551706e-116 | AN8: ='Step 5'!AT8 -> 7.001184968e-30 | AO8: ='Step 6'!AW8 -> 0 | AP8: 0.0007237076627 | AR8: 0 | AS8: 1 | AT8: 0 | AV8: 0 | AZ8: 0.01441943502
AG9: 4 | AH9: 5 | AI9: 5 | AJ9: ='Step 1'!F13 -> 0.01282298842 | AK9: ='Step 2'!AX9 -> 0.002221329823 | AL9: ='Step 3'!AQ9 -> 0.01105228142 | AM9: ='Step 4'!BC9 -> 4.105480575e-85 | AN9: ='Step 5'!AT9 -> 5.833905905e-29 | AO9: ='Step 6'!AW9 -> 0 | AP9: -0.0004506228289 | AR9: 0 | AS9: 1 | AT9: 0 | AV9: 0 | AZ9: 0.01327361125
AG10: 5 | AH10: 6 | AI10: 6 | AJ10: ='Step 1'!F14 -> 0.01181927014 | AK10: ='Step 2'!AX10 -> 0.002221329823 | AL10: ='Step 3'!AQ10 -> 0.01001409011 | AM10: ='Step 4'!BC10 -> 3.208345418e-62 | AN10: ='Step 5'!AT10 -> 4.682618691e-28 | AO10: ='Step 6'!AW10 -> 0 | AP10: -0.0004161497893 | AR10: 0 | AS10: 1 | AT10: 0 | AV10: 0 | AZ10: 0.01223541993
AG11: 6 | AH11: 7 | AI11: 7 | AJ11: ='Step 1'!F15 -> 0.01062214458 | AK11: ='Step 2'!AX11 -> 0.002221329823 | AL11: ='Step 3'!AQ11 -> 0.009073420855 | AM11: ='Step 4'!BC11 -> 1.293182917e-45 | AN11: ='Step 5'!AT11 -> 3.620425993e-27 | AO11: ='Step 6'!AW11 -> 0 | AP11: -0.0006726060937 | AR11: 0 | AS11: 1 | AT11: 0 | AV11: 0 | AZ11: 0.01129475068
AG12: 7 | AH12: 8 | AI12: 8 | AJ12: ='Step 1'!F16 -> 0.01078436277 | AK12: ='Step 2'!AX12 -> 0.002221329823 | AL12: ='Step 3'!AQ12 -> 0.008221112962 | AM12: ='Step 4'!BC12 -> 1.425501612e-33 | AN12: ='Step 5'!AT12 -> 2.696323891e-26 | AO12: ='Step 6'!AW12 -> 0 | AP12: 0.0003419199814 | AR12: 0 | AS12: 1 | AT12: 0 | AV12: 0 | AZ12: 0.01044244278
AG13: 8 | AH13: 9 | AI13: 9 | AJ13: ='Step 1'!F17 -> 0.01069264214 | AK13: ='Step 2'!AX13 -> 0.002221329823 | AL13: ='Step 3'!AQ13 -> 0.007448866245 | AM13: ='Step 4'!BC13 -> 7.668427656e-25 | AN13: ='Step 5'!AT13 -> 1.93430944e-25 | AO13: ='Step 6'!AW13 -> 0 | AP13: 0.00102244607 | AR13: 0 | AS13: 1 | AT13: 0 | AV13: 0 | AZ13: 0.009670196068
AG14: 9 | AH14: 10 | AI14: 10 | AJ14: ='Step 1'!F18 -> 0.009245422404 | AK14: ='Step 2'!AX14 -> 0.002221329823 | AL14: ='Step 3'!AQ14 -> 0.006749160191 | AM14: ='Step 4'!BC14 -> 1.62978934e-18 | AN14: ='Step 5'!AT14 -> 1.336661221e-24 | AO14: ='Step 6'!AW14 -> 0 | AP14: 0.0002749323894 | AR14: 0 | AS14: 1 | AT14: 0 | AV14: 0 | AZ14: 0.008970490014
AG15: 10 | AH15: 11 | AI15: 11 | AJ15: ='Step 1'!F19 -> 0.008299889207 | AK15: ='Step 2'!AX15 -> 0.002221329823 | AL15: ='Step 3'!AQ15 -> 0.006115180726 | AM15: ='Step 4'!BC15 -> 6.243007421e-14 | AN15: ='Step 5'!AT15 -> 8.897300346e-24 | AO15: ='Step 6'!AW15 -> 0 | AP15: -3.662134232e-05 | AR15: 0 | AS15: 1 | AT15: 0 | AV15: 0 | AZ15: 0.008336510549
AG16: 11 | AH16: 12 | AI16: 12 | AJ16: ='Step 1'!F20 -> 0.007565120443 | AK16: ='Step 2'!AX16 -> 0.002221329823 | AL16: ='Step 3'!AQ16 -> 0.005540753849 | AM16: ='Step 4'!BC16 -> 1.296762858e-10 | AN16: ='Step 5'!AT16 -> 5.704750563e-23 | AO16: ='Step 6'!AW16 -> 0 | AP16: -0.0001969633593 | AR16: 0 | AS16: 1 | AT16: 0 | AV16: 0 | AZ16: 0.007762083802
AG17: 12 | AH17: 13 | AI17: 13 | AJ17: ='Step 1'!F21 -> 0.007393070284 | AK17: ='Step 2'!AX17 -> 0.002221329823 | AL17: ='Step 3'!AQ17 -> 0.005020285515 | AM17: ='Step 4'!BC17 -> 3.248614499e-08 | AN17: ='Step 5'!AT17 -> 3.523356387e-22 | AO17: ='Step 6'!AW17 -> 0 | AP17: 0.0001514224602 | AR17: 0 | AS17: 1 | AT17: 0 | AV17: 0 | AZ17: 0.007241647824
AG18: 13 | AH18: 14 | AI18: 14 | AJ18: ='Step 1'!F22 -> 0.006868482895 | AK18: ='Step 2'!AX18 -> 0.002221329823 | AL18: ='Step 3'!AQ18 -> 0.00454870715 | AM18: ='Step 4'!BC18 -> 1.753302177e-06 | AN18: ='Step 5'!AT18 -> 2.096128941e-21 | AO18: ='Step 6'!AW18 -> 0 | AP18: 9.669261991e-05 | AR18: 0 | AS18: 1 | AT18: 0 | AV18: 0 | AZ18: 0.006771790275
AG19: 14 | AH19: 15 | AI19: 15 | AJ19: ='Step 1'!F23 -> 0.005870014813 | AK19: ='Step 2'!AX19 -> 0.002221329823 | AL19: ='Step 3'!AQ19 -> 0.004121426296 | AM19: ='Step 4'!BC19 -> 3.10588027e-05 | AN19: ='Step 5'!AT19 -> 1.20121548e-20 | AO19: ='Step 6'!AW19 -> 0 | AP19: -0.0005038001091 | AR19: 0 | AS19: 1 | AT19: 0 | AV19: 9.965669912e-289 | AZ19: 0.006373814922
AG20: 15 | AH20: 16 | AI20: 16 | AJ20: ='Step 1'!F24 -> 0.006094211519 | AK20: ='Step 2'!AX20 -> 0.002221329823 | AL20: ='Step 3'!AQ20 -> 0.003734281886 | AM20: ='Step 4'!BC20 -> 0.0002451212712 | AN20: ='Step 5'!AT20 -> 6.63079119e-20 | AO20: ='Step 6'!AW20 -> 0 | AP20: -0.0001065214619 | AR20: 0 | AS20: 1 | AT20: 0 | AV20: 4.174295953e-52 | AZ20: 0.006200732981
AG21: 16 | AH21: 17 | AI21: 17 | AJ21: ='Step 1'!F25 -> 0.005831094064 | AK21: ='Step 2'!AX21 -> 0.002221329823 | AL21: ='Step 3'!AQ21 -> 0.00338350372 | AM21: ='Step 4'!BC21 -> 0.001075844812 | AN21: ='Step 5'!AT21 -> 3.525748169e-19 | AO21: ='Step 6'!AW21 -> 0 | AP21: -0.0008495842916 | AR21: 0 | AS21: 1 | AT21: 0 | AV21: 3.828620581e-10 | AZ21: 0.006680678738
AG22: 17 | AH22: 18 | AI22: 18 | AJ22: ='Step 1'!F26 -> 0.01071066506 | AK22: ='Step 2'!AX22 -> 0.002221329823 | AL22: ='Step 3'!AQ22 -> 0.003065675751 | AM22: ='Step 4'!BC22 -> 0.003084476999 | AN22: ='Step 5'!AT22 -> 1.805837769e-18 | AO22: ='Step 6'!AW22 -> 0 | AP22: 0.002339182491 | AR22: 1 | AS22: 1 | AT22: =IF(AR22+AS22=2,1,0) -> 1 | AU22: 0.002339182491 | AV22: 0.002339205714 | AW22: 2.322296267e-08 | AX22: 5.393059951e-16 | AZ22: 0.01071068829
AG23: 18 | AH23: 19 | AI23: 19 | AJ23: ='Step 1'!F27 -> 0.01777846034 | AK23: ='Step 2'!AX23 -> 0.002221329823 | AL23: ='Step 3'!AQ23 -> 0.002777702815 | AM23: ='Step 4'!BC23 -> 0.006492303965 | AN23: ='Step 5'!AT23 -> 8.909384065e-18 | AO23: ='Step 6'!AW23 -> 0 | AP23: 0.006287123733 | AR23: 1 | AS23: 1 | AT23: =IF(AR23+AS23=2,1,0) -> 1 | AU23: 0.006287123733 | AV23: 0.006287135526 | AW23: 1.179317354e-08 | AX23: 1.390789422e-16 | AZ23: 0.01777847213
AG24: 19 | AH24: 20 | AI24: 20 | AJ24: ='Step 1'!F28 -> 0.01685787287 | AK24: ='Step 2'!AX24 -> 0.002221329823 | AL24: ='Step 3'!AQ24 -> 0.002516780493 | AM24: ='Step 4'!BC24 -> 0.01091973891 | AN24: ='Step 5'!AT24 -> 4.234070991e-17 | AO24: ='Step 6'!AW24 -> 0 | AP24: 0.001200023647 | AR24: 1 | AS24: 1 | AT24: 1 | AU24: 0.001200023647 | AV24: 0.00119989999 | AW24: -1.236565871e-07 | AX24: 1.529095153e-14 | AZ24: 0.01685774921
AG25: 20 | AH25: 21 | AI25: 21 | AJ25: ='Step 1'!F29 -> 0.01844240418 | AK25: ='Step 2'!AX25 -> 0.002221329823 | AL25: ='Step 3'!AQ25 -> 0.002280367798 | AM25: ='Step 4'!BC25 -> 0.01560761289 | AN25: ='Step 5'!AT25 -> 1.938251352e-16 | AO25: ='Step 6'!AW25 -> 0 | AP25: -0.001666906329 | AR25: 1 | AS25: 0 | AT25: 0 | AV25: 0.0001419907663 | AZ25: 0.02025130128
AG26: 21 | AH26: 22 | AI26: 22 | AJ26: ='Step 1'!F30 -> 0.0242588571 | AK26: ='Step 2'!AX26 -> 0.002221329823 | AL26: ='Step 3'!AQ26 -> 0.002066162428 | AM26: ='Step 4'!BC26 -> 0.01982253888 | AN26: ='Step 5'!AT26 -> 8.546800399e-16 | AO26: ='Step 6'!AW26 -> 0 | AP26: 0.0001488259703 | AR26: 1 | AS26: 0 | AT26: 0 | AV26: 1.54121925e-05 | AZ26: 0.02412544333
AG27: 22 | AH27: 23 | AI27: 23 | AJ27: ='Step 1'!F31 -> 0.02811146786 | AK27: ='Step 2'!AX27 -> 0.002221329823 | AL27: ='Step 3'!AQ27 -> 0.001872078347 | AM27: ='Step 4'!BC27 -> 0.02310739297 | AN27: ='Step 5'!AT27 -> 3.630266712e-15 | AO27: ='Step 6'!AW27 -> 0 | AP27: 0.000910666716 | AR27: 1 | AS27: 0 | AT27: 0 | AV27: 1.646987413e-06 | AZ27: 0.02720244813
AG28: 23 | AH28: 24 | AI28: 24 | AJ28: ='Step 1'!F32 -> 0.02810891853 | AK28: ='Step 2'!AX28 -> 0.002221329823 | AL28: ='Step 3'!AQ28 -> 0.001696225471 | AM28: ='Step 4'!BC28 -> 0.02531178574 | AN28: ='Step 5'!AT28 -> 1.485302838e-14 | AO28: ='Step 6'!AW28 -> 0 | AP28: -0.001120422501 | AR28: 1 | AS28: 0 | AT28: 0 | AV28: 1.755056961e-07 | AZ28: 0.02922951654
AG29: 24 | AH29: 25 | AI29: 25 | AJ29: ='Step 1'!F33 -> 0.0328139538 | AK29: ='Step 2'!AX29 -> 0.002221329823 | AL29: ='Step 3'!AQ29 -> 0.00153689126 | AM29: ='Step 4'!BC29 -> 0.02650241478 | AN29: ='Step 5'!AT29 -> 5.853734139e-14 | AO29: ='Step 6'!AW29 -> 0 | AP29: 0.002553317932 | AR29: 1 | AS29: 0 | AT29: 0 | AV29: 1.869264682e-08 | AZ29: 0.03026065456
AG30: 25 | AH30: 26 | AI30: 26 | AJ30: ='Step 1'!F34 -> 0.02978052241 | AK30: ='Step 2'!AX30 -> 0.002221329823 | AL30: ='Step 3'!AQ30 -> 0.001392524039 | AM30: ='Step 4'!BC30 -> 0.02685450132 | AN30: ='Step 5'!AT30 -> 2.22224779e-13 | AO30: ='Step 6'!AW30 -> 0 | AP30: -0.0006878327762 | AR30: 1 | AS30: 0 | AT30: 0 | AV30: 1.990720941e-09 | AZ30: 0.03046835718
AG31: 26 | AH31: 27 | AI31: 27 | AJ31: ='Step 1'!F35 -> 0.03086728245 | AK31: ='Step 2'!AX31 -> 0.002221329823 | AL31: ='Step 3'!AQ31 -> 0.001261717891 | AM31: ='Step 4'!BC31 -> 0.02657179091 | AN31: ='Step 5'!AT31 -> 8.126311722e-13 | AO31: ='Step 6'!AW31 -> 0 | AP31: 0.0008124438243 | AR31: 1 | AS31: 0 | AT31: 0 | AV31: 2.120033585e-10 | AZ31: 0.03005483884
L32: Initial | M32: Fitted | AG32: 27 | AH32: 28 | AI32: 28 | AJ32: ='Step 1'!F36 -> 0.02678199541 | AK32: ='Step 2'!AX32 -> 0.002221329823 | AL32: ='Step 3'!AQ32 -> 0.001143198962 | AM32: ='Step 4'!BC32 -> 0.02584218668 | AN32: ='Step 5'!AT32 -> 2.862437271e-12 | AO32: ='Step 6'!AW32 -> 0 | AP32: -0.002424720065 | AR32: 1 | AS32: 0 | AT32: 0 | AV32: 2.25773929e-11 | AZ32: 0.02920671549
A33: (b) Fit the student curve over ages | E33: 18 | F33: to | H33: 20 | L33: values | M33: values | AG33: 28 | AH33: 29 | AI33: 29 | AJ33: ='Step 1'!F37 -> 0.0257241948 | AK33: ='Step 2'!AX33 -> 0.002221329823 | AL33: ='Step 3'!AQ33 -> 0.001035813059 | AM33: ='Step 4'!BC33 -> 0.02481979035 | AN33: ='Step 5'!AT33 -> 9.712252937e-12 | AO33: ='Step 6'!AW33 -> 0 | AP33: -0.00235273844 | AR33: 1 | AS33: 0 | AT33: 0 | AV33: 2.404388292e-12 | AZ33: 0.02807693324
A34: Use between 3 and 5 data points. | K34: a5 (level) | L34: 0.0001 | M34: 0.01998766351 | AG34: 29 | AH34: 30 | AI34: 30 | AJ34: ='Step 1'!F38 -> 0.02760154041 | AK34: ='Step 2'!AX34 -> 0.002221329823 | AL34: ='Step 3'!AQ34 -> 0.0009385144036 | AM34: ='Step 4'!BC34 -> 0.02362214195 | AN34: ='Step 5'!AT34 -> 3.174281925e-11 | AO34: ='Step 6'!AW34 -> 0 | AP34: 0.0008195541943 | AR34: 1 | AS34: 0 | AT34: 0 | AV34: 2.56056247e-13 | AZ34: 0.02678198621
K35: alpha5 (r slope) | L35: 3 | M35: 2.239653688 | AG35: 30 | AH35: 31 | AI35: 31 | AJ35: ='Step 1'!F39 -> 0.02534820876 | AK35: ='Step 2'!AX35 -> 0.002221329823 | AL35: ='Step 3'!AQ35 -> 0.000850355456 | AM35: ='Step 4'!BC35 -> 0.02233446117 | AN35: ='Step 5'!AT35 -> 9.993382575e-11 | AO35: ='Step 6'!AW35 -> 0 | AP35: -5.793778838e-05 | AR35: 1 | AS35: 0 | AT35: 0 | AV35: 2.726880707e-14 | AZ35: 0.02540614655
K36: u5 (age) | L36: 18 | M36: 18.80151009 | AG36: 31 | AH36: 32 | AI36: 32 | AJ36: ='Step 1'!F40 -> 0.02407291238 | AK36: ='Step 2'!AX36 -> 0.002221329823 | AL36: ='Step 3'!AQ36 -> 0.0007704776812 | AM36: ='Step 4'!BC36 -> 0.02101611748 | AN36: ='Step 5'!AT36 -> 3.030547093e-10 | AO36: ='Step 6'!AW36 -> 0 | AP36: 6.498709223e-05 | AR36: 1 | AS36: 0 | AT36: 0 | AV36: 2.904001934e-15 | AZ36: 0.02400792529
A37: (c) | C37: to set the student curve parameters. | K37: lambda5 (l slope) | L37: 1 | M37: 1.710876141 | AG37: 32 | AH37: 33 | AI37: 33 | AJ37: ='Step 1'!F41 -> 0.02214434054 | AK37: ='Step 2'!AX37 -> 0.002221329823 | AL37: ='Step 3'!AQ37 -> 0.000698103191 | AM37: ='Step 4'!BC37 -> 0.01970700176 | AN37: ='Step 5'!AT37 -> 8.852604585e-10 | AO37: ='Step 6'!AW37 -> 0 | AP37: -0.0004820951225 | AR37: 1 | AS37: =IF($AU$2>=AI37,1,0) -> 0 | AT37: 0 | AU37: =IF(AT37=1,AP37," ") ->  | AV37: =IF($AV$2=TRUE,$M$34*EXP(-$M$35*(AI37-$M$36)-EXP(-$M$37*(AI37-$M$36))),0) -> 3.092627854e-16 | AW37: =IF(AT37=1,AV37-AP37," ") ->  | AX37: =IF(AT37=1,AW37*AW37," ") ->  | AZ37: =AK37+AL37+AM37+AN37+AO37+AV37 -> 0.02262643566
AG38: 33 | AH38: 34 | AI38: 34 | AJ38: ='Step 1'!F42 -> 0.02219016839 | AK38: ='Step 2'!AX38 -> 0.002221329823 | AL38: ='Step 3'!AQ38 -> 0.0006325271674 | AM38: ='Step 4'!BC38 -> 0.01843289445 | AN38: ='Step 5'!AT38 -> 2.490936182e-09 | AO38: ='Step 6'!AW38 -> 0 | AP38: 0.000903414455 | AR38: 1 | AS38: 0 | AT38: 0 | AV38: 3.293505741e-17 | AZ38: 0.02128675394
K39: Sum of squared error | L39: =AX96 -> 1.596933646e-14 | AG39: 34 | AH39: 35 | AI39: 35 | AJ39: ='Step 1'!F43 -> 0.02295369041 | AK39: ='Step 2'!AX39 -> 0.002221329823 | AL39: ='Step 3'!AQ39 -> 0.0005731109994 | AM39: ='Step 4'!BC39 -> 0.01720963966 | AN39: ='Step 5'!AT39 -> 6.751428018e-09 | AO39: ='Step 6'!AW39 -> 0 | AP39: 0.002949603181 | AR39: 1 | AS39: 0 | AT39: 0 | AV39: 3.507431407e-18 | AZ39: 0.02000408723
AG40: 35 | AH40: 36 | AI40: 36 | AJ40: ='Step 1'!F44 -> 0.01849808437 | AK40: ='Step 2'!AX40 -> 0.002221329823 | AL40: ='Step 3'!AQ40 -> 0.0005192760637 | AM40: ='Step 4'!BC40 -> 0.01604623871 | AN40: ='Step 5'!AT40 -> 1.762666651e-08 | AO40: ='Step 6'!AW40 -> 0 | AP40: -0.0002887778537 | AR40: 1 | AS40: 0 | AT40: 0 | AV40: 3.735252356e-19 | AZ40: 0.01878686222
A41: (d) Then from the Data tab click on Solver and ensure that the "Set target cell" is L39, "Equal to" is Min, and "By changing cells" is M34:M37. | AG41: 36 | AH41: 37 | AI41: 37 | AJ41: ='Step 1'!F45 -> 0.02019800861 | AK41: ='Step 2'!AX41 -> 0.002221329823 | AL41: ='Step 3'!AQ41 -> 0.0004704980896 | AM41: ='Step 4'!BC41 -> 0.01494707248 | AN41: ='Step 5'!AT41 -> 4.432882706e-08 | AO41: ='Step 6'!AW41 -> 0 | AP41: 0.002559063886 | AR41: 1 | AS41: 0 | AT41: 0 | AV41: 3.977871137e-20 | AZ41: 0.01763894472
A42: Click on the Solve button. Select "OK" when Solver has finished. | AG42: 37 | AH42: 38 | AI42: 38 | AJ42: ='Step 1'!F46 -> 0.01493046465 | AK42: ='Step 2'!AX42 -> 0.002221329823 | AL42: ='Step 3'!AQ42 -> 0.0004263020535 | AM42: ='Step 4'!BC42 -> 0.01391346357 | AN42: ='Step 5'!AT42 -> 1.073850436e-07 | AO42: ='Step 6'!AW42 -> 0 | AP42: -0.001630738175 | AR42: 1 | AS42: 0 | AT42: 0 | AV42: 4.236248927e-21 | AZ42: 0.01656120283
AG43: 38 | AH43: 39 | AI43: 39 | AJ43: ='Step 1'!F47 -> 0.01698401927 | AK43: ='Step 2'!AX43 -> 0.002221329823 | AL43: ='Step 3'!AQ43 -> 0.0003862575531 | AM43: ='Step 4'!BC43 -> 0.0129447572 | AN43: ='Step 5'!AT43 -> 2.505779555e-07 | AO43: ='Step 6'!AW43 -> 0 | AP43: 0.001431424115 | AR43: 1 | AS43: 0 | AT43: 0 | AV43: 4.511409332e-22 | AZ43: 0.01555259515
AG44: 39 | AH44: 40 | AI44: 40 | AJ44: ='Step 1'!F48 -> 0.01401981189 | AK44: ='Step 2'!AX44 -> 0.002221329823 | AL44: ='Step 3'!AQ44 -> 0.0003499746156 | AM44: ='Step 4'!BC44 -> 0.01203905967 | AN44: ='Step 5'!AT44 -> 5.632269544e-07 | AO44: ='Step 6'!AW44 -> 0 | AP44: -0.000591115451 | AR44: 1 | AS44: 0 | AT44: 0 | AV44: 4.804442447e-23 | AZ44: 0.01461092734
AG45: 40 | AH45: 41 | AI45: 41 | AJ45: ='Step 1'!F49 -> 0.01369201076 | AK45: ='Step 2'!AX45 -> 0.002221329823 | AL45: ='Step 3'!AQ45 -> 0.0003170999003 | AM45: ='Step 4'!BC45 -> 0.01119373732 | AN45: ='Step 5'!AT45 -> 1.219454233e-06 | AO45: ='Step 6'!AW45 -> 0 | AP45: -4.13757313e-05 | AR45: 1 | AS45: 0 | AT45: 0 | AV45: 5.116509173e-24 | AZ45: 0.01373338649
AG46: 41 | AH46: 42 | AI46: 42 | AJ46: ='Step 1'!F50 -> 0.01229027326 | AK46: ='Step 2'!AX46 -> 0.002221329823 | AL46: ='Step 3'!AQ46 -> 0.0002873132573 | AM46: ='Step 4'!BC46 -> 0.01040574999 | AN46: ='Step 5'!AT46 -> 2.543250195e-06 | AO46: ='Step 6'!AW46 -> 0 | AP46: -0.0006266630655 | AR46: 1 | AS46: 0 | AT46: 0 | AV46: 5.448845813e-25 | AZ46: 0.01291693632
AG47: 42 | AH47: 43 | AI47: 43 | AJ47: ='Step 1'!F51 -> 0.0109922754 | AK47: ='Step 2'!AX47 -> 0.002221329823 | AL47: ='Step 3'!AQ47 -> 0.0002603246098 | AM47: ='Step 4'!BC47 -> 0.009671871277 | AN47: ='Step 5'!AT47 -> 5.109214934e-06 | AO47: ='Step 6'!AW47 -> 0 | AP47: -0.001166359522 | AR47: 1 | AS47: 0 | AT47: 0 | AV47: 5.802768977e-26 | AZ47: 0.01215863492
AG48: 43 | AH48: 44 | AI48: 44 | AJ48: ='Step 1'!F52 -> 0.01052860559 | AK48: ='Step 2'!AX48 -> 0.002221329823 | AL48: ='Step 3'!AQ48 -> 0.0002358711293 | AM48: ='Step 4'!BC48 -> 0.008988831626 | AN48: ='Step 5'!AT48 -> 9.886914197e-06 | AO48: ='Step 6'!AW48 -> 0 | AP48: -0.000927313901 | AR48: 1 | AS48: 0 | AT48: 0 | AV48: 6.17968079e-27 | AZ48: 0.01145591949
AG49: 44 | AH49: 45 | AI49: 45 | AJ49: ='Step 1'!F53 -> 0.01021332873 | AK49: ='Step 2'!AX49 -> 0.002221329823 | AL49: ='Step 3'!AQ49 -> 0.0002137146761 | AM49: ='Step 4'!BC49 -> 0.008353409525 | AN49: ='Step 5'!AT49 -> 1.842930099e-05 | AO49: ='Step 6'!AW49 -> 0 | AP49: -0.0005935546003 | AR49: 1 | AS49: 0 | AT49: 0 | AV49: 6.581074452e-28 | AZ49: 0.01080688333
AG50: 45 | AH50: 46 | AI50: 46 | AJ50: ='Step 1'!F54 -> 0.01080952127 | AK50: ='Step 2'!AX50 -> 0.002221329823 | AL50: ='Step 3'!AQ50 -> 0.0001936394797 | AM50: ='Step 4'!BC50 -> 0.007762487699 | AN50: ='Step 5'!AT50 -> 3.30901295e-05 | AO50: ='Step 6'!AW50 -> 0 | AP50: 0.0005989741361 | AR50: 1 | AS50: 0 | AT50: 0 | AV50: 7.008540152e-29 | AZ50: 0.01021054713
AG51: 46 | AH51: 47 | AI51: 47 | AJ51: ='Step 1'!F55 -> 0.008557853594 | AK51: ='Step 2'!AX51 -> 0.002221329823 | AL51: ='Step 3'!AQ51 -> 0.0001754500383 | AM51: ='Step 4'!BC51 -> 0.007213086032 | AN51: ='Step 5'!AT51 -> 5.723076831e-05 | AO51: ='Step 6'!AW51 -> 0 | AP51: -0.001109243068 | AR51: 1 | AS51: 0 | AT51: 0 | AV51: 7.463771368e-30 | AZ51: 0.009667096661
AG52: 47 | AH52: 48 | AI52: 48 | AJ52: ='Step 1'!F56 -> 0.008541971905 | AK52: ='Step 2'!AX52 -> 0.002221329823 | AL52: ='Step 3'!AQ52 -> 0.0001589692143 | AM52: ='Step 4'!BC52 -> 0.006702379081 | AN52: ='Step 5'!AT52 -> 9.534593708e-05 | AO52: ='Step 6'!AW52 -> 0 | AP52: -0.0006360521494 | AR52: 1 | AS52: 0 | AT52: 0 | AV52: 7.948571575e-31 | AZ52: 0.009178024055
AG53: 48 | AH53: 49 | AI53: 49 | AJ53: ='Step 1'!F57 -> 0.009090777719 | AK53: ='Step 2'!AX53 -> 0.002221329823 | AL53: ='Step 3'!AQ53 -> 0.0001440365094 | AM53: ='Step 4'!BC53 -> 0.006227703502 | AN53: ='Step 5'!AT53 -> 0.0001530087659 | AO53: ='Step 6'!AW53 -> 0 | AP53: 0.0003446991188 | AR53: 1 | AS53: 0 | AT53: 0 | AV53: 8.46486139e-32 | AZ53: 0.0087460786
AG54: 49 | AH54: 50 | AI54: 50 | AJ54: ='Step 1'!F58 -> 0.008592377184 | AK54: ='Step 2'!AX54 -> 0.002221329823 | AL54: ='Step 3'!AQ54 -> 0.0001305065017 | AM54: ='Step 4'!BC54 -> 0.005786558975 | AN54: ='Step 5'!AT54 -> 0.0002365222158 | AO54: ='Step 6'!AW54 -> 0 | AP54: 0.0002174596692 | AR54: 1 | AS54: 0 | AT54: 0 | AV54: 9.014686183e-33 | AZ54: 0.008374917515
AG55: 50 | AH55: 51 | AI55: 51 | AJ55: ='Step 1'!F59 -> 0.006591857645 | AK55: ='Step 2'!AX55 -> 0.002221329823 | AL55: ='Step 3'!AQ55 -> 0.0001182474295 | AM55: ='Step 4'!BC55 -> 0.005376605024 | AN55: ='Step 5'!AT55 -> 0.0003521835537 | AO55: ='Step 6'!AW55 -> 0 | AP55: -0.001476508185 | AR55: 1 | AS55: 0 | AT55: 0 | AV55: 9.600224178e-34 | AZ55: 0.00806836583
AG56: 51 | AH56: 52 | AI56: 52 | AJ56: ='Step 1'!F60 -> 0.007884424476 | AK56: ='Step 2'!AX56 -> 0.002221329823 | AL56: ='Step 3'!AQ56 -> 0.0001071399079 | AM56: ='Step 4'!BC56 -> 0.004995655342 | AN56: ='Step 5'!AT56 -> 0.0005051352889 | AO56: ='Step 6'!AW56 -> 0 | AP56: 5.516411452e-05 | AR56: 1 | AS56: 0 | AT56: 0 | AV56: 1.022379508e-34 | AZ56: 0.007829260362
AG57: 52 | AH57: 53 | AI57: 53 | AJ57: ='Step 1'!F61 -> 0.007294511921 | AK57: ='Step 2'!AX57 -> 0.002221329823 | AL57: ='Step 3'!AQ57 -> 9.707576667e-05 | AM57: ='Step 4'!BC57 -> 0.004641670674 | AN57: ='Step 5'!AT57 -> 0.0006978914109 | AO57: ='Step 6'!AW57 -> 0 | AP57: -0.000363455754 | AR57: 1 | AS57: 0 | AT57: 0 | AV57: 1.088786928e-35 | AZ57: 0.007657967675
AG58: 53 | AH58: 54 | AI58: 54 | AJ58: ='Step 1'!F62 -> 0.006774740079 | AK58: ='Step 2'!AX58 -> 0.002221329823 | AL58: ='Step 3'!AQ58 -> 8.79569962e-05 | AM58: ='Step 4'!BC58 -> 0.004312750968 | AN58: ='Step 5'!AT58 -> 0.0009287728317 | AO58: ='Step 6'!AW58 -> 0 | AP58: -0.0007760705398 | AR58: 1 | AS58: 0 | AT58: 0 | AV58: 1.159507761e-36 | AZ58: 0.007550810618
AG59: 54 | AH59: 55 | AI59: 55 | AJ59: ='Step 1'!F63 -> 0.008230679543 | AK59: ='Step 2'!AX59 -> 0.002221329823 | AL59: ='Step 3'!AQ59 -> 7.969479351e-05 | AM59: ='Step 4'!BC59 -> 0.00400712724 | AN59: ='Step 5'!AT59 -> 0.001190618588 | AO59: ='Step 6'!AW59 -> 0 | AP59: 0.000731909099 | AR59: 1 | AS59: 0 | AT59: 0 | AV59: 1.234822179e-37 | AZ59: 0.007498770444
AG60: 55 | AH60: 56 | AI60: 56 | AJ60: ='Step 1'!F64 -> 0.00889144135 | AK60: ='Step 2'!AX60 -> 0.002221329823 | AL60: ='Step 3'!AQ60 -> 7.220869729e-05 | AM60: ='Step 4'!BC60 -> 0.003723153461 | AN60: ='Step 5'!AT60 -> 0.00147020305 | AO60: ='Step 6'!AW60 -> 0 | AP60: 0.001404546319 | AR60: 1 | AS60: 0 | AT60: 0 | AV60: 1.315028555e-38 | AZ60: 0.007486895032
AG61: 56 | AH61: 57 | AI61: 57 | AJ61: ='Step 1'!F65 -> 0.007601015833 | AK61: ='Step 2'!AX61 -> 0.002221329823 | AL61: ='Step 3'!AQ61 -> 6.542580431e-05 | AM61: ='Step 4'!BC61 -> 0.003459298625 | AN61: ='Step 5'!AT61 -> 0.001748732922 | AO61: ='Step 6'!AW61 -> 0 | AP61: 0.000106228659 | AR61: 1 | AS61: 0 | AT61: 0 | AV61: 1.400444638e-39 | AZ61: 0.007494787174
AG62: 57 | AH62: 58 | AI62: 58 | AJ62: ='Step 1'!F66 -> 0.006531122986 | AK62: ='Step 2'!AX62 -> 0.002221329823 | AL62: ='Step 3'!AQ62 -> 5.928005947e-05 | AM62: ='Step 4'!BC62 -> 0.003214139129 | AN62: ='Step 5'!AT62 -> 0.002003600626 | AO62: ='Step 6'!AW62 -> 0 | AP62: -0.0009672266522 | AR62: 1 | AS62: 0 | AT62: 0 | AV62: 1.491408819e-40 | AZ62: 0.007498349638
AG63: 58 | AH63: 59 | AI63: 59 | AJ63: ='Step 1'!F67 -> 0.007960910246 | AK63: ='Step 2'!AX63 -> 0.002221329823 | AL63: ='Step 3'!AQ63 -> 5.371161253e-05 | AM63: ='Step 4'!BC63 -> 0.002986351527 | AN63: ='Step 5'!AT63 -> 0.002211262684 | AO63: ='Step 6'!AW63 -> 0 | AP63: 0.0004882545992 | AR63: 1 | AS63: 0 | AT63: 0 | AV63: 1.588281468e-41 | AZ63: 0.007472655646
AG64: 59 | AH64: 60 | AI64: 60 | AJ64: ='Step 1'!F68 -> 0.006594800093 | AK64: ='Step 2'!AX64 -> 0.002221329823 | AL64: ='Step 3'!AQ64 -> 4.866623526e-05 | AM64: ='Step 4'!BC64 -> 0.002774705663 | AN64: ='Step 5'!AT64 -> 0.002350774771 | AO64: ='Step 6'!AW64 -> 0 | AP64: -0.0008006763998 | AR64: 1 | AS64: 0 | AT64: 0 | AV64: 1.691446362e-42 | AZ64: 0.007395476492
AG65: 60 | AH65: 61 | AI65: 61 | AJ65: ='Step 1'!F69 -> 0.008556242451 | AK65: ='Step 2'!AX65 -> 0.002221329823 | AL65: ='Step 3'!AQ65 -> 4.409479334e-05 | AM65: ='Step 4'!BC65 -> 0.002578058232 | AN65: ='Step 5'!AT65 -> 0.002407261172 | AO65: ='Step 6'!AW65 -> 0 | AP65: 0.001305498431 | AR65: 1 | AS65: 0 | AT65: 0 | AV65: 1.801312207e-43 | AZ65: 0.00725074402
AG66: 61 | AH66: 62 | AI66: 62 | AJ66: ='Step 1'!F70 -> 0.005984712644 | AK66: ='Step 2'!AX66 -> 0.002221329823 | AL66: ='Step 3'!AQ66 -> 3.995276785e-05 | AM66: ='Step 4'!BC66 -> 0.002395346726 | AN66: ='Step 5'!AT66 -> 0.002374525875 | AO66: ='Step 6'!AW66 -> 0 | AP66: -0.001046442548 | AR66: 1 | AS66: 0 | AT66: 0 | AV66: 1.918314254e-44 | AZ66: 0.007031155192
AG67: 62 | AH67: 63 | AI67: 63 | AJ67: ='Step 1'!F71 -> 0.005823769539 | AK67: ='Step 2'!AX67 -> 0.002221329823 | AL67: ='Step 3'!AQ67 -> 3.619982176e-05 | AM67: ='Step 4'!BC67 -> 0.002225583791 | AN67: ='Step 5'!AT67 -> 0.002256171494 | AO67: ='Step 6'!AW67 -> 0 | AP67: -0.0009155153903 | AR67: 1 | AS67: 0 | AT67: 0 | AV67: 2.042916027e-45 | AZ67: 0.006739284929
AG68: 63 | AH68: 64 | AI68: 64 | AJ68: ='Step 1'!F72 -> 0.006603193428 | AK68: ='Step 2'!AX68 -> 0.002221329823 | AL68: ='Step 3'!AQ68 -> 3.279940704e-05 | AM68: ='Step 4'!BC68 -> 0.002067851942 | AN68: ='Step 5'!AT68 -> 0.00206494655 | AO68: ='Step 6'!AW68 -> 0 | AP68: 0.0002162657064 | AR68: 1 | AS68: 0 | AT68: 0 | AV68: 2.175611157e-46 | AZ68: 0.006386927722
AG69: 64 | AH69: 65 | AI69: 65 | AJ69: ='Step 1'!F73 -> 0.006005997222 | AK69: ='Step 2'!AX69 -> 0.002221329823 | AL69: ='Step 3'!AQ69 -> 2.971840882e-05 | AM69: ='Step 4'!BC69 -> 0.00192129865 | AN69: ='Step 5'!AT69 -> 0.001820484675 | AO69: ='Step 6'!AW69 -> 0 | AP69: 1.31656652e-05 | AR69: 1 | AS69: =IF($AU$2>=AI69,1,0) -> 0 | AT69: 0 | AU69: =IF(AT69=1,AP69," ") ->  | AV69: =IF($AV$2=TRUE,$M$34*EXP(-$M$35*(AI69-$M$36)-EXP(-$M$37*(AI69-$M$36))),0) -> 2.316925338e-47 | AW69: =IF(AT69=1,AV69-AP69," ") ->  | AX69: =IF(AT69=1,AW69*AW69," ") ->  | AZ69: =AK69+AL69+AM69+AN69+AO69+AV69 -> 0.005992831557
AG70: 65 | AH70: 66 | AI70: 66 | AJ70: ='Step 1'!F74 -> 0.006832640956 | AK70: ='Step 2'!AX70 -> 0.002221329823 | AL70: ='Step 3'!AQ70 -> 2.692682284e-05 | AM70: ='Step 4'!BC70 -> 0.001785131759 | AN70: ='Step 5'!AT70 -> 0.001545990233 | AO70: ='Step 6'!AW70 -> 0 | AP70: =AJ70-AK70-AL70-AM70-AN70-AO70 -> 0.001253262318 | AR70: =IF($AS$2<=AI70,1,0) -> 1 | AS70: 0 | AT70: 0 | AV70: 2.46741841e-48 | AZ70: 0.005579378638
AG71: 66 | AH71: 67 | AI71: 67 | AJ71: ='Step 1'!F75 -> 0.006626391789 | AK71: ='Step 2'!AX71 -> 0.002221329823 | AL71: ='Step 3'!AQ71 -> 2.43974633e-05 | AM71: ='Step 4'!BC71 -> 0.001658615226 | AN71: ='Step 5'!AT71 -> 0.001264643074 | AO71: ='Step 6'!AW71 -> 0 | AP71: 0.001457406202 | AR71: 1 | AS71: 0 | AT71: 0 | AV71: 2.627686577e-49 | AZ71: 0.005168985586
AG72: 67 | AH72: 68 | AI72: 68 | AJ72: ='Step 1'!F76 -> 0.003770843417 | AK72: ='Step 2'!AX72 -> 0.002221329823 | AL72: ='Step 3'!AQ72 -> 2.210569805e-05 | AM72: ='Step 4'!BC72 -> 0.001541065148 | AN72: ='Step 5'!AT72 -> 0.0009964848492 | AO72: ='Step 6'!AW72 -> 0 | AP72: -0.001010142102 | AR72: 1 | AS72: 0 | AT72: 0 | AV72: 2.798364768e-50 | AZ72: 0.004780985518
AG73: 68 | AH73: 69 | AI73: 69 | AJ73: ='Step 1'!F77 -> 0.003303325012 | AK73: ='Step 2'!AX73 -> 0.002221329823 | AL73: ='Step 3'!AQ73 -> 2.00292088e-05 | AM73: ='Step 4'!BC73 -> 0.001431846081 | AN73: ='Step 5'!AT73 -> 0.0007563362843 | AO73: ='Step 6'!AW73 -> 0 | AP73: -0.001126216385 | AR73: 1 | AS73: 0 | AT73: 0 | AV73: 2.980129153e-51 | AZ73: 0.004429541397
AG74: 69 | AH74: 70 | AI74: 70 | AJ74: ='Step 1'!F78 -> 0.003682740214 | AK74: ='Step 2'!AX74 -> 0.002221329823 | AL74: ='Step 3'!AQ74 -> 1.814777367e-05 | AM74: ='Step 4'!BC74 -> 0.001330367604 | AN74: ='Step 5'!AT74 -> 0.0005529688626 | AO74: ='Step 6'!AW74 -> 0 | AP74: -0.0004400738493 | AR74: 1 | AS74: 0 | AT74: 0 | AV74: 3.173699824e-52 | AZ74: 0.004122814063
AG75: 70 | AH75: 71 | AI75: 71 | AJ75: ='Step 1'!F79 -> 0.004768430156 | AK75: ='Step 2'!AX75 -> 0.002221329823 | AL75: ='Step 3'!AQ75 -> 1.644307034e-05 | AM75: ='Step 4'!BC75 -> 0.001236081136 | AN75: ='Step 5'!AT75 -> 0.0003894286725 | AO75: ='Step 6'!AW75 -> 0 | AP75: 0.0009051474545 | AR75: 1 | AS75: 0 | AT75: 0 | AV75: 3.379843642e-53 | AZ75: 0.003863282702
AG76: 71 | AH76: 72 | AI76: 72 | AJ76: ='Step 1'!F80 -> 0.003265792749 | AK76: ='Step 2'!AX76 -> 0.002221329823 | AL76: ='Step 3'!AQ76 -> 1.489849758e-05 | AM76: ='Step 4'!BC76 -> 0.00114847697 | AN76: ='Step 5'!AT76 -> 0.0002641780177 | AO76: ='Step 6'!AW76 -> 0 | AP76: -0.0003830905597 | AR76: 1 | AS76: 0 | AT76: 0 | AV76: 3.599377282e-54 | AZ76: 0.003648883308
AG77: 72 | AH77: 73 | AI77: 73 | AJ77: ='Step 1'!F81 -> 0.003785836556 | AK77: ='Step 2'!AX77 -> 0.002221329823 | AL77: ='Step 3'!AQ77 -> 1.349901361e-05 | AM77: ='Step 4'!BC77 -> 0.001067081521 | AN77: ='Step 5'!AT77 -> 0.0001726262895 | AO77: ='Step 6'!AW77 -> 0 | AP77: 0.0003112999088 | AR77: 1 | AS77: 0 | AT77: 0 | AV77: 3.833170463e-55 | AZ77: 0.003474536647
AG78: 73 | AH78: 74 | AI78: 74 | AJ78: ='Step 1'!F82 -> 0.003133387649 | AK78: ='Step 2'!AX78 -> 0.002221329823 | AL78: ='Step 3'!AQ78 -> 1.223098956e-05 | AM78: ='Step 4'!BC78 -> 0.0009914547652 | AN78: ='Step 5'!AT78 -> 0.0001086572477 | AO78: ='Step 6'!AW78 -> 0 | AP78: -0.0002002851762 | AR78: 1 | AS78: 0 | AT78: 0 | AV78: 4.082149396e-56 | AZ78: 0.003333672825
AG79: 74 | AH79: 75 | AI79: 75 | AJ79: ='Step 1'!F83 -> 0.003358550681 | AK79: ='Step 2'!AX79 -> 0.002221329823 | AL79: ='Step 3'!AQ79 -> 1.10820768e-05 | AM79: ='Step 4'!BC79 -> 0.0009211878635 | AN79: ='Step 5'!AT79 -> 6.587975421e-05 | AO79: ='Step 6'!AW79 -> 0 | AP79: 0.0001390711638 | AR79: 1 | AS79: 0 | AT79: 0 | AV79: 4.347300454e-57 | AZ79: 0.003219479517
AG80: 75 | AH80: 76 | AI80: 76 | AJ80: ='Step 1'!F84 -> 0.003315314349 | AK80: ='Step 2'!AX80 -> 0.002221329823 | AL80: ='Step 3'!AQ80 -> 1.004108668e-05 | AM80: ='Step 4'!BC80 -> 0.0008559009514 | AN80: ='Step 5'!AT80 -> 3.847571916e-05 | AO80: ='Step 6'!AW80 -> 0 | AP80: 0.0001895667689 | AR80: 1 | AS80: 0 | AT80: 0 | AV80: 4.629674076e-58 | AZ80: 0.00312574758
AG81: 76 | AH81: 77 | AI81: 77 | AJ81: ='Step 1'!F85 -> 0.002055675773 | AK81: ='Step 2'!AX81 -> 0.002221329823 | AL81: ='Step 3'!AQ81 -> 9.09788151e-06 | AM81: ='Step 4'!BC81 -> 0.0007952410858 | AN81: ='Step 5'!AT81 -> 2.1645271e-05 | AO81: ='Step 6'!AW81 -> 0 | AP81: -0.0009916382886 | AR81: 1 | AS81: 0 | AT81: 0 | AV81: 4.930388934e-59 | AZ81: 0.003047314061
AG82: 77 | AH82: 78 | AI82: 78 | AJ82: ='Step 1'!F86 -> 0.004945519132 | AK82: ='Step 2'!AX82 -> 0.002221329823 | AL82: ='Step 3'!AQ82 -> 8.243275916e-06 | AM82: ='Step 4'!BC82 -> 0.0007388803368 | AN82: ='Step 5'!AT82 -> 1.172953553e-05 | AO82: ='Step 6'!AW82 -> 0 | AP82: 0.001965336161 | AR82: 1 | AS82: 0 | AT82: 0 | AV82: 5.250636361e-60 | AZ82: 0.002980182971
AG83: 78 | AH83: 79 | AI83: 79 | AJ83: ='Step 1'!F87 -> 0.002354386915 | AK83: ='Step 2'!AX83 -> 0.002221329823 | AL83: ='Step 3'!AQ83 -> 7.468947331e-06 | AM83: ='Step 4'!BC83 -> 0.0006865140159 | AN83: ='Step 5'!AT83 -> 6.122659505e-06 | AO83: ='Step 6'!AW83 -> 0 | AP83: -0.0005670485305 | AR83: 1 | AS83: 0 | AT83: 0 | AV83: 5.59168507e-61 | AZ83: 0.002921435446
AG84: 79 | AH84: 80 | AI84: 80 | AJ84: ='Step 1'!F88 -> 0.003105722981 | AK84: ='Step 2'!AX84 -> 0.002221329823 | AL84: ='Step 3'!AQ84 -> 6.767354969e-06 | AM84: ='Step 4'!BC84 -> 0.0006378590282 | AN84: ='Step 5'!AT84 -> 3.078512397e-06 | AO84: ='Step 6'!AW84 -> 0 | AP84: 0.0002366882627 | AR84: 1 | AS84: 0 | AT84: 0 | AV84: 5.954886185e-62 | AZ84: 0.002869034719
AG85: 80 | AH85: 81 | AI85: 81 | AJ85: ='Step 1'!F89 -> 0.002082452578 | AK85: ='Step 2'!AX85 -> 0.002221329823 | AL85: ='Step 3'!AQ85 -> 6.131666385e-06 | AM85: ='Step 4'!BC85 -> 0.0005926523423 | AN85: ='Step 5'!AT85 -> 1.491019115e-06 | AO85: ='Step 6'!AW85 -> 0 | AP85: -0.0007391522732 | AR85: 1 | AS85: 0 | AT85: 0 | AV85: 6.341678586e-63 | AZ85: 0.002821604851
AG86: 81 | AH86: 82 | AI86: 82 | AJ86: ='Step 1'!F90 -> 0.002050944643 | AK86: ='Step 2'!AX86 -> 0.002221329823 | AL86: ='Step 3'!AQ86 -> 5.555690935e-06 | AM86: ='Step 4'!BC86 -> 0.0005506495685 | AN86: ='Step 5'!AT86 -> 6.956119298e-07 | AO86: ='Step 6'!AW86 -> 0 | AP86: -0.0007272860512 | AR86: 1 | AS86: 0 | AT86: 0 | AV86: 6.753594618e-64 | AZ86: 0.002778230694
AG87: 82 | AH87: 83 | AI87: 83 | AJ87: ='Step 1'!F91 -> 0.005339693094 | AK87: ='Step 2'!AX87 -> 0.002221329823 | AL87: ='Step 3'!AQ87 -> 5.033819492e-06 | AM87: ='Step 4'!BC87 -> 0.0005116236375 | AN87: ='Step 5'!AT87 -> 3.126024213e-07 | AO87: ='Step 6'!AW87 -> 0 | AP87: 0.002601393211 | AR87: 1 | AS87: 0 | AT87: =IF(AR87+AS87=2,1,0) -> 0 | AV87: 7.192266156e-65 | AZ87: 0.002738299882
AG88: 83 | AH88: 84 | AI88: 84 | AJ88: ='Step 1'!F92 -> 0.002577398257 | AK88: ='Step 2'!AX88 -> 0.002221329823 | AL88: ='Step 3'!AQ88 -> 4.560969819e-06 | AM88: ='Step 4'!BC88 -> 0.0004753635731 | AN88: ='Step 5'!AT88 -> 1.353191183e-07 | AO88: ='Step 6'!AW88 -> 0 | AP88: -0.0001239914278 | AR88: 1 | AS88: 0 | AT88: 0 | AV88: 7.659431072e-66 | AZ88: 0.002701389685
AG89: 84 | AH89: 85 | AI89: 85 | AJ89: ='Step 1'!F93 -> 0.002704312774 | AK89: ='Step 2'!AX89 -> 0.002221329823 | AL89: ='Step 3'!AQ89 -> 4.132537077e-06 | AM89: ='Step 4'!BC89 -> 0.0004416733513 | AN89: ='Step 5'!AT89 -> 5.64244698e-08 | AO89: ='Step 6'!AW89 -> 0 | AP89: 3.712063814e-05 | AR89: 1 | AS89: 0 | AT89: 0 | AV89: 8.156940117e-67 | AZ89: 0.002667192136
AG90: 85 | AH90: 86 | AI90: 86 | AJ90: ='Step 1'!F94 -> 0.004917637084 | AK90: ='Step 2'!AX90 -> 0.002221329823 | AL90: ='Step 3'!AQ90 -> 3.74434898e-06 | AM90: ='Step 4'!BC90 -> 0.0004103708409 | AN90: ='Step 5'!AT90 -> 2.266299589e-08 | AO90: ='Step 6'!AW90 -> 0 | AP90: =AJ90-AK90-AL90-AM90-AN90-AO90 -> 0.002282169409 | AR90: =IF($AS$2<=AI90,1,0) -> 1 | AS90: 0 | AT90: 0 | AV90: 8.686764258e-68 | AZ90: 0.002635467676
AG91: 86 | AH91: 87 | AI91: 87 | AJ91: ='Step 1'!F95 -> 0.002563189206 | AK91: ='Step 2'!AX91 -> 0.002221329823 | AL91: ='Step 3'!AQ91 -> 3.392625166e-06 | AM91: ='Step 4'!BC91 -> 0.0003812868188 | AN91: ='Step 5'!AT91 -> 8.768163894e-09 | AO91: ='Step 6'!AW91 -> 0 | AP91: -4.282882866e-05 | AR91: 1 | AS91: 0 | AT91: 0 | AV91: 9.251002482e-69 | AZ91: 0.002606018035
AG92: 87 | AH92: 88 | AI92: 88 | AJ92: ='Step 1'!F96 -> 0.004947698351 | AK92: ='Step 2'!AX92 -> 0.002221329823 | AL92: ='Step 3'!AQ92 -> 3.073940377e-06 | AM92: ='Step 4'!BC92 -> 0.000354264055 | AN92: ='Step 5'!AT92 -> 3.267694926e-09 | AO92: ='Step 6'!AW92 -> 0 | AP92: 0.002369027265 | AR92: 1 | AS92: 0 | AT92: 0 | AV92: 9.851890116e-70 | AZ92: 0.002578671086
AG93: 88 | AH93: 89 | AI93: 89 | AJ93: ='Step 1'!F97 -> 0.004703389061 | AK93: ='Step 2'!AX93 -> 0.002221329823 | AL93: ='Step 3'!AQ93 -> 2.785191108e-06 | AM93: ='Step 4'!BC93 -> 0.000329156463 | AN93: ='Step 5'!AT93 -> 1.173048191e-09 | AO93: ='Step 6'!AW93 -> 0 | AP93: 0.002150116411 | AR93: 1 | AS93: 0 | AT93: 0 | AV93: 1.049180768e-70 | AZ93: 0.00255327265
AG94: 89 | AH94: 90 | AI94: 90 | AJ94: ='Step 1'!F98 -> 0 | AK94: ='Step 2'!AX94 -> 0.002221329823 | AL94: ='Step 3'!AQ94 -> 2.523565376e-06 | AM94: ='Step 4'!BC94 -> 0.0003058283097 | AN94: ='Step 5'!AT94 -> 4.056315344e-10 | AO94: ='Step 6'!AW94 -> 0 | AP94: -0.002529682104 | AR94: 1 | AS94: 0 | AT94: 0 | AV94: 1.11732903e-71 | AZ94: 0.002529682104
AW96: Sum of squared error | AX96: =SUM(AX5:AX94) -> 1.596933646e-14

Sheet Graphs
A1: Final model migration schedule | AA1: Scroll down for GMP estimate
AO2: ='Step 5'!AT2 -> TRUE | AP2: ='Step 6'!AV2 -> FALSE | AQ2: ='Step 7'!AV2 -> TRUE
Y3: For POPSTAR (copy & paste the red numbers into the POPSTAR2 DATA INPUTS workbook) | AC3: Scaled-up smoothed probabilities (to check against initial data) | AE3: Model parameters | AH3: Age 1 year before census | AI3: Age at census | AJ3: Mean age | AK3: Initial data | AL3: Constant | AM3: Childhood curve | AN3: Labour force curve | AO3: Retirement curve | AP3: Elderly curve | AQ3: Student curve | AR3: Smoothed migration probabilities | AT3: Error | AU3: Error squared
Y4: birth-0 | Z4: 0.5 | AA4: =AR4/SUM(AR$4:AR$115) -> 0.009164076032 | AC4: =AA4*AA$118/AA$119 -> 0.007241395956 | AH4: -1 | AI4: 0 | AJ4: 0.5 | AK4: n/a | AL4: =0.5*$AF$5 -> 0.001110664911 | AM4: =0.5*($AF$8*EXP(-$AF$9*AJ4)) -> 0.008613981164 | AN4: =0.5*($AF$12*EXP(-$AF$13*(AJ4-$AF$14)-EXP(-$AF$15*(AJ4-$AF$14)))) -> 0 | AO4: =IF($AO$2=TRUE,0.5*($AF$18*EXP(-((AJ4-$AF$20)/$AF$19)*((AJ4-$AF$20)/$AF$19))),0) -> 1.560804017e-33 | AP4: =IF($AP$2=TRUE,0.5*($AF$23*EXP($AF$24*AJ4)),0) -> 0 | AQ4: =IF($AQ$2=TRUE,0.5*($AF$27*EXP(-$AF$28*(AJ4-$AF$29)-EXP(-$AF$30*(AJ4-$AF$29)))),0) -> 0 | AR4: =SUM(AL4:AQ4) -> 0.009724646075
Y5: 0-1 | Z5: 1 | AA5: 0.01754684399 | AC5: 0.01386540712 | AE5: Constant | AF5: ='Step 2'!AI104 -> 0.002221329823 | AH5: 0 | AI5: 1 | AJ5: 1 | AK5: ='Step 1'!F9 -> 0.01847034265 | AL5: =$AF$5 -> 0.002221329823 | AM5: =$AF$8*EXP(-$AF$9*AJ5) -> 0.01639886133 | AN5: =$AF$12*EXP(-$AF$13*(AJ5-$AF$14)-EXP(-$AF$15*(AJ5-$AF$14))) -> 1.019423912e-302 | AO5: =IF($AO$2=TRUE,$AF$18*EXP(-((AJ5-$AF$20)/$AF$19)*((AJ5-$AF$20)/$AF$19)),0) -> 9.666226799e-33 | AP5: =IF($AP$2=TRUE,($AF$23*EXP($AF$24*AJ5)),0) -> 0 | AQ5: =IF($AQ$2=TRUE,($AF$27*EXP(-$AF$28*(AJ5-$AF$29)-EXP(-$AF$30*(AJ5-$AF$29)))),0) -> 0 | AR5: =SUM(AL5:AQ5) -> 0.01862019116 | AT5: =AR5-AK5 -> 0.0001498485097 | AU5: =AT5*AT5 -> 2.245457587e-08
Y6: 1-2 | Z6: =Z5+1 -> 2 | AA6: 0.01609522036 | AC6: 0.01271834315 | AH6: 1 | AI6: 2 | AJ6: 2 | AK6: ='Step 1'!F10 -> 0.01682967443 | AL6: 0.002221329823 | AM6: 0.01485844133 | AN6: 4.152121503e-220 | AO6: 9.01198234e-32 | AP6: 0 | AQ6: 0 | AR6: 0.01707977116 | AT6: =AR6-AK6 -> 0.0002500967289 | AU6: =AT6*AT6 -> 6.254837378e-08
Y7: 2-3 | Z7: =Z6+1 -> 3 | AA7: 0.01477995437 | AC7: 0.01167902814 | AE7: Childhood curve | AH7: 2 | AI7: 3 | AJ7: 3 | AK7: ='Step 1'!F11 -> 0.01564059384 | AL7: 0.002221329823 | AM7: 0.01346272002 | AN7: =$AF$12*EXP(-$AF$13*(AJ7-$AF$14)-EXP(-$AF$15*(AJ7-$AF$14))) -> 3.649364584e-160 | AO7: 8.093291614e-31 | AP7: 0 | AQ7: 0 | AR7: 0.01568404985 | AT7: 4.345600757e-05 | AU7: 1.888424594e-09
Y8: 3-4 | Z8: 4 | AA8: 0.01358823734 | AC8: 0.01073734074 | AE8: a1 (level) | AF8: ='Step 3'!C31 -> 0.01809898138 | AH8: 3 | AI8: 4 | AJ8: 4 | AK8: ='Step 1'!F12 -> 0.01514314268 | AL8: 0.002221329823 | AM8: 0.0121981052 | AN8: 1.139551706e-116 | AO8: 7.001184968e-30 | AP8: 0 | AQ8: 0 | AR8: 0.01441943502 | AT8: -0.0007237076627 | AU8: 5.237527811e-07
Y9: 4-5 | Z9: 5 | AA9: 0.01250846373 | AC9: 0.009884110338 | AE9: alpha1 (slope) | AF9: ='Step 3'!C32 -> 0.09864375783 | AH9: 4 | AI9: 5 | AJ9: 5 | AK9: ='Step 1'!F13 -> 0.01282298842 | AL9: 0.002221329823 | AM9: 0.01105228142 | AN9: 4.105480575e-85 | AO9: 5.833905905e-29 | AP9: 0 | AQ9: 0 | AR9: 0.01327361125 | AT9: 0.0004506228289 | AU9: 2.030609339e-07
Y10: 5-6 | Z10: 6 | AA10: 0.01153011819 | AC10: 0.009111027769 | AH10: 5 | AI10: 6 | AJ10: 6 | AK10: ='Step 1'!F14 -> 0.01181927014 | AL10: 0.002221329823 | AM10: 0.01001409011 | AN10: 3.208345418e-62 | AO10: 4.682618691e-28 | AP10: 0 | AQ10: 0 | AR10: 0.01223541993 | AT10: 0.0004161497893 | AU10: 1.731806471e-07
Y11: 6-7 | Z11: 7 | AA11: 0.01064367311 | AC11: 0.00841056438 | AE11: Labour force curve | AH11: 6 | AI11: 7 | AJ11: 7 | AK11: ='Step 1'!F15 -> 0.01062214458 | AL11: 0.002221329823 | AM11: 0.009073420855 | AN11: 1.293182917e-45 | AO11: 3.620425993e-27 | AP11: 0 | AQ11: 0 | AR11: =SUM(AL11:AQ11) -> 0.01129475068 | AT11: 0.0006726060937 | AU11: 4.523989573e-07
Y12: 7-8 | Z12: 8 | AA12: 0.009840495881 | AC12: 0.007775898719 | AE12: a2 (level) | AF12: ='Step 4'!P5 -> 0.04734386874 | AH12: 7 | AI12: 8 | AJ12: 8 | AK12: ='Step 1'!F16 -> 0.01078436277 | AL12: 0.002221329823 | AM12: 0.008221112962 | AN12: 1.425501612e-33 | AO12: 2.696323891e-26 | AP12: 0 | AQ12: 0 | AR12: 0.01044244278 | AT12: -0.0003419199814 | AU12: 1.169092737e-07
Y13: 8-9 | Z13: 9 | AA13: 0.009112764755 | AC13: 0.007200850104 | AE13: alpha2 (r slope) | AF13: ='Step 4'!P6 -> 0.07350934416 | AH13: 8 | AI13: 9 | AJ13: 9 | AK13: ='Step 1'!F17 -> 0.01069264214 | AL13: 0.002221329823 | AM13: 0.007448866245 | AN13: 7.668427656e-25 | AO13: 1.93430944e-25 | AP13: 0 | AQ13: 0 | AR13: 0.009670196068 | AT13: -0.00102244607 | AU13: 1.045395966e-06
Y14: 9-10 | Z14: 10 | AA14: 0.008453392741 | AC14: 0.006679818434 | AE14: u2 (age) | AF14: ='Step 4'!P7 -> 21.40778504 | AH14: 9 | AI14: 10 | AJ14: 10 | AK14: ='Step 1'!F18 -> 0.009245422404 | AL14: 0.002221329823 | AM14: 0.006749160191 | AN14: 1.62978934e-18 | AO14: 1.336661221e-24 | AP14: 0 | AQ14: 0 | AR14: 0.008970490014 | AT14: -0.0002749323894 | AU14: 7.558781874e-08
Y15: 10-11 | Z15: 11 | AA15: 0.007855958554 | AC15: 0.00620772965 | AE15: lambda2 (l slope) | AF15: ='Step 4'!P8 -> 0.3205737427 | AH15: 10 | AI15: 11 | AJ15: 11 | AK15: ='Step 1'!F19 -> 0.008299889207 | AL15: 0.002221329823 | AM15: 0.006115180726 | AN15: 6.243007421e-14 | AO15: 8.897300346e-24 | AP15: 0 | AQ15: 0 | AR15: 0.008336510549 | AT15: 3.662134232e-05 | AU15: 1.341122713e-09
Y16: 11-12 | Z16: 12 | AA16: 0.007314644212 | AC16: 0.005779986421 | AH16: 11 | AI16: 12 | AJ16: 12 | AK16: ='Step 1'!F20 -> 0.007565120443 | AL16: 0.002221329823 | AM16: 0.005540753849 | AN16: 1.296762858e-10 | AO16: 5.704750563e-23 | AP16: 0 | AQ16: 0 | AR16: 0.007762083802 | AT16: 0.0001969633593 | AU16: 3.87945649e-08
Y17: 12-13 | Z17: 13 | AA17: 0.006824208382 | AC17: 0.005392447074 | AE17: Retirement curve | AH17: 12 | AI17: 13 | AJ17: 13 | AK17: ='Step 1'!F21 -> 0.007393070284 | AL17: 0.002221329823 | AM17: 0.005020285515 | AN17: 3.248614499e-08 | AO17: 3.523356387e-22 | AP17: 0 | AQ17: 0 | AR17: 0.007241647824 | AT17: -0.0001514224602 | AU17: 2.292876145e-08
Y18: 13-14 | Z18: 14 | AA18: 0.006381435425 | AC18: 0.005042570633 | AE18: a3 (level) | AF18: ='Step 5'!L35 -> 0.002408073603 | AH18: 13 | AI18: 14 | AJ18: 14 | AK18: ='Step 1'!F22 -> 0.006868482895 | AL18: 0.002221329823 | AM18: 0.00454870715 | AN18: 1.753302177e-06 | AO18: 2.096128941e-21 | AP18: 0 | AQ18: 0 | AR18: 0.006771790275 | AT18: -9.669261991e-05 | AU18: 9.349462745e-09
Y19: 14-15 | Z19: 15 | AA19: 0.006006401067 | AC19: 0.004746220813 | AE19: rho 3 (slope) | AF19: ='Step 5'!L36 -> 7.309151982 | AH19: 14 | AI19: 15 | AJ19: 15 | AK19: ='Step 1'!F23 -> 0.005870014813 | AL19: 0.002221329823 | AM19: 0.004121426296 | AN19: 3.10588027e-05 | AO19: 1.20121548e-20 | AP19: 0 | AQ19: 9.965669912e-289 | AR19: 0.006373814922 | AT19: 0.0005038001091 | AU19: 2.5381455e-07
Y20: 15-16 | Z20: 16 | AA20: 0.005843296306 | AC20: 0.004617336445 | AE20: mu3 (age) | AF20: ='Step 5'!L37 -> 61.13426475 | AH20: 15 | AI20: 16 | AJ20: 16 | AK20: ='Step 1'!F24 -> 0.006094211519 | AL20: 0.002221329823 | AM20: 0.003734281886 | AN20: 0.0002451212712 | AO20: 6.63079119e-20 | AP20: 0 | AQ20: 4.174295953e-52 | AR20: 0.006200732981 | AT20: 0.0001065214619 | AU20: 1.134682186e-08
Y21: 16-17 | Z21: 17 | AA21: 0.006295575945 | AC21: 0.004974725006 | AH21: 16 | AI21: 17 | AJ21: 17 | AK21: ='Step 1'!F25 -> 0.005831094064 | AL21: 0.002221329823 | AM21: 0.00338350372 | AN21: 0.001075844812 | AO21: 3.525748169e-19 | AP21: 0 | AQ21: 3.828620581e-10 | AR21: 0.006680678738 | AT21: 0.0008495846745 | AU21: 7.217941191e-07
Y22: 17-18 | Z22: 18 | AA22: 0.01009327857 | AC22: 0.007975646029 | AE22: Elderly curve | AH22: 17 | AI22: 18 | AJ22: 18 | AK22: ='Step 1'!F26 -> 0.01071066506 | AL22: 0.002221329823 | AM22: 0.003065675751 | AN22: 0.003084476999 | AO22: 1.805837769e-18 | AP22: 0 | AQ22: 0.002339205714 | AR22: 0.01071068829 | AT22: 2.322296267e-08 | AU22: 5.393059951e-16
Y23: 18-19 | Z23: 19 | AA23: 0.01675364523 | AC23: 0.01323862639 | AE23: a4 (level) | AF23: ='Step 6'!L38 -> 2.171824429e-07 | AH23: 18 | AI23: 19 | AJ23: 19 | AK23: ='Step 1'!F27 -> 0.01777846034 | AL23: 0.002221329823 | AM23: 0.002777702815 | AN23: 0.006492303965 | AO23: 8.909384065e-18 | AP23: 0 | AQ23: 0.006287135526 | AR23: 0.01777847213 | AT23: 1.179317354e-08 | AU23: 1.390789422e-16
Y24: 19-20 | Z24: 20 | AA24: 0.01588599671 | AC24: 0.01255301592 | AE24: alpha4 (slope) | AF24: ='Step 6'!L39 -> 0.1000000249 | AH24: 19 | AI24: 20 | AJ24: 20 | AK24: ='Step 1'!F28 -> 0.01685787287 | AL24: 0.002221329823 | AM24: 0.002516780493 | AN24: 0.01091973891 | AO24: 4.234070991e-17 | AP24: 0 | AQ24: 0.00119989999 | AR24: 0.01685774921 | AT24: -1.236565871e-07 | AU24: 1.529095153e-14
Y25: 20-21 | Z25: 21 | AA25: 0.01908392997 | AC25: 0.01508000292 | AH25: 20 | AI25: 21 | AJ25: 21 | AK25: ='Step 1'!F29 -> 0.01844240418 | AL25: 0.002221329823 | AM25: 0.002280367798 | AN25: 0.01560761289 | AO25: 1.938251352e-16 | AP25: 0 | AQ25: 0.0001419907663 | AR25: 0.02025130128 | AT25: 0.001808897096 | AU25: 3.272108703e-06
M26: Scaled migration probability | Y26: 21-22 | Z26: 22 | AA26: 0.02273474996 | AC26: 0.0179648582 | AE26: Student curve | AH26: 21 | AI26: 22 | AJ26: 22 | AK26: ='Step 1'!F30 -> 0.0242588571 | AL26: 0.002221329823 | AM26: 0.002066162428 | AN26: 0.01982253888 | AO26: 8.546800399e-16 | AP26: 0 | AQ26: 1.54121925e-05 | AR26: 0.02412544333 | AT26: -0.0001334137778 | AU26: 1.779923612e-08
Y27: 22-23 | Z27: 23 | AA27: 0.02563438309 | AC27: 0.02025613029 | AE27: a5 (level) | AF27: ='Step 7'!M34 -> 0.01998766351 | AH27: 22 | AI27: 23 | AJ27: 23 | AK27: ='Step 1'!F31 -> 0.02811146786 | AL27: 0.002221329823 | AM27: 0.001872078347 | AN27: 0.02310739297 | AO27: 3.630266712e-15 | AP27: 0 | AQ27: 1.646987413e-06 | AR27: 0.02720244813 | AT27: -0.0009090197286 | AU27: 8.263168669e-07
Y28: 23-24 | Z28: 24 | AA28: 0.02754460264 | AC28: 0.02176557391 | AE28: alpha5 (r slope) | AF28: ='Step 7'!M35 -> 2.239653688 | AH28: 23 | AI28: 24 | AJ28: 24 | AK28: ='Step 1'!F32 -> 0.02810891853 | AL28: 0.002221329823 | AM28: 0.001696225471 | AN28: 0.02531178574 | AO28: 1.485302838e-14 | AP28: 0 | AQ28: 1.755056961e-07 | AR28: 0.02922951654 | AT28: 0.001120598007 | AU28: 1.255739892e-06
Y29: 24-25 | Z29: 25 | AA29: 0.02851630147 | AC29: 0.02253340429 | AE29: u5 (age) | AF29: ='Step 7'!M36 -> 18.80151009 | AH29: 24 | AI29: 25 | AJ29: 25 | AK29: ='Step 1'!F33 -> 0.0328139538 | AL29: 0.002221329823 | AM29: 0.00153689126 | AN29: 0.02650241478 | AO29: 5.853734139e-14 | AP29: 0 | AQ29: 1.869264682e-08 | AR29: 0.03026065456 | AT29: -0.00255329924 | AU29: 6.519337008e-06
Y30: 25-26 | Z30: 26 | AA30: 0.02871203122 | AC30: 0.02268806872 | AE30: lambda5 (l slope) | AF30: ='Step 7'!M37 -> 1.710876141 | AH30: 25 | AI30: 26 | AJ30: 26 | AK30: ='Step 1'!F34 -> 0.02978052241 | AL30: 0.002221329823 | AM30: 0.001392524039 | AN30: 0.02685450132 | AO30: 2.22224779e-13 | AP30: 0 | AQ30: 1.990720941e-09 | AR30: 0.03046835718 | AT30: 0.000687834767 | AU30: 4.731166666e-07
Y31: 26-27 | Z31: 27 | AA31: 0.02832234984 | AC31: 0.02238014492 | AH31: 26 | AI31: 27 | AJ31: 27 | AK31: ='Step 1'!F35 -> 0.03086728245 | AL31: 0.002221329823 | AM31: 0.001261717891 | AN31: 0.02657179091 | AO31: 8.126311722e-13 | AP31: 0 | AQ31: 2.120033585e-10 | AR31: 0.03005483884 | AT31: -0.0008124436122 | AU31: 6.600646231e-07
Y32: 27-28 | Z32: 28 | AA32: 0.02752311594 | AC32: 0.02174859525 | AH32: 27 | AI32: 28 | AJ32: 28 | AK32: ='Step 1'!F36 -> 0.02678199541 | AL32: 0.002221329823 | AM32: 0.001143198962 | AN32: 0.02584218668 | AO32: 2.862437271e-12 | AP32: 0 | AQ32: 2.25773929e-11 | AR32: 0.02920671549 | AT32: 0.002424720088 | AU32: 5.879267504e-06
Y33: 28-29 | Z33: 29 | AA33: 0.02645845916 | AC33: 0.02090731008 | AH33: 28 | AI33: 29 | AJ33: 29 | AK33: ='Step 1'!F37 -> 0.0257241948 | AL33: 0.002221329823 | AM33: 0.001035813059 | AN33: 0.02481979035 | AO33: 9.712252937e-12 | AP33: 0 | AQ33: 2.404388292e-12 | AR33: 0.02807693324 | AT33: 0.002352738443 | AU33: 5.53537818e-06
Y34: 29-30 | Z34: 30 | AA34: 0.02523815839 | AC34: 0.01994303599 | AH34: 29 | AI34: 30 | AJ34: 30 | AK34: ='Step 1'!F38 -> 0.02760154041 | AL34: 0.002221329823 | AM34: 0.0009385144036 | AN34: 0.02362214195 | AO34: 3.174281925e-11 | AP34: 0 | AQ34: 2.56056247e-13 | AR34: 0.02678198621 | AT34: -0.000819554194 | AU34: 6.716690769e-07
Y35: 30-31 | Z35: 31 | AA35: 0.02394162799 | AC35: 0.01891852572 | AH35: 30 | AI35: 31 | AJ35: 31 | AK35: ='Step 1'!F39 -> 0.02534820876 | AL35: 0.002221329823 | AM35: 0.000850355456 | AN35: 0.02233446117 | AO35: 9.993382575e-11 | AP35: 0 | AQ35: 2.726880707e-14 | AR35: 0.02540614655 | AT35: 5.793778841e-05 | AU35: 3.356787326e-09
Y36: 31-32 | Z36: 32 | AA36: =AR36/SUM(AR$4:AR$115) -> 0.02262400616 | AC36: =AA36*AA$118/AA$119 -> 0.01787734914 | AH36: 31 | AI36: 32 | AJ36: 32 | AK36: ='Step 1'!F40 -> 0.02407291238 | AL36: 0.002221329823 | AM36: 0.0007704776812 | AN36: 0.02101611748 | AO36: 3.030547093e-10 | AP36: 0 | AQ36: 2.904001934e-15 | AR36: 0.02400792529 | AT36: -6.498709223e-05 | AU36: 4.223322156e-09
Y37: 32-33 | Z37: 33 | AA37: 0.02132215149 | AC37: 0.01684863166 | AH37: 32 | AI37: 33 | AJ37: 33 | AK37: ='Step 1'!F41 -> 0.02214434054 | AL37: =$AF$5 -> 0.002221329823 | AM37: =$AF$8*EXP(-$AF$9*AJ37) -> 0.000698103191 | AN37: =$AF$12*EXP(-$AF$13*(AJ37-$AF$14)-EXP(-$AF$15*(AJ37-$AF$14))) -> 0.01970700176 | AO37: =IF($AO$2=TRUE,$AF$18*EXP(-((AJ37-$AF$20)/$AF$19)*((AJ37-$AF$20)/$AF$19)),0) -> 8.852604585e-10 | AP37: =IF($AP$2=TRUE,($AF$23*EXP($AF$24*AJ37)),0) -> 0 | AQ37: =IF($AQ$2=TRUE,($AF$27*EXP(-$AF$28*(AJ37-$AF$29)-EXP(-$AF$30*(AJ37-$AF$29)))),0) -> 3.092627854e-16 | AR37: 0.02262643566 | AT37: 0.0004820951225 | AU37: 2.324157071e-07
Y38: 33-34 | Z38: 34 | AA38: 0.02005969472 | AC38: 0.01585104617 | AH38: 33 | AI38: 34 | AJ38: 34 | AK38: ='Step 1'!F42 -> 0.02219016839 | AL38: 0.002221329823 | AM38: 0.0006325271674 | AN38: 0.01843289445 | AO38: 2.490936182e-09 | AP38: 0 | AQ38: 3.293505741e-17 | AR38: 0.02128675394 | AT38: -0.000903414455 | AU38: 8.161576775e-07
Y39: 34-35 | Z39: 35 | AA39: 0.01885096639 | AC39: 0.01489591655 | AH39: 34 | AI39: 35 | AJ39: 35 | AK39: ='Step 1'!F43 -> 0.02295369041 | AL39: 0.002221329823 | AM39: 0.0005731109994 | AN39: 0.01720963966 | AO39: 6.751428018e-09 | AP39: 0 | AQ39: 3.507431407e-18 | AR39: 0.02000408723 | AT39: -0.002949603181 | AU39: 8.700158924e-06
Y40: 35-36 | Z40: 36 | AA40: 0.01770390742 | AC40: 0.01398951767 | AH40: 35 | AI40: 36 | AJ40: 36 | AK40: ='Step 1'!F44 -> 0.01849808437 | AL40: 0.002221329823 | AM40: 0.0005192760637 | AN40: 0.01604623871 | AO40: 1.762666651e-08 | AP40: 0 | AQ40: 3.735252356e-19 | AR40: 0.01878686222 | AT40: 0.0002887778537 | AU40: 8.339264879e-08
Y41: 36-37 | Z41: 37 | AA41: 0.01662216078 | AC41: 0.01313472819 | AH41: 36 | AI41: 37 | AJ41: 37 | AK41: ='Step 1'!F45 -> 0.02019800861 | AL41: 0.002221329823 | AM41: 0.0004704980896 | AN41: 0.01494707248 | AO41: 4.432882706e-08 | AP41: 0 | AQ41: 3.977871137e-20 | AR41: 0.01763894472 | AT41: -0.002559063886 | AU41: 6.548807975e-06
Y42: 37-38 | Z42: 38 | AA42: 0.01560654452 | AC42: 0.01233219454 | AH42: 37 | AI42: 38 | AJ42: 38 | AK42: ='Step 1'!F46 -> 0.01493046465 | AL42: 0.002221329823 | AM42: 0.0004263020535 | AN42: 0.01391346357 | AO42: 1.073850436e-07 | AP42: 0 | AQ42: 4.236248927e-21 | AR42: 0.01656120283 | AT42: 0.001630738175 | AU42: 2.659306996e-06
Y43: 38-39 | Z43: 39 | AA43: 0.01465607729 | AC43: 0.01158114123 | AH43: 38 | AI43: 39 | AJ43: 39 | AK43: ='Step 1'!F47 -> 0.01698401927 | AL43: 0.002221329823 | AM43: 0.0003862575531 | AN43: 0.0129447572 | AO43: 2.505779555e-07 | AP43: 0 | AQ43: 4.511409332e-22 | AR43: 0.01555259515 | AT43: -0.001431424115 | AU43: 2.048974997e-06
Y44: 39-40 | Z44: 40 | AA44: 0.01376869122 | AC44: 0.01087993427 | AH44: 39 | AI44: 40 | AJ44: 40 | AK44: ='Step 1'!F48 -> 0.01401981189 | AL44: 0.002221329823 | AM44: 0.0003499746156 | AN44: 0.01203905967 | AO44: 5.632269544e-07 | AP44: 0 | AQ44: 4.804442447e-23 | AR44: 0.01461092734 | AT44: 0.000591115451 | AU44: 3.494174764e-07
Y45: 40-41 | Z45: 41 | AA45: 0.01294173557 | AC45: 0.01022647906 | AH45: 40 | AI45: 41 | AJ45: 41 | AK45: ='Step 1'!F49 -> 0.01369201076 | AL45: 0.002221329823 | AM45: 0.0003170999003 | AN45: 0.01119373732 | AO45: 1.219454233e-06 | AP45: 0 | AQ45: 5.116509173e-24 | AR45: 0.01373338649 | AT45: 4.13757313e-05 | AU45: 1.711951141e-09
Y46: 41-42 | Z46: 42 | AA46: 0.01217234907 | AC46: 0.009618514622 | AH46: 41 | AI46: 42 | AJ46: 42 | AK46: ='Step 1'!F50 -> 0.01229027326 | AL46: 0.002221329823 | AM46: 0.0002873132573 | AN46: 0.01040574999 | AO46: 2.543250195e-06 | AP46: 0 | AQ46: 5.448845813e-25 | AR46: 0.01291693632 | AT46: 0.0006266630655 | AU46: 3.927065977e-07
A47: FOR INFORMATION | Y47: 42-43 | Z47: 43 | AA47: 0.01145775939 | AC47: 0.0090538503 | AH47: 42 | AI47: 43 | AJ47: 43 | AK47: ='Step 1'!F51 -> 0.0109922754 | AL47: 0.002221329823 | AM47: 0.0002603246098 | AN47: 0.009671871277 | AO47: 5.109214934e-06 | AP47: 0 | AQ47: 5.802768977e-26 | AR47: 0.01215863492 | AT47: 0.001166359522 | AU47: 1.360394535e-06
A48: Checking scaled-up smoothed probabilities at all ages against initial data supplied in step 1 | Y48: 43-44 | Z48: 44 | AA48: 0.01079555147 | AC48: 0.008530577715 | AH48: 43 | AI48: 44 | AJ48: 44 | AK48: ='Step 1'!F52 -> 0.01052860559 | AL48: 0.002221329823 | AM48: 0.0002358711293 | AN48: 0.008988831626 | AO48: 9.886914197e-06 | AP48: 0 | AQ48: 6.17968079e-27 | AR48: 0.01145591949 | AT48: 0.000927313901 | AU48: 8.599110709e-07
A49: You may want to adjust the y-axis maximum value so that the fit becomes clearer. | Y49: 44-45 | Z49: 45 | AA49: 0.01018392852 | AC49: 0.008047277054 | AH49: 44 | AI49: 45 | AJ49: 45 | AK49: ='Step 1'!F53 -> 0.01021332873 | AL49: 0.002221329823 | AM49: 0.0002137146761 | AN49: 0.008353409525 | AO49: 1.842930099e-05 | AP49: 0 | AQ49: 6.581074452e-28 | AR49: 0.01080688333 | AT49: 0.0005935546003 | AU49: 3.523070635e-07
Y50: 45-46 | Z50: 46 | AA50: 0.009621967681 | AC50: 0.007603219093 | AH50: 45 | AI50: 46 | AJ50: 46 | AK50: ='Step 1'!F54 -> 0.01080952127 | AL50: 0.002221329823 | AM50: 0.0001936394797 | AN50: 0.007762487699 | AO50: 3.30901295e-05 | AP50: 0 | AQ50: 7.008540152e-29 | AR50: 0.01021054713 | AT50: -0.0005989741361 | AU50: 3.587700157e-07
Y51: 46-47 | Z51: 47 | AA51: 0.009109844012 | AC51: 0.007198542151 | AH51: 46 | AI51: 47 | AJ51: 47 | AK51: ='Step 1'!F55 -> 0.008557853594 | AL51: 0.002221329823 | AM51: 0.0001754500383 | AN51: 0.007213086032 | AO51: 5.723076831e-05 | AP51: 0 | AQ51: 7.463771368e-30 | AR51: 0.009667096661 | AT51: 0.001109243068 | AU51: 1.230420183e-06
Y52: 47-48 | Z52: 48 | AA52: 0.008648963635 | AC52: 0.00683435734 | AH52: 47 | AI52: 48 | AJ52: 48 | AK52: ='Step 1'!F56 -> 0.008541971905 | AL52: 0.002221329823 | AM52: 0.0001589692143 | AN52: 0.006702379081 | AO52: 9.534593708e-05 | AP52: 0 | AQ52: 7.948571575e-31 | AR52: 0.009178024055 | AT52: 0.0006360521494 | AU52: 4.045623368e-07
Y53: 48-49 | Z53: 49 | AA53: 0.008241917357 | AC53: 0.006512711899 | AH53: 48 | AI53: 49 | AJ53: 49 | AK53: ='Step 1'!F57 -> 0.009090777719 | AL53: 0.002221329823 | AM53: 0.0001440365094 | AN53: 0.006227703502 | AO53: 0.0001530087659 | AP53: 0 | AQ53: 8.46486139e-32 | AR53: 0.0087460786 | AT53: -0.0003446991188 | AU53: 1.188174825e-07
Y54: 49-50 | Z54: 50 | AA54: 0.007892151578 | AC54: 0.006236329154 | AH54: 49 | AI54: 50 | AJ54: 50 | AK54: ='Step 1'!F58 -> 0.008592377184 | AL54: 0.002221329823 | AM54: 0.0001305065017 | AN54: 0.005786558975 | AO54: 0.0002365222158 | AP54: 0 | AQ54: 9.014686183e-33 | AR54: 0.008374917515 | AT54: -0.0002174596692 | AU54: 4.728870775e-08
Y55: 50-51 | Z55: 51 | AA55: 0.007603270839 | AC55: 0.006008057388 | AH55: 50 | AI55: 51 | AJ55: 51 | AK55: ='Step 1'!F59 -> 0.006591857645 | AL55: 0.002221329823 | AM55: 0.0001182474295 | AN55: 0.005376605024 | AO55: 0.0003521835537 | AP55: 0 | AQ55: 9.600224178e-34 | AR55: 0.00806836583 | AT55: 0.001476508185 | AU55: 2.180076422e-06
Y56: 51-52 | Z56: 52 | AA56: 0.007377948429 | AC56: 0.005830009019 | AH56: 51 | AI56: 52 | AJ56: 52 | AK56: ='Step 1'!F60 -> 0.007884424476 | AL56: 0.002221329823 | AM56: 0.0001071399079 | AN56: 0.004995655342 | AO56: 0.0005051352889 | AP56: 0 | AQ56: 1.022379508e-34 | AR56: 0.007829260362 | AT56: -5.516411452e-05 | AU56: 3.043079531e-09
Y57: 52-53 | Z57: 53 | AA57: 0.007216529782 | AC57: 0.005702457007 | AH57: 52 | AI57: 53 | AJ57: 53 | AK57: ='Step 1'!F61 -> 0.007294511921 | AL57: 0.002221329823 | AM57: 9.707576667e-05 | AN57: 0.004641670674 | AO57: 0.0006978914109 | AP57: 0 | AQ57: 1.088786928e-35 | AR57: 0.007657967675 | AT57: 0.000363455754 | AU57: 1.321000851e-07
Y58: 53-54 | Z58: 54 | AA58: 0.007115549715 | AC58: 0.005622663186 | AH58: 53 | AI58: 54 | AJ58: 54 | AK58: ='Step 1'!F62 -> 0.006774740079 | AL58: 0.002221329823 | AM58: 8.79569962e-05 | AN58: 0.004312750968 | AO58: 0.0009287728317 | AP58: 0 | AQ58: 1.159507761e-36 | AR58: 0.007550810618 | AT58: 0.0007760705398 | AU58: 6.022854828e-07
Y59: 54-55 | Z59: 55 | AA59: 0.007066509359 | AC59: 0.005583911801 | AH59: 54 | AI59: 55 | AJ59: 55 | AK59: ='Step 1'!F63 -> 0.008230679543 | AL59: 0.002221329823 | AM59: 7.969479351e-05 | AN59: 0.00400712724 | AO59: 0.001190618588 | AP59: 0 | AQ59: 1.234822179e-37 | AR59: 0.007498770444 | AT59: -0.000731909099 | AU59: 5.356909292e-07
Y60: 55-56 | Z60: 56 | AA60: 0.007055318496 | AC60: 0.00557506885 | AH60: 55 | AI60: 56 | AJ60: 56 | AK60: ='Step 1'!F64 -> 0.00889144135 | AL60: 0.002221329823 | AM60: 7.220869729e-05 | AN60: 0.003723153461 | AO60: 0.00147020305 | AP60: 0 | AQ60: 1.315028555e-38 | AR60: 0.007486895032 | AT60: -0.001404546319 | AU60: 1.972750361e-06
Y61: 56-57 | Z61: 57 | AA61: 0.007062755701 | AC61: 0.005580945684 | AH61: 56 | AI61: 57 | AJ61: 57 | AK61: ='Step 1'!F65 -> 0.007601015833 | AL61: 0.002221329823 | AM61: 6.542580431e-05 | AN61: 0.003459298625 | AO61: 0.001748732922 | AP61: 0 | AQ61: 1.400444638e-39 | AR61: 0.007494787174 | AT61: -0.000106228659 | AU61: 1.128452799e-08
Y62: 57-58 | Z62: 58 | AA62: 0.00706611281 | AC62: 0.00558359845 | AH62: 57 | AI62: 58 | AJ62: 58 | AK62: ='Step 1'!F66 -> 0.006531122986 | AL62: 0.002221329823 | AM62: 5.928005947e-05 | AN62: 0.003214139129 | AO62: 0.002003600626 | AP62: 0 | AQ62: 1.491408819e-40 | AR62: 0.007498349638 | AT62: 0.0009672266522 | AU62: 9.355273968e-07
Y63: 58-59 | Z63: 59 | AA63: 0.007041899929 | AC63: 0.005564465582 | AH63: 58 | AI63: 59 | AJ63: 59 | AK63: ='Step 1'!F67 -> 0.007960910246 | AL63: 0.002221329823 | AM63: 5.371161253e-05 | AN63: 0.002986351527 | AO63: 0.002211262684 | AP63: 0 | AQ63: 1.588281468e-41 | AR63: 0.007472655646 | AT63: -0.0004882545992 | AU63: 2.383925536e-07
Y64: 59-60 | Z64: 60 | AA64: 0.00696916971 | AC64: 0.005506994615 | AH64: 59 | AI64: 60 | AJ64: 60 | AK64: ='Step 1'!F68 -> 0.006594800093 | AL64: 0.002221329823 | AM64: 4.866623526e-05 | AN64: 0.002774705663 | AO64: 0.002350774771 | AP64: 0 | AQ64: 1.691446362e-42 | AR64: 0.007395476492 | AT64: 0.0008006763998 | AU64: 6.410826972e-07
Y65: 60-61 | Z65: 61 | AA65: 0.006832780234 | AC65: 0.005399220498 | AH65: 60 | AI65: 61 | AJ65: 61 | AK65: ='Step 1'!F69 -> 0.008556242451 | AL65: 0.002221329823 | AM65: 4.409479334e-05 | AN65: 0.002578058232 | AO65: 0.002407261172 | AP65: 0 | AQ65: 1.801312207e-43 | AR65: 0.00725074402 | AT65: -0.001305498431 | AU65: 1.704326154e-06
Y66: 61-62 | Z66: 62 | AA66: 0.006625849443 | AC66: 0.005235705072 | AH66: 61 | AI66: 62 | AJ66: 62 | AK66: ='Step 1'!F70 -> 0.005984712644 | AL66: 0.002221329823 | AM66: 3.995276785e-05 | AN66: 0.002395346726 | AO66: 0.002374525875 | AP66: 0 | AQ66: 1.918314254e-44 | AR66: 0.007031155192 | AT66: 0.001046442548 | AU66: 1.095042007e-06
Y67: 62-63 | Z67: 63 | AA67: 0.006350803826 | AC67: 0.005018365734 | AH67: 62 | AI67: 63 | AJ67: 63 | AK67: ='Step 1'!F71 -> 0.005823769539 | AL67: 0.002221329823 | AM67: 3.619982176e-05 | AN67: 0.002225583791 | AO67: 0.002256171494 | AP67: 0 | AQ67: 2.042916027e-45 | AR67: 0.006739284929 | AT67: 0.0009155153903 | AU67: 8.3816843e-07
Y68: 63-64 | Z68: 64 | AA68: =AR68/SUM(AR$4:AR$115) -> 0.006018757989 | AC68: =AA68*AA$118/AA$119 -> 0.004755985176 | AH68: 63 | AI68: 64 | AJ68: 64 | AK68: ='Step 1'!F72 -> 0.006603193428 | AL68: 0.002221329823 | AM68: 3.279940704e-05 | AN68: 0.002067851942 | AO68: 0.00206494655 | AP68: 0 | AQ68: 2.175611157e-46 | AR68: 0.006386927722 | AT68: -0.0002162657064 | AU68: 4.677085575e-08
Y69: 64-65 | Z69: 65 | AA69: 0.005647379206 | AC69: 0.004462523969 | AH69: 64 | AI69: 65 | AJ69: 65 | AK69: ='Step 1'!F73 -> 0.006005997222 | AL69: =$AF$5 -> 0.002221329823 | AM69: 2.971840882e-05 | AN69: 0.00192129865 | AO69: 0.001820484675 | AP69: 0 | AQ69: 2.316925338e-47 | AR69: =SUM(AL69:AQ69) -> 0.005992831557 | AT69: -1.31656652e-05 | AU69: 1.733347403e-10
Y70: 65-66 | Z70: 66 | AA70: 0.005257759476 | AC70: 0.004154648878 | AH70: 65 | AI70: 66 | AJ70: 66 | AK70: ='Step 1'!F74 -> 0.006832640956 | AL70: 0.002221329823 | AM70: =$AF$8*EXP(-$AF$9*AJ70) -> 2.692682284e-05 | AN70: =$AF$12*EXP(-$AF$13*(AJ70-$AF$14)-EXP(-$AF$15*(AJ70-$AF$14))) -> 0.001785131759 | AO70: =IF($AO$2=TRUE,$AF$18*EXP(-((AJ70-$AF$20)/$AF$19)*((AJ70-$AF$20)/$AF$19)),0) -> 0.001545990233 | AP70: =IF($AP$2=TRUE,($AF$23*EXP($AF$24*AJ70)),0) -> 0 | AQ70: =IF($AQ$2=TRUE,($AF$27*EXP(-$AF$28*(AJ70-$AF$29)-EXP(-$AF$30*(AJ70-$AF$29)))),0) -> 2.46741841e-48 | AR70: 0.005579378638 | AT70: =AR70-AK70 -> -0.001253262318 | AU70: =AT70*AT70 -> 1.570666438e-06
Y71: 66-67 | Z71: =Z70+1 -> 67 | AA71: 0.004871023229 | AC71: 0.003849052298 | AH71: 66 | AI71: 67 | AJ71: 67 | AK71: ='Step 1'!F75 -> 0.006626391789 | AL71: 0.002221329823 | AM71: 2.43974633e-05 | AN71: 0.001658615226 | AO71: 0.001264643074 | AP71: 0 | AQ71: 2.627686577e-49 | AR71: 0.005168985586 | AT71: -0.001457406202 | AU71: 2.124032838e-06
Y72: 67-68 | Z72: 68 | AA72: 0.004505389138 | AC72: 0.003560130511 | AH72: 67 | AI72: 68 | AJ72: 68 | AK72: ='Step 1'!F76 -> 0.003770843417 | AL72: 0.002221329823 | AM72: 2.210569805e-05 | AN72: 0.001541065148 | AO72: 0.0009964848492 | AP72: 0 | AQ72: 2.798364768e-50 | AR72: 0.004780985518 | AT72: 0.001010142102 | AU72: 1.020387065e-06
Y73: 68-69 | Z73: 69 | AA73: 0.004174203753 | AC73: 0.003298429877 | AH73: 68 | AI73: 69 | AJ73: 69 | AK73: ='Step 1'!F77 -> 0.003303325012 | AL73: 0.002221329823 | AM73: 2.00292088e-05 | AN73: 0.001431846081 | AO73: 0.0007563362843 | AP73: 0 | AQ73: 2.980129153e-51 | AR73: 0.004429541397 | AT73: 0.001126216385 | AU73: 1.268363345e-06
Y74: 69-70 | Z74: 70 | AA74: 0.00388515749 | AC74: 0.003070027316 | AH74: 69 | AI74: 70 | AJ74: 70 | AK74: ='Step 1'!F78 -> 0.003682740214 | AL74: 0.002221329823 | AM74: 1.814777367e-05 | AN74: 0.001330367604 | AO74: 0.0005529688626 | AP74: 0 | AQ74: 3.173699824e-52 | AR74: 0.004122814063 | AT74: 0.0004400738493 | AU74: 1.936649928e-07
Y75: 70-71 | Z75: 71 | AA75: 0.003640586623 | AC75: 0.002876768935 | AH75: 70 | AI75: 71 | AJ75: 71 | AK75: ='Step 1'!F79 -> 0.004768430156 | AL75: 0.002221329823 | AM75: 1.644307034e-05 | AN75: 0.001236081136 | AO75: 0.0003894286725 | AP75: 0 | AQ75: 3.379843642e-53 | AR75: 0.003863282702 | AT75: -0.0009051474545 | AU75: 8.192919144e-07
Y76: 71-72 | Z76: 72 | AA76: 0.003438546124 | AC76: 0.002717117788 | AH76: 71 | AI76: 72 | AJ76: 72 | AK76: ='Step 1'!F80 -> 0.003265792749 | AL76: 0.002221329823 | AM76: 1.489849758e-05 | AN76: 0.00114847697 | AO76: 0.0002641780177 | AP76: 0 | AQ76: 3.599377282e-54 | AR76: 0.003648883308 | AT76: 0.0003830905597 | AU76: 1.467583769e-07
Y77: 72-73 | Z77: 73 | AA77: 0.003274249547 | AC77: 0.002587291654 | AH77: 72 | AI77: 73 | AJ77: 73 | AK77: ='Step 1'!F81 -> 0.003785836556 | AL77: 0.002221329823 | AM77: 1.349901361e-05 | AN77: 0.001067081521 | AO77: 0.0001726262895 | AP77: 0 | AQ77: 3.833170463e-55 | AR77: 0.003474536647 | AT77: -0.0003112999088 | AU77: 9.69076332e-08
Y78: 73-74 | Z78: 74 | AA78: 0.003141505717 | AC78: 0.002482398303 | AH78: 73 | AI78: 74 | AJ78: 74 | AK78: ='Step 1'!F82 -> 0.003133387649 | AL78: 0.002221329823 | AM78: 1.223098956e-05 | AN78: 0.0009914547652 | AO78: 0.0001086572477 | AP78: 0 | AQ78: 4.082149396e-56 | AR78: 0.003333672825 | AT78: 0.0002002851762 | AU78: 4.011415181e-08
Y79: 74-75 | Z79: 75 | AA79: 0.003033894998 | AC79: 0.002397364982 | AH79: 74 | AI79: 75 | AJ79: 75 | AK79: ='Step 1'!F83 -> 0.003358550681 | AL79: 0.002221329823 | AM79: 1.10820768e-05 | AN79: 0.0009211878635 | AO79: 6.587975421e-05 | AP79: 0 | AQ79: 4.347300454e-57 | AR79: 0.003219479517 | AT79: -0.0001390711638 | AU79: 1.93407886e-08
Y80: 75-76 | Z80: 76 | AA80: 0.002945566169 | AC80: 0.00232756809 | AH80: 75 | AI80: 76 | AJ80: 76 | AK80: ='Step 1'!F84 -> 0.003315314349 | AL80: 0.002221329823 | AM80: 1.004108668e-05 | AN80: 0.0008559009514 | AO80: 3.847571916e-05 | AP80: 0 | AQ80: 4.629674076e-58 | AR80: 0.00312574758 | AT80: -0.0001895667689 | AU80: 3.593555986e-08
Y81: 76-77 | Z81: 77 | AA81: 0.002871653892 | AC81: 0.002269163068 | AH81: 76 | AI81: 77 | AJ81: 77 | AK81: ='Step 1'!F85 -> 0.002055675773 | AL81: 0.002221329823 | AM81: 9.09788151e-06 | AN81: 0.0007952410858 | AO81: 2.1645271e-05 | AP81: 0 | AQ81: 4.930388934e-59 | AR81: 0.003047314061 | AT81: 0.0009916382886 | AU81: 9.833464955e-07
Y82: 77-78 | Z82: 78 | AA82: 0.002808392524 | AC82: 0.002219174328 | AH82: 77 | AI82: 78 | AJ82: 78 | AK82: ='Step 1'!F86 -> 0.004945519132 | AL82: 0.002221329823 | AM82: 8.243275916e-06 | AN82: 0.0007388803368 | AO82: 1.172953553e-05 | AP82: 0 | AQ82: 5.250636361e-60 | AR82: 0.002980182971 | AT82: -0.001965336161 | AU82: 3.862546225e-06
Y83: 78-79 | Z83: 79 | AA83: 0.002753031457 | AC83: 0.002175428356 | AH83: 78 | AI83: 79 | AJ83: 79 | AK83: ='Step 1'!F87 -> 0.002354386915 | AL83: 0.002221329823 | AM83: 7.468947331e-06 | AN83: 0.0006865140159 | AO83: 6.122659505e-06 | AP83: 0 | AQ83: 5.59168507e-61 | AR83: 0.002921435446 | AT83: 0.0005670485305 | AU83: 3.215440359e-07
Y84: 79-80 | Z84: 80 | AA84: 0.002703651331 | AC84: 0.002136408487 | AH84: 79 | AI84: 80 | AJ84: 80 | AK84: ='Step 1'!F88 -> 0.003105722981 | AL84: 0.002221329823 | AM84: 6.767354969e-06 | AN84: 0.0006378590282 | AO84: 3.078512397e-06 | AP84: 0 | AQ84: 5.954886185e-62 | AR84: 0.002869034719 | AT84: -0.0002366882627 | AU84: 5.602133372e-08
Y85: 80-81 | Z85: 81 | AA85: 0.002658955522 | AC85: 0.002101090137 | AH85: 80 | AI85: 81 | AJ85: 81 | AK85: ='Step 1'!F89 -> 0.002082452578 | AL85: 0.002221329823 | AM85: 6.131666385e-06 | AN85: 0.0005926523423 | AO85: 1.491019115e-06 | AP85: 0 | AQ85: 6.341678586e-63 | AR85: 0.002821604851 | AT85: 0.0007391522732 | AU85: 5.46346083e-07
Y86: 81-82 | Z86: 82 | AA86: 0.002618081637 | AC86: 0.002068791847 | AH86: 81 | AI86: 82 | AJ86: 82 | AK86: ='Step 1'!F90 -> 0.002050944643 | AL86: 0.002221329823 | AM86: 5.555690935e-06 | AN86: 0.0005506495685 | AO86: 6.956119298e-07 | AP86: 0 | AQ86: 6.753594618e-64 | AR86: 0.002778230694 | AT86: 0.0007272860512 | AU86: 5.289450003e-07
Y87: 82-83 | Z87: 83 | AA87: 0.002580452608 | AC87: 0.002039057622 | AH87: 82 | AI87: 83 | AJ87: 83 | AK87: ='Step 1'!F91 -> 0.005339693094 | AL87: 0.002221329823 | AM87: 5.033819492e-06 | AN87: 0.0005116236375 | AO87: 3.126024213e-07 | AP87: 0 | AQ87: 7.192266156e-65 | AR87: 0.002738299882 | AT87: -0.002601393211 | AU87: 6.76724664e-06
Y88: 83-84 | Z88: 84 | AA88: 0.002545670071 | AC88: 0.002011572677 | AH88: 83 | AI88: 84 | AJ88: 84 | AK88: ='Step 1'!F92 -> 0.002577398257 | AL88: 0.002221329823 | AM88: 4.560969819e-06 | AN88: 0.0004753635731 | AO88: 1.353191183e-07 | AP88: 0 | AQ88: 7.659431072e-66 | AR88: 0.002701389685 | AT88: 0.0001239914278 | AU88: 1.537387418e-08
Y89: 84-85 | Z89: 85 | AA89: 0.002513443814 | AC89: 0.00198610769 | AH89: 84 | AI89: 85 | AJ89: 85 | AK89: ='Step 1'!F93 -> 0.002704312774 | AL89: 0.002221329823 | AM89: 4.132537077e-06 | AN89: 0.0004416733513 | AO89: 5.64244698e-08 | AP89: 0 | AQ89: 8.156940117e-67 | AR89: 0.002667192136 | AT89: -3.712063814e-05 | AU89: 1.377941776e-09
Y90: 85-86 | Z90: 86 | AA90: 0.002483548088 | AC90: 0.001962484272 | AH90: 85 | AI90: 86 | AJ90: 86 | AK90: ='Step 1'!F94 -> 0.004917637084 | AL90: 0.002221329823 | AM90: 3.74434898e-06 | AN90: 0.0004103708409 | AO90: 2.266299589e-08 | AP90: 0 | AQ90: 8.686764258e-68 | AR90: 0.002635467676 | AT90: -0.002282169409 | AU90: 5.20829721e-06
Y91: 86-87 | Z91: 87 | AA91: 0.00245579605 | AC91: 0.001940554784 | AH91: 86 | AI91: 87 | AJ91: 87 | AK91: ='Step 1'!F95 -> 0.002563189206 | AL91: 0.002221329823 | AM91: 3.392625166e-06 | AN91: 0.0003812868188 | AO91: 8.768163894e-09 | AP91: 0 | AQ91: 9.251002482e-69 | AR91: 0.002606018035 | AT91: 4.282882866e-05 | AU91: 1.834308564e-09
Y92: 87-88 | Z92: 88 | AA92: 0.002430025495 | AC92: 0.001920191052 | AH92: 87 | AI92: 88 | AJ92: 88 | AK92: ='Step 1'!F96 -> 0.004947698351 | AL92: 0.002221329823 | AM92: 3.073940377e-06 | AN92: 0.000354264055 | AO92: 3.267694926e-09 | AP92: 0 | AQ92: 9.851890116e-70 | AR92: 0.002578671086 | AT92: -0.002369027265 | AU92: 5.612290182e-06
Y93: 88-89 | Z93: 89 | AA93: 0.002406091133 | AC93: 0.001901278268 | AH93: 88 | AI93: 89 | AJ93: 89 | AK93: ='Step 1'!F97 -> 0.004703389061 | AL93: 0.002221329823 | AM93: 2.785191108e-06 | AN93: 0.000329156463 | AO93: 1.173048191e-09 | AP93: 0 | AQ93: 1.049180768e-70 | AR93: 0.00255327265 | AT93: -0.002150116411 | AU93: 4.62300058e-06
Y94: 89-90 | Z94: =Z93+1 -> 90 | AA94: 0.002383860447 | AC94: 0.001883711717 | AH94: 89 | AI94: 90 | AJ94: 90 | AK94: ='Step 1'!F98 -> 0 | AL94: 0.002221329823 | AM94: 2.523565376e-06 | AN94: 0.0003058283097 | AO94: 4.056315344e-10 | AP94: 0 | AQ94: 1.11732903e-71 | AR94: 0.002529682104 | AT94: 0.002529682104 | AU94: 6.399291546e-06
Y95: 90-91 | AA95: =AR95/SUM(AR$4:AR$115) -> 0.002383860447 | AC95: 0.001883711717 | AH95: 90 | AI95: 91 | AJ95: 91 | AR95: =AR94 -> 0.002529682104 | AT95: Sum of squared error | AU95: =SUM(AU5:AU94) -> 0.0001086200863
Y96: 91-92 | AA96: 0.002383860447 | AC96: 0.001883711717 | AH96: 91 | AI96: 92 | AJ96: 92 | AR96: =AR95 -> 0.002529682104
Y97: 92-93 | AA97: 0.002383860447 | AC97: 0.001883711717 | AH97: 92 | AI97: 93 | AJ97: 93 | AR97: 0.002529682104
Y98: 93-94 | AA98: 0.002383860447 | AC98: 0.001883711717 | AH98: 93 | AI98: 94 | AJ98: 94 | AR98: 0.002529682104
Y99: 94-95 | AA99: 0.002383860447 | AC99: 0.001883711717 | AH99: 94 | AI99: 95 | AJ99: 95 | AR99: 0.002529682104
Y100: 95-96 | AA100: 0.002383860447 | AC100: =AA100*AA$118/AA$119 -> 0.001883711717 | AH100: 95 | AI100: 96 | AJ100: 96 | AR100: 0.002529682104
Y101: 96-97 | AA101: 0.002383860447 | AC101: 0.001883711717 | AH101: 96 | AI101: 97 | AJ101: 97 | AR101: 0.002529682104
Y102: 97-98 | AA102: 0.002383860447 | AC102: 0.001883711717 | AH102: 97 | AI102: 98 | AJ102: 98 | AR102: 0.002529682104
Y103: 98-99 | AA103: 0.002383860447 | AC103: 0.001883711717 | AH103: 98 | AI103: 99 | AJ103: 99 | AR103: 0.002529682104
Y104: 99-100 | AA104: 0.002383860447 | AC104: 0.001883711717 | AH104: 99 | AI104: 100 | AJ104: 100 | AR104: 0.002529682104
Y105: 100-101 | AA105: 0.002383860447 | AC105: 0.001883711717 | AH105: 100 | AI105: 101 | AJ105: 101 | AR105: 0.002529682104
Y106: 101-102 | AA106: 0.002383860447 | AC106: 0.001883711717 | AH106: 101 | AI106: 102 | AJ106: 102 | AR106: 0.002529682104
Y107: 102-103 | AA107: 0.002383860447 | AC107: 0.001883711717 | AH107: 102 | AI107: 103 | AJ107: 103 | AR107: 0.002529682104
Y108: 103-104 | AA108: 0.002383860447 | AC108: 0.001883711717 | AH108: 103 | AI108: 104 | AJ108: 104 | AR108: 0.002529682104
Y109: 104-105 | AA109: 0.002383860447 | AC109: 0.001883711717 | AH109: 104 | AI109: 105 | AJ109: 105 | AR109: 0.002529682104
Y110: 105-106 | AA110: 0.002383860447 | AC110: 0.001883711717 | AH110: 105 | AI110: 106 | AJ110: 106 | AR110: 0.002529682104
Y111: 106-107 | AA111: 0.002383860447 | AC111: 0.001883711717 | AH111: 106 | AI111: 107 | AJ111: 107 | AR111: 0.002529682104
Y112: 107-108 | AA112: 0.002383860447 | AC112: 0.001883711717 | AH112: 107 | AI112: 108 | AJ112: 108 | AR112: 0.002529682104
Y113: 108-109 | AA113: 0.002383860447 | AC113: 0.001883711717 | AH113: 108 | AI113: 109 | AJ113: 109 | AR113: 0.002529682104
Y114: 109-110 | AA114: 0.002383860447 | AC114: 0.001883711717 | AH114: 109 | AI114: 110 | AJ114: 110 | AR114: 0.002529682104
Y115: 110+-111+ | AA115: 0.002383860447 | AC115: 0.001883711717 | AH115: 110 | AI115: 111 | AJ115: 111 | AR115: 0.002529682104
Y116: Total | AA116: =SUM(AA4:AA115) -> 1 | AC116: =SUM(AC4:AC115) -> 0.7901937883 | AD116: <- GMP
Z118: Sum of probabilities from 0-1 to 74-75 in raw data | AA118: 0.7124518639 | AB118: <- copy from 2006 Census migration data for POPSTAR
Z119: Sum of probabilities from 0-1 to 74-75 in smoothed scaled data above | AA119: =SUM(AA5:AA79) -> 0.9016166344
Z120: Gross Migraproduction Probability (covering birth-0 to 110+-111+) | AA120: =AA118/AA119 -> 0.7901937883
